Cogmind - Beta 13 @@@ ROGUE MODE // 2024.05.09 @ 02:23:48 // Winter2019/RPGLIKE Player: Kyle Rick Result: Escaped singularity! Performance ------------- Evolutions (9) 4500 Regions Visited (52) 10400 Robots Destroyed (3674) 18370 Value Destroyed (215045) 215045 Prototype IDs (296) 5920 Alien Tech Used (10) 2000 Bonus (253296) 253296 TOTAL SCORE: 509531 Bonus ------- Triggered High Security 9500 Triggered Max Security 2000 High Alert Combat Kills 186253 Follower Combat Kills 835 Entered Garrisons 1600 Used RIF Installer 5000 Network Hubs Disabled 800 Aligned with FarCom 300 Met Data Miner 300 Triggered Deep Caves Wall 500 Met Zhirov 300 MAIN.C Attacked Warlord 500 Warlord Defense Kills 1990 Met R17 at Cetus 500 Scanned by Researcher 500 Destroyed MAIN.C Guards 500 Met MAIN.C 5000 Destroyed MAIN.C Shell 5000 Destroyed MAIN.C 10000 Met Architect 300 Destroyed A8 300 Destroyed A6 400 Destroyed A5 500 Destroyed A4 700 Destroyed A3 800 Destroyed A2 1000 Destroyed Architect 15000 Win 3000 Friendly Fire -82 Cogmind --------- Core Integrity 1096/1250 Matter 412/425 Energy 560/1000 System Corruption 0% Temperature Warm (105) Movement Flying (6) Location Near Former Tau Ceti IV Parts ------- > --- POWER (2) -------- Hybrid Fission Core Improved Fusion Compressor > --- PROPULSION (7) --- Electron Diverter Electron Diverter Cooled Q-thruster Cooled Q-thruster Cooled Q-thruster Cooled Q-thruster Experimental Q-thruster > --- UTILITY (11) ----- Advanced Signal Interpreter Experimental Melee Analysis Suite Experimental Core Analyzer Femtoactuators Experimental Actuator Array Advanced Force Booster Experimental Reaction Control System Experimental Phase Shifter Advanced Force Field Architect God Chip A > --- WEAPON (6) ------- Nanosword Nanosword Nanosword (fused) Nanosword Nanosword Vortex Lance > --- INVENTORY (7) ---- Protomatter-81 Protomatter-80 Protomatter-79 Protomatter-77 Protomatter-77 Protomatter-61 Peak State ------------ > --- POWER ------------ Matter Drive > --- PROPULSION ------- Electron Diverter Electron Diverter Improved Diametric Drive Cooled Impulse Thruster Cooled Impulse Thruster Cooled Impulse Thruster Cooled Impulse Thruster > --- UTILITY ---------- Advanced Signal Interpreter Experimental Melee Analysis Suite Experimental Core Analyzer Femtoactuators Experimental Actuator Array Advanced Force Booster Experimental Reaction Control System Advanced Phase Shifter Advanced Force Field Experimental Hacking Suite Experimental Hacking Suite > --- WEAPON ----------- Nanosword Nanosword Nanosword Nanosword Nanosword Vortex Lance > --- INVENTORY -------- Protomatter Protomatter Protomatter Protomatter Protomatter High-powered Transdimensional Reconstructor [Rating: 241] Favorites ----------- Power Hybrid Fission Core Engine Improved Deuterium Engine Power Core Hybrid Fission Core Reactor Matter Drive Propulsion Cooled Cesium-ion Thruster Flight Unit Cooled Cesium-ion Thruster Utility Advanced Signal Interpreter Device Force Field Storage Experimental Energy Well Processor Advanced Signal Interpreter Hackware Experimental Hacking Suite Protection Improved Light Armor Plating Weapon Nanosword Energy Gun Improved Arc Projector Ballistic Gun Assault Rifle Ballistic Cannon Mass Driver Launcher Rocket Array Special Weapon Mining Laser Impact Weapon Heavy Flail Slashing Weapon Nanosword Piercing Weapon Vortex Lance Build | -11 -10 -10 -9 -9 -9 -8 -8 -8 -8 -8 -7 -7 -7 -7 -7 -7 -7 -6 -6 -6 -6 -6 -6 -6 -5 -5 -5 -5 -5 -5 -5 -5 -5 -4 -4 -4 -4 -3 -3 -3 -3 -3 -3 -2 -2 -2 -2 -1 -1 -1 -1 -1 ------- Run | Yrd Mat Min Mat Min Exi Min Mat Gar Mat Gar Fac Gar Fac Low Low Zio Dee Pro Fac Gar Fac Low Low Dat Pro Fac Was Fac Ext Cet Arc Hub Gar Fac Upp Upp War Pro Res Gar Res Arm Lab Res Tes Sec Gar Acc Gar Acc Com Ac0 Slots Evolved 21 | 3 3 . 2 1 . 1 1 1 1 . . . 1 . . . . . 2 . . . . . . . . 1 . . . . . 1 . . 1 . 1 . 1 . . . . . . . . . . . Power 1 | . . . . . . . . . . . . . . . . . . . 1 . . . . . . . . . . . . . . . . . . . . . . . . . . . . . . . . . Propulsion 5 | 1 1 . 1 1 . . . . . . . . . . . . . . . . . . . . . . . . . . . . . . . . 1 . . . . . . . . . . . . . . . Utility 10 | 1 2 . 1 . . 1 1 1 . . . . 1 . . . . . 1 . . . . . . . . 1 . . . . . . . . . . . . . . . . . . . . . . . . Weapon 5 | 1 . . . . . . . . 1 . . . . . . . . . . . . . . . . . . . . . . . . 1 . . . . 1 . 1 . . . . . . . . . . . Parts Attached 467 | 1 11 4 8 1 4 1 15 2 12 6 31 8 18 1 6 14 11 4 29 13 11 3 2 . 2 5 . 11 4 . . 19 8 16 2 3 8 1 39 6 5 39 . 11 20 13 1 11 2 16 6 3 Power 27 | 1 1 . . . . . 5 . 1 . 4 . 2 . . . . . 1 . 1 . . . . . . 1 . . . . . . . . . . . . . 3 . 2 1 3 . . . 1 . . Engine 10 | 1 1 . . . . . 5 . 1 . 2 . . . . . . . . . . . . . . . . . . . . . . . . . . . . . . . . . . . . . . . . . Core 16 | . . . . . . . . . . . 2 . 2 . . . . . 1 . 1 . . . . . . 1 . . . . . . . . . . . . . 3 . 2 1 2 . . . 1 . . Reactor 1 | . . . . . . . . . . . . . . . . . . . . . . . . . . . . . . . . . . . . . . . . . . . . . . 1 . . . . . . Propulsion 77 | . 4 . 3 1 . . 5 . 5 . 7 . . . 1 . . 1 15 . . . . . . 1 . . . . . 5 1 3 . . 2 . 2 . 1 6 . . 6 . . 1 . 6 . 1 Treads . | . . . . . . . . . . . . . . . . . . . . . . . . . . . . . . . . . . . . . . . . . . . . . . . . . . . . . Leg . | . . . . . . . . . . . . . . . . . . . . . . . . . . . . . . . . . . . . . . . . . . . . . . . . . . . . . Wheel . | . . . . . . . . . . . . . . . . . . . . . . . . . . . . . . . . . . . . . . . . . . . . . . . . . . . . . Hover . | . . . . . . . . . . . . . . . . . . . . . . . . . . . . . . . . . . . . . . . . . . . . . . . . . . . . . Flight 77 | . 4 . 3 1 . . 5 . 5 . 7 . . . 1 . . 1 15 . . . . . . 1 . . . . . 5 1 3 . . 2 . 2 . 1 6 . . 6 . . 1 . 6 . 1 Utility 303 | . 2 3 3 . 4 1 4 2 4 6 10 8 14 1 5 14 11 3 12 13 10 2 2 . 2 4 . 10 4 . . 9 4 12 2 3 2 1 35 4 1 26 . 9 10 10 . 9 . 8 2 2 Device 266 | . 1 1 1 . 3 1 1 1 4 6 8 8 10 1 5 12 8 3 11 13 8 2 2 . 2 4 . 10 4 . . 8 4 12 2 3 2 . 31 4 1 24 . 8 9 10 . 8 . 8 2 . Storage 5 | . . . . . . . . . . . . . . . . 1 1 . . . . . . . . . . . . . . . . . . . . . . . . . . 1 1 . . 1 . . . . Processor 15 | . 1 2 2 . 1 . . 1 . . 1 . 1 . . . . . 1 . . . . . . . . . . . . 1 . . . . . . 2 . . 2 . . . . . . . . . . Hackware 13 | . . . . . . . 2 . . . 1 . 3 . . . . . . . 2 . . . . . . . . . . . . . . . . 1 2 . . . . . . . . . . . . 2 Protection 4 | . . . . . . . 1 . . . . . . . . 1 2 . . . . . . . . . . . . . . . . . . . . . . . . . . . . . . . . . . . Artifact . | . . . . . . . . . . . . . . . . . . . . . . . . . . . . . . . . . . . . . . . . . . . . . . . . . . . . . Weapon 60 | . 4 1 2 . . . 1 . 2 . 10 . 2 . . . . . 1 . . 1 . . . . . . . . . 5 3 1 . . 4 . 2 2 3 4 . . 3 . 1 1 2 1 4 . Energy Gun 2 | . . . . . . . . . . . . . . . . . . . . . . . . . . . . . . . . . . . . . . . . . . . . . . . . . . . 2 . Energy Cannon . | . . . . . . . . . . . . . . . . . . . . . . . . . . . . . . . . . . . . . . . . . . . . . . . . . . . . . Ballistic Gun 3 | . 1 . . . . . . . . . . . . . . . . . . . . . . . . . . . . . . . 1 . . . . . . 1 . . . . . . . . . . . . Ballistic Cannon 3 | . . . . . . . . . . . . . . . . . . . . . . . . . . . . . . . . 3 . . . . . . . . . . . . . . . . . . . . Launcher 20 | . . 1 . . . . . . 1 . 5 . 2 . . . . . 1 . . 1 . . . . . . . . . 2 2 1 . . 1 . 1 . . . . . 1 . . . 1 . . . Special Weapon 2 | . 1 . . . . . . . . . . . . . . . . . . . . . . . . . . . . . . . . . . . . . . 1 . . . . . . . . . . . . Impact Weapon 6 | . 2 . 2 . . . 1 . 1 . . . . . . . . . . . . . . . . . . . . . . . . . . . . . . . . . . . . . . . . . . . Slashing Weapon 16 | . . . . . . . . . . . 5 . . . . . . . . . . . . . . . . . . . . . . . . . . . . . 3 2 . . 2 . . . 1 1 2 . Piercing Weapon 8 | . . . . . . . . . . . . . . . . . . . . . . . . . . . . . . . . . . . . . 3 . 1 . . 2 . . . . 1 1 . . . . Special Melee Weapon . | . . . . . . . . . . . . . . . . . . . . . . . . . . . . . . . . . . . . . . . . . . . . . . . . . . . . . Unidentified Prototypes 57 | . . . . . 3 . 1 . 1 . 3 1 2 1 . 3 4 . 3 1 . . . . . . . . . . . 2 1 . . . 2 . 2 . . 3 . . 8 9 . 2 . 3 1 1 Parts Lost 3 | . . . . . . . . . . . 1 . 1 . . . . . 1 . . . . . . . . . . . . . . . . . . . . . . . . . . . . . . . . . Power 2 | . . . . . . . . . . . 1 . . . . . . . 1 . . . . . . . . . . . . . . . . . . . . . . . . . . . . . . . . . Propulsion . | . . . . . . . . . . . . . . . . . . . . . . . . . . . . . . . . . . . . . . . . . . . . . . . . . . . . . Utility 1 | . . . . . . . . . . . . . 1 . . . . . . . . . . . . . . . . . . . . . . . . . . . . . . . . . . . . . . . Weapon . | . . . . . . . . . . . . . . . . . . . . . . . . . . . . . . . . . . . . . . . . . . . . . . . . . . . . . Highest Loss Streak 1 | . . . . . . . . . . . 1 . 1 . . . . . 1 . . . . . . . . . . . . . . . . . . . . . . . . . . . . . . . . . To Critical Strikes . | . . . . . . . . . . . . . . . . . . . . . . . . . . . . . . . . . . . . . . . . . . . . . . . . . . . . . Average Slot Usage (%) 92 | . 72 87 92 100 99 100 99 99 98 93 90 93 91 93 89 89 88 88 88 85 88 89 90 90 90 90 90 89 90 90 90 89 89 87 89 90 87 91 91 92 92 99 . 99 99 99 100 99 100 99 99 96 Engine 1 | . 11 10 8 7 7 7 6 6 5 5 4 . . . . . . . . . . . . . . . . . . . . . . . . . . . . . . . . . . . . . . . . . Core 5 | . . . . . . . . . . . . 5 5 5 5 5 5 5 4 4 7 9 9 9 9 9 9 9 9 9 9 9 9 8 8 8 8 8 8 8 7 6 . 7 6 7 7 7 7 6 7 7 Flight 28 | . 22 30 31 37 38 38 33 32 30 29 29 29 27 26 26 31 31 30 29 28 28 28 28 28 28 28 28 27 27 27 27 27 27 26 26 26 26 29 28 28 26 25 . 26 26 26 26 26 26 25 26 26 Device 19 | . 7 13 12 15 14 15 15 13 11 10 11 16 15 15 14 13 14 15 18 19 19 19 19 19 19 19 19 20 22 22 22 21 23 25 29 29 26 25 22 23 21 22 . 22 22 22 23 23 26 25 26 26 Processor 15 | . 11 13 22 23 23 23 20 21 24 23 23 23 22 21 21 17 15 15 14 14 14 14 14 14 14 14 14 13 13 13 13 13 13 13 13 13 12 12 12 12 11 11 . 11 11 11 11 11 11 11 11 11 Hackware 6 | . . . . . . . 8 12 11 11 6 5 7 10 10 10 10 10 9 9 9 9 9 9 9 9 9 9 9 9 9 9 7 4 4 4 4 4 8 8 7 7 . 7 7 7 7 6 3 3 2 . Launcher 3 | . . 4 8 7 7 7 6 6 5 5 5 5 4 5 5 5 5 5 4 4 4 3 4 4 4 4 4 4 4 4 4 3 2 3 4 4 4 4 4 4 3 . . . . . . . . . . . Impact Weapon 1 | . 10 10 8 7 7 7 6 6 5 5 . . . . . . . . . . . . . . . . . . . . . . . . . . . . . . . . . . . . . . . . . . Slashing Weapon 6 | . . . . . . . . . . . 4 5 5 5 5 5 5 5 4 4 4 4 4 4 4 4 4 4 4 4 4 4 4 4 4 4 4 4 4 4 8 17 . 19 19 19 19 19 18 19 18 19 Piercing Weapon 1 | . . . . . . . . . . . . . . . . . . . . . . . . . . . . . . . . . . . . . . 4 4 4 3 3 . 3 3 3 3 2 3 3 3 3 Naked Turns . | . . . . . . . . . . . . . . . . . . . . . . . . . . . . . . . . . . . . . . . . . . . . . . . . . . . . . Heaviest Build 74 | 3 11 14 15 15 15 15 21 21 20 29 42 30 42 31 31 45 45 45 46 43 47 47 47 47 47 48 48 49 49 49 49 51 51 51 51 51 55 51 60 60 56 57 52 58 65 65 65 66 74 65 68 65 Greatest Support 81 | 8 17 17 26 30 30 30 35 35 35 35 44 43 43 43 47 47 47 47 50 50 50 50 50 50 50 51 66 51 51 63 51 66 63 60 51 51 73 61 72 72 74 76 67 67 78 78 66 78 78 81 81 77 Greatest Overweight (x) 2 | . . . . . . . . . . . 1 . . . . . . 1 1 . . . . . . . . . . . . 1 . . . . . 2 . . . . . . 1 . . . 1 1 1 . Average Overweight (x) . | . . . . . . . . . . . . . . . . . . . . . . . . . . . . . . . . . . . . . . . . . . . . . . . . . . . . . Largest Inventory Capacity 7 | 1 2 3 3 3 3 3 3 3 3 3 4 4 4 4 4 4 4 4 4 4 4 4 4 4 4 4 4 4 4 4 4 4 5 5 5 5 5 5 5 5 5 5 5 6 6 6 6 7 7 7 7 7 Average Capacity 4 | 1 1 2 3 3 3 3 3 3 3 3 3 4 4 4 4 4 4 4 4 4 4 4 4 4 4 4 4 4 4 4 4 4 4 5 5 5 5 5 5 5 5 5 5 5 6 6 6 6 7 7 7 7 Most Carried 7 | . 2 3 3 3 3 3 3 3 3 3 4 4 4 4 4 4 4 4 4 4 4 4 4 4 4 4 4 4 4 4 4 4 5 5 4 5 5 4 5 5 5 5 5 6 6 6 6 7 7 7 7 7 Average Carried 3 | . 1 2 1 1 1 1 2 2 2 2 3 3 2 3 3 2 3 3 3 4 3 3 3 4 4 4 3 3 4 4 3 3 4 4 3 4 4 3 4 4 4 3 5 5 5 5 6 6 7 6 6 6 Final Capacity 7 | 1 2 3 3 3 3 3 3 3 3 3 4 4 4 4 4 4 4 4 4 4 4 4 4 4 4 4 4 4 4 4 4 4 5 5 5 5 5 5 5 5 5 5 5 6 6 6 6 7 7 7 7 7 Final Carried 7 | . 2 2 3 1 1 2 3 2 1 3 4 4 3 3 4 4 3 4 4 4 3 4 4 4 4 4 4 4 4 4 4 4 5 4 4 5 3 3 5 5 4 5 5 6 6 6 6 7 7 7 6 6 Class Distribution -------------------- 23% | Hacker-Scout 19% | Wizard-Sprinter 17% | Hacker-Sprinter 16% | Wizard-Scout 9% | Machinist-Scout 6% | Machinist-Sprinter 3% | Scavenger-Sprinter Dominant Class ---------------- Mutant | -10/Materials Mutant | -10/Mines Scavenger-Sprinter | -9/Materials Scavenger-Sprinter | -9/Mines Scavenger-Sprinter | -9/Exiles Scavenger-Scout | -8/Mines Hacker-Sprinter | -8/Materials Hacker-Sprinter | -8/Garrison Hacker-Sprinter | -8/Materials Hacker-Sprinter | -8/Garrison Hacker-Sprinter | -7/Factory Hacker-Scout | -7/Garrison Hacker-Scout | -7/Factory Hacker-Scout | -7/Lower Caves Hacker-Scout | -7/Lower Caves Hacker-Sprinter | -7/Zion Hacker-Scout | -7/Deep Caves Hacker-Scout | -6/Proximity Caves Hacker-Scout | -6/Factory Wizard-Scout | -6/Garrison Wizard-Scout | -6/Factory Wizard-Scout | -6/Lower Caves Wizard-Scout | -6/Lower Caves Wizard-Scout | -6/Data Miner Wizard-Scout | -5/Proximity Caves Wizard-Sprinter | -5/Factory Wizard-Sprinter | -5/Waste Wizard-Sprinter | -5/Factory Wizard-Scout | -5/Extension Wizard-Scout | -5/Cetus Wizard-Scout | -5/Archives Wizard-Scout | -5/Hub_04(d) Wizard-Scout | -5/Garrison Hacker-Scout | -4/Factory Hacker-Scout | -4/Upper Caves Hacker-Scout | -4/Upper Caves Hacker-Scout | -4/Warlord Hacker-Scout | -3/Proximity Caves Wizard-Scout | -3/Research Wizard-Sprinter | -3/Garrison Wizard-Sprinter | -3/Research Wizard-Sprinter | -3/Armory Wizard-Sprinter | -3/Lab Machinist-Sprinter | -2/Research Machinist-Sprinter | -2/Testing Machinist-Sprinter | -2/Section 7 Machinist-Scout | -2/Garrison Machinist-Scout | -1/Access Machinist-Scout | -1/Garrison Machinist-Scout | -1/Access Machinist-Scout | -1/Command Machinist-Scout | -1/Access_0 Resources | -11 -10 -10 -9 -9 -9 -8 -8 -8 -8 -8 -7 -7 -7 -7 -7 -7 -7 -6 -6 -6 -6 -6 -6 -6 -5 -5 -5 -5 -5 -5 -5 -5 -5 -4 -4 -4 -4 -3 -3 -3 -3 -3 -3 -2 -2 -2 -2 -1 -1 -1 -1 -1 ----------- Run | Yrd Mat Min Mat Min Exi Min Mat Gar Mat Gar Fac Gar Fac Low Low Zio Dee Pro Fac Gar Fac Low Low Dat Pro Fac Was Fac Ext Cet Arc Hub Gar Fac Upp Upp War Pro Res Gar Res Arm Lab Res Tes Sec Gar Acc Gar Acc Com Ac0 Matter Collected 41298 | 210 458 106 355 54 40 76 1118 211 887 528 2309 122 1543 100 60 1354 256 145 1920 150 1923 70 60 . 175 819 239 1702 735 414 139 1325 444 2734 229 713 1183 261 2633 732 1681 2108 . 1653 1081 1124 463 1249 727 1329 722 629 Remotely . | . . . . . . . . . . . . . . . . . . . . . . . . . . . . . . . . . . . . . . . . . . . . . . . . . . . . . Salvage Created 176904 | . 803 464 2030 277 . 659 2952 2060 2167 732 4388 3624 5574 862 591 1336 333 1296 5209 2374 4827 179 719 . 1121 3086 828 3787 2390 437 347 4516 3303 5023 1053 1993 3844 792 7093 3885 5665 10103 . 9019 10472 9602 3356 10089 5239 13914 8989 3502 Parts 7922 | . 46 14 106 3 . 30 102 67 109 41 282 147 344 41 26 105 22 46 271 114 242 9 28 . 49 163 3 181 126 18 26 209 115 170 50 75 146 23 323 204 228 528 . 429 289 414 135 468 208 603 330 214 Haulers Intercepted 63 | . 2 . 4 . . . 6 . . . 2 . 2 . . . . . 5 . 2 . . . . 3 . 2 . . . 8 . 2 . . . . 8 . . . . 1 . . . 6 . 10 . . Recyclers Shooed 4 | . . . . . . 1 1 . . . . . . . . . . . . . . . . . . 1 . . 1 . . . . . . . . . . . . . . . . . . . . . . . Parts Field Recycled . | . . . . . . . . . . . . . . . . . . . . . . . . . . . . . . . . . . . . . . . . . . . . . . . . . . . . . Retrieved Matter . | . . . . . . . . . . . . . . . . . . . . . . . . . . . . . . . . . . . . . . . . . . . . . . . . . . . . . Parts Self-Destructed 265 | . . . . . . . . . . . . . . 32 15 . . 35 . . . 5 22 . 38 . . . . . . . . . 44 59 . 15 . . . . . . . . . . . . . . Prevented 5 | . . . . . . . . . . . . . . 1 . . . 1 . . . . 1 . . . . . . . . . . . 2 . . . . . . . . . . . . . . . . . Kills | -11 -10 -10 -9 -9 -9 -8 -8 -8 -8 -8 -7 -7 -7 -7 -7 -7 -7 -6 -6 -6 -6 -6 -6 -6 -5 -5 -5 -5 -5 -5 -5 -5 -5 -4 -4 -4 -4 -3 -3 -3 -3 -3 -3 -2 -2 -2 -2 -1 -1 -1 -1 -1 ------- Run | Yrd Mat Min Mat Min Exi Min Mat Gar Mat Gar Fac Gar Fac Low Low Zio Dee Pro Fac Gar Fac Low Low Dat Pro Fac Was Fac Ext Cet Arc Hub Gar Fac Upp Upp War Pro Res Gar Res Arm Lab Res Tes Sec Gar Acc Gar Acc Com Ac0 Combat Hostiles Destroyed 3596 | . 24 14 61 . . 13 91 34 77 37 171 60 186 23 8 10 12 29 150 41 140 6 14 . 26 77 5 143 29 21 7 63 59 174 22 31 60 19 139 72 160 180 . 141 152 163 47 160 71 200 125 49 Melee 2165 | . 19 3 18 . . 2 11 17 8 6 40 57 50 7 8 3 2 14 30 41 35 2 10 . 12 28 . 19 19 7 . 56 45 40 14 15 44 8 75 66 46 180 . 141 152 163 47 160 71 200 125 49 Guns 2 | . 2 . . . . . . . . . . . . . . . . . . . . . . . . . . . . . . . . . . . . . . . . . . . . . . . . . . . AOE 1356 | . . 5 30 . . 10 61 6 56 24 131 3 136 16 . 7 10 15 120 . 105 4 4 . 14 49 5 124 10 14 7 7 14 134 8 16 16 11 64 6 114 . . . . . . . . . . . Classes Destroyed 39 | . 9 2 4 . . . 1 3 . 1 1 . . 1 2 2 1 . 1 . . 1 . . . . 1 . . 1 . 1 . . . . 1 . 2 . . . . 1 2 . . . . . 1 . Worker 107 | . 6 . 4 2 . 2 7 . 2 . 2 . 4 . . . . . 10 . 4 . . . . 17 . 1 8 . . 16 . . . . . . 7 . . . . 3 . . . 6 . 6 . . Builder 63 | . 1 2 6 1 . 3 4 . 2 . . . 4 . . . . . 2 . 1 . . . . 4 . . 5 . . 10 . . . . . . 5 . . . . 1 . . . 6 . 6 . . Tunneler 26 | . 2 5 2 2 . 5 1 . . . . . 1 . . . . . 4 . 2 . . . . 1 . . 1 . . . . . . . . . . . . . . . . . . . . . . . Hauler 63 | . 2 . 4 . . . 6 . . . 2 . 2 . . . . . 5 . 2 . . . . 3 . 2 . . . 8 . 2 . . . . 8 . . . . 1 . . . 6 . 10 . . Recycler 47 | . 1 . 2 2 . 3 6 . . . 2 . 3 . . . . . 4 . . . . . . 4 . 1 7 . . 4 . . . . . . . . 1 . . 4 . . . 2 . . 1 . Minesweeper 7 | . . . . . . . . . . . . . . 2 1 . . 2 . . . . . . . . . . . . . . . . 1 1 . . . . . . . . . . . . . . . . Mechanic 114 | . . 2 4 . . . 4 . 3 . 12 . 9 . . . . . 5 . 10 . . . . 2 . 14 . 1 . . . 13 . 1 . . 5 . 7 3 . . 10 1 . 6 . 2 . . Operator 45 | . 1 . 4 . . . 3 . 1 . 4 1 3 . . . . . 3 . 5 . . . . 1 . 1 2 . . 2 . 1 . . . . 2 . 1 1 . 2 . . . 2 . 4 1 . Drone 9 | . . . . . . . . . . . 2 . . . . . . . . . . . . . . . . . . . . . . 1 . . . . . . . 2 . 4 . . . . . . . . Watcher 121 | . 3 . 5 . . . 5 . 4 . 8 . 7 . . . . . 6 . 5 . . . . 1 . 4 2 2 . 5 . 4 . . . . 12 . 3 4 . 9 3 5 1 7 . 10 6 . Swarmer 396 | . 6 2 16 . . 7 9 4 8 7 15 10 4 10 4 . . 7 6 14 10 4 4 . 12 8 . 7 5 . . 10 20 14 9 7 1 8 6 19 8 15 . 13 5 3 3 10 16 15 35 . Cutter 18 | . . . . . . . . . . 3 . . . . . . . . . . . . . . . . . . . . . 3 . . . . . . . . . 4 . . . . . 3 4 . 1 . Saboteur 122 | . . . . . . . . . . . . . . . . . . . 5 3 8 . . . . 3 . 7 . . . . 6 8 . . 4 . 7 2 14 15 . 7 4 11 . 11 . 7 . . Grunt 1243 | . 18 6 28 . . 5 38 11 37 11 63 28 73 5 3 . . 11 66 12 58 . 1 . 8 42 . 57 2 . 7 30 13 56 10 13 2 5 56 17 61 48 . 53 51 56 26 49 22 64 21 . Brawler 208 | . . . 4 . . 1 11 . 6 4 8 3 10 . . . . 5 12 1 11 . 1 . . 6 . 3 1 1 . 2 . 18 . 3 2 3 4 . 12 14 . 4 21 10 1 12 1 8 5 . Duelist 189 | . . . 4 . . . 6 . 6 2 12 2 9 5 . . . 3 12 1 8 . . . . 5 . 7 . . . 1 4 11 . 4 1 1 5 3 8 5 . 11 12 8 . 9 . 20 4 . Protector 157 | . . . 1 . . . 5 . 7 . 14 . 18 . . . . 1 13 . 6 . . . . 4 . 8 1 1 . 1 . 11 . . 1 1 6 . 8 5 . 2 13 11 . 5 1 11 2 . Researcher 1 | . . . . . . . . . . . . . . . . . . . . . . . . . . . . . . . . . . . . . . . . . . . . . 1 . . . . . . . Sentry 285 | . . . 8 . . . 21 9 13 3 7 5 17 2 . . . 2 17 4 10 1 . . 2 3 . 1 9 4 . 7 11 7 1 2 . 1 11 11 4 5 . 14 10 17 4 21 5 15 1 . Demolisher 11 | . . . . . . . . . . . . . . . . . . . . . . . . . . . . . . 1 . . . . . . . . . . . 1 . . . . . . 1 . 8 . Specialist 17 | . . . . . . . . 3 . . . . . . . . . . . . . . . . . . . . . . . . . . . . . . . 5 . . . . . . 3 . 1 2 3 . Hunter 348 | . . . . . . . 1 1 . 1 36 6 33 . . . . . 13 6 22 . 2 . 2 6 . 30 . 3 . 3 4 26 . . 3 . 19 8 18 18 . 16 11 10 5 10 9 13 13 . Programmer 308 | . . . . . . . . 5 . 4 14 3 22 1 . . . . 6 . 7 . 1 . 1 . . 23 3 5 . 4 . 22 2 1 . . 22 6 21 37 . 9 11 18 4 17 5 20 14 . Heavy 11 | . . . . . . . . . . . . . . . . . . . . . . . . . . . . . . . . 2 . . . . . . . . . . . 4 . . . 1 . 4 . . Q-Series 2 | . . . . . . . . . . . . . . . . . . . . . . . . . . . . . . . . . . . . . . . . . . . . 2 . . . . . . . . Behemoth 29 | . . . . . . . . 1 . 2 . . . . . . . . . . . . . . 1 . . . 2 . . . 1 . . 1 . . . 1 . 1 . 1 . 2 1 . 6 7 2 . Compactor 5 | . . . . . . . . . . . . . . . . . . . . . . . . . . . 5 . . . . . . . . . . . . . . . . . . . . . . . . . Cetus Guard 6 | . . . . . . . . . . . . . . . . . . . . . . . . . . . . . . 6 . . . . . . . . . . . . . . . . . . . . . . S7 Guard 2 | . . . . . . . . . . . . . . . . . . . . . . . . . . . . . . . . . . . . . . . . . . . . . . 2 . . . . . . M Guard 2 | . . . . . . . . . . . . . . . . . . . . . . . . . . . . . . . . . . . . . . . . . . . . . . . . . . . 2 . Enhanced Grunt 32 | . . . . . . . . . . . . . . . . . . . . . . . . . . . . . . . . . . . . . . . . . . . . . . . . . . . . 32 Enhanced Sentry 5 | . . . . . . . . . . . . . . . . . . . . . . . . . . . . . . . . . . . . . . . . . . . . . . . . . . . . 5 Enhanced Hunter 5 | . . . . . . . . . . . . . . . . . . . . . . . . . . . . . . . . . . . . . . . . . . . . . . . . . . . . 5 Combat Programmer 2 | . . . . . . . . . . . . . . . . . . . . . . . . . . . . . . . . . . . . . . . . . . . . . . . . . . . 2 . Investigator 12 | . . . . . . . . . . . . . . . . . . . . . . . . . . . . . . . . . . . . . . . 1 . 2 2 . 1 2 . . 2 . 2 . . Striker 38 | . . . . . . . . . . . . . . . . . . . . . . . . . . . . . . . . . . . . . . . 1 . 2 5 . . 7 7 . 7 . 8 1 . Executioner 36 | . . . . . . . . . . . . . . . . . . . . . . . . . . . . . . . . . . . . . 2 . 2 . 4 5 . 1 5 6 . 5 . 6 . . Alpha 7 4 | . . . . . . . . . . . . . . . . . . . . . . . . . . . . . . . . . . . . . . . . . . . . . 1 2 . . . . 1 . Fortress 1 | . . . . . . . . . . . . . . . . . . . . . . . . . . . . . . . . . . . . . . . . . . . . . 1 . . . . . . . Zionite 61 | . . . . . . . . . . . . . . . . 61 . . . . . . . . . . . . . . . . . . . . . . . . . . . . . . . . . . . . Z-Technician 5 | . . . . . . . . . . . . . . . . . 5 . . . . . . . . . . . . . . . . . . . . . . . . . . . . . . . . . . . Z-Light 9 | . . . . . . . . . . . . . . . . . 9 . . . . . . . . . . . . . . . . . . . . . . . . . . . . . . . . . . . Packrat 2 | . . . . . . . . . . . . . . . . . . . . . . . . . . . . . . . . . . . . 2 . . . . . . . . . . . . . . . . Samaritan 2 | . . . . . . . . . . . . . . . 1 . . . . . . 1 . . . . . . . . . . . . . . . . . . . . . . . . . . . . . . Tinkerer 15 | . . . . . . . . . . . . . . . . 9 . . . . . . . . . . . . . . . . . . . . 6 . . . . . . . . . . . . . . . Thief 1 | . . . . . . . . . . . . . . . . . . . . . . 1 . . . . . . . . . . . . . . . . . . . . . . . . . . . . . . Assembled 9 | . . 6 . . . . . . . . . . . . . . 3 . . . . . . . . . . . . . . . . . . . . . . . . . . . . . . . . . . . Surgeon 5 | . . . . . . . . . . . . . . . . 2 . . . . . . . . . . . . . . . . . . . . 3 . . . . . . . . . . . . . . . Thug 32 | . . . . . . . . . . . . 1 . . 3 . . . . . . . 4 . . . . . 4 . . . . . . . 19 . . . . . . . . . . . . . 1 . Savage 7 | . . . . . . . . . . . . . . . . . . . . . . . . . . . . . 1 . . . . . . . 6 . . . . . . . . . . . . . . . Butcher 7 | . . . . . . . . . . . . 2 . . . 1 . . . . . . . . . . . . . . . . . . . . 3 . . . . . . . . . . . . . 1 . Bouncer 4 | . . . . . . . . . . . . . . . . . . . . . . . . . . . . . . . . . . . . . 4 . . . . . . . . . . . . . . . Guerrilla 1 | . . . . . . . . . . . . . . . . . . . . . . . . . . . . . 1 . . . . . . . . . . . . . . . . . . . . . . . Wizard 4 | . . . . . . . . . . . . . . . . . . . . . . . . . . . . . . . . . . . . . 4 . . . . . . . . . . . . . . . Marauder 2 | . . . . . . . . . . . . . . . . 2 . . . . . . . . . . . . . . . . . . . . . . . . . . . . . . . . . . . . Fireman 1 | . . . . . . . . . . . . . . . . . . . . . . . . . . . . . . . . . . . . . . . . . . . . . . . . . . . 1 . Mutant 18 | . . . . . . . . . . . . . . . 1 5 . . . . . . 1 . . . . . . . . . . . . . 6 . . . . . . . . . . . . . 5 . Commander 2 | . . . . . . . . . . . . . . . . . . . . . . . . . . . . . . . . . . . . . 2 . . . . . . . . . . . . . . . Best Kill Streak 66 | . 5 5 20 4 . 9 35 5 24 10 31 11 51 9 2 18 8 11 27 10 25 4 5 . 13 38 5 27 16 16 7 16 12 25 8 15 22 13 19 14 32 36 . 28 60 63 14 46 16 59 66 11 Combat Bots Only 54 | . 4 4 18 . . 4 34 5 24 10 25 11 48 9 2 2 6 11 25 10 23 4 5 . 13 22 5 24 9 15 7 7 12 23 8 15 13 13 18 14 30 34 . 27 54 35 14 42 16 36 43 11 Max Kills in Single Turn 13 | . 1 2 5 1 . 3 4 2 4 3 7 3 13 8 1 3 4 5 8 1 7 4 3 . 6 8 1 10 5 4 4 8 4 8 4 4 4 5 7 3 9 2 . 3 2 3 2 3 2 3 2 2 Gunslinging . | . . . . . . . . . . . . . . . . . . . . . . . . . . . . . . . . . . . . . . . . . . . . . . . . . . . . . Exploded 13 | . . 2 4 . . 3 4 2 3 3 6 3 13 8 . 1 3 5 8 . 6 4 3 . 6 6 1 9 4 4 4 3 4 6 4 4 4 5 6 3 8 . . . . . . . . . . . Melee 3 | . 1 1 1 . . 1 1 1 1 1 1 1 1 1 1 1 1 1 1 1 1 1 1 . 1 1 . 1 1 1 . 1 1 1 1 1 1 1 1 1 2 2 . 3 2 3 2 2 2 3 2 2 Uniques/NPCs Destroyed 11 | . . . . . . . . . . . . . . . . 2 . . . . . . . . . . . . . . . . . . . . . . . . . . . . . . . . . . 2 7 Imprinter (-7/Zion) 7V-RTL (-7/Zion) MAIN.C Shell (-1/Command) MAIN.C (-1/Command) A8 (-1/Access_0) A6 (-1/Access_0) A5 (-1/Access_0) A4 (-1/Access_0) A3 (-1/Access_0) A2 (-1/Access_0) Architect (-1/Access_0) Combat | -11 -10 -10 -9 -9 -9 -8 -8 -8 -8 -8 -7 -7 -7 -7 -7 -7 -7 -6 -6 -6 -6 -6 -6 -6 -5 -5 -5 -5 -5 -5 -5 -5 -5 -4 -4 -4 -4 -3 -3 -3 -3 -3 -3 -2 -2 -2 -2 -1 -1 -1 -1 -1 -------- Run | Yrd Mat Min Mat Min Exi Min Mat Gar Mat Gar Fac Gar Fac Low Low Zio Dee Pro Fac Gar Fac Low Low Dat Pro Fac Was Fac Ext Cet Arc Hub Gar Fac Upp Upp War Pro Res Gar Res Arm Lab Res Tes Sec Gar Acc Gar Acc Com Ac0 Hostile Shots Fired 9841 | . 111 69 200 . . 18 244 164 236 76 431 181 515 73 23 114 20 73 404 140 351 16 24 . 66 109 . 199 65 78 7 163 129 463 46 63 249 48 325 176 324 744 . 227 224 460 97 457 218 671 432 318 Missed 6046 | . 39 21 77 . . 4 123 71 132 34 237 97 255 33 7 61 6 28 233 71 209 12 10 . 32 57 . 129 35 42 2 88 63 292 27 39 136 25 184 99 223 517 . 162 144 330 66 346 164 489 347 248 Damage Taken 41791 | . 541 406 1040 15 . 165 1359 1049 1137 572 1989 705 2255 216 120 571 265 341 1210 412 1183 17 93 . 323 480 . 685 386 772 51 1246 730 1702 157 238 1520 349 1454 938 1396 3144 . 844 1007 1659 304 1529 627 2365 1102 1122 Core 33337 | . 431 338 844 13 . 138 1093 850 920 463 1572 551 1776 163 90 465 218 266 928 323 929 13 72 . 250 378 . 531 299 623 38 1008 572 1329 128 199 1215 275 1150 756 1111 2492 . 666 817 1344 244 1232 482 1915 885 942 Absorbed by Shields 31356 | . 129 161 434 6 . 64 526 396 396 163 850 462 1143 188 111 459 259 292 1103 450 1240 19 98 . 349 516 . 732 404 359 56 1070 682 1720 171 254 1448 246 1468 890 1008 1740 . 800 887 1551 322 1234 661 1812 957 1070 Redirected to Core 26839 | . 295 196 590 8 . 80 848 651 711 357 1265 461 1477 145 82 332 166 230 770 229 732 7 72 . 232 328 . 486 279 480 38 820 490 1197 92 133 967 251 956 569 953 2212 . 587 624 1028 190 995 449 1438 711 630 Ignored by Resistances 5326 | . 43 47 124 2 . 17 126 89 113 49 207 79 237 38 16 59 36 45 194 67 168 4 13 . 45 65 . 81 54 76 9 92 108 209 25 39 182 38 165 128 108 260 . 87 103 207 96 236 118 539 324 159 Regen/Repaired (Parts) 266 | . 86 . . . . . . . 113 . . . . . . . . . . . . . . . . . . 67 . . . . . . . . . . . . . . . . . . . . . . . . Core Remaining (%) 95 | 100 . 100 . . . 94 . . . 100 . . . . . . . 87 . . . . . . 91 . . . . . . . 100 . . . . 93 . . . . 100 . . . 100 . . . . 87 Volleys Fired 1210 | . 116 6 25 4 . 6 88 15 67 41 142 3 69 4 . 61 7 5 81 1 62 2 2 . 5 30 11 55 16 19 5 27 20 77 2 12 14 5 36 7 53 . . . . . . . 1 . 8 . Largest 1 | . 1 1 1 1 . 1 1 1 1 1 1 1 1 1 . 1 1 1 1 1 1 1 1 . 1 1 1 1 1 1 1 1 1 1 1 1 1 1 1 1 1 . . . . . . . 1 . 1 . Hottest 65 | . 20 33 33 33 . 33 33 33 33 33 39 39 45 45 . 45 45 45 45 45 45 45 45 . 45 45 45 45 45 45 45 57 45 45 45 45 45 45 45 45 45 . . . . . . . 49 . 65 . Shots Fired 1214 | . 116 6 25 4 . 6 88 15 66 41 142 3 68 4 . 61 7 5 81 1 63 2 2 . 5 30 11 56 16 19 5 27 20 77 2 12 16 6 37 7 53 . . . . . . . 1 . 8 . Gun 133 | . 116 . . . . . . . . . . . . . . . . . . . . . . . . . . . . . . . 8 . . . . . . 1 . . . . . . . . . . 8 . Cannon 10 | . . . . . . . . . . . . . . . . . . . . . . . . . . . . . . . . 10 . . . . . . . . . . . . . . . . . . . . Launcher 1071 | . . 6 25 4 . 6 88 15 66 41 142 3 68 4 . 61 7 5 81 1 63 2 2 . 5 30 11 56 16 19 5 17 12 77 2 12 16 6 37 6 53 . . . . . . . 1 . . . Special . | . . . . . . . . . . . . . . . . . . . . . . . . . . . . . . . . . . . . . . . . . . . . . . . . . . . . . Kinetic 135 | . 116 . . . . . . . . . . . . . . . . . . . . . . . . . . . . . . 10 8 . . . . . . 1 . . . . . . . . . . . . Thermal . | . . . . . . . . . . . . . . . . . . . . . . . . . . . . . . . . . . . . . . . . . . . . . . . . . . . . . Explosive 1071 | . . 6 25 4 . 6 88 15 66 41 142 3 68 4 . 61 7 5 81 1 63 2 2 . 5 30 11 56 16 19 5 17 12 77 2 12 16 6 37 6 53 . . . . . . . 1 . . . Electromagnetic 8 | . . . . . . . . . . . . . . . . . . . . . . . . . . . . . . . . . . . . . . . . . . . . . . . . . . . 8 . Robot Hit Streak 35 | . 6 3 8 . . 4 13 2 9 35 16 1 30 10 . 20 2 4 5 . 9 1 3 . 3 6 8 7 8 7 4 10 9 9 2 10 4 3 11 6 11 . . . . . . . . . . . Robot Miss Streak 21 | . 1 1 1 . . 2 1 2 1 . 2 . 3 1 . 11 2 4 5 . 4 3 2 . 5 6 3 21 3 6 2 7 9 10 3 5 4 3 6 4 5 . . . . . . . . . . . Penetration Max . | . . . . . . . . . . . . . . . . . . . . . . . . . . . . . . . . . . . . . . . . . . . . . . . . . . . . . Secondary Targets . | . . . . . . . . . . . . . . . . . . . . . . . . . . . . . . . . . . . . . . . . . . . . . . . . . . . . . Shots Hit Robots 6493 | . 75 50 133 6 . 28 135 101 91 72 156 132 138 22 26 82 6 38 130 86 115 9 18 . 37 97 11 73 64 29 8 175 119 148 31 57 139 31 233 165 138 445 . 288 400 395 113 390 152 544 317 245 Core Hits 9913 | . 19 14 83 2 . 18 204 37 164 59 410 68 795 60 17 170 45 73 696 49 605 12 15 . 46 338 18 740 118 245 66 166 99 1068 30 107 169 57 582 95 840 212 . 148 178 186 50 178 70 252 139 101 Critical Kills 16 | . 3 . 6 . . 1 2 1 3 . . . . . . . . . . . . . . . . . . . . . . . . . . . . . . . . . . . . . . . . . . . Critical Parts Destroyed 91 | . 16 6 15 1 . 1 18 16 8 9 1 . . . . . . . . . . . . . . . . . . . . . . . . . . . . . . . . . . . . . . . . . Critical Strikes 814 | . 19 6 23 1 . 2 21 18 11 9 9 24 9 2 2 7 . 5 10 8 13 1 1 . 4 5 . 3 7 4 . 22 13 15 3 1 23 3 16 24 9 46 . 53 55 65 14 55 19 80 32 42 Smash 111 | . 19 6 23 1 . 2 21 18 11 9 1 . . . . . . . . . . . . . . . . . . . . . . . . . . . . . . . . . . . . . . . . . Sever 392 | . . . . . . . . . . . 8 24 9 2 2 7 . 5 10 8 13 1 1 . 4 5 . 3 7 4 . 22 13 15 3 1 23 2 13 20 8 36 . 8 15 22 4 20 3 23 10 18 Sunder 309 | . . . . . . . . . . . . . . . . . . . . . . . . . . . . . . . . . . . . . . 1 3 4 1 10 . 45 40 43 10 33 16 57 22 24 Melee Attacks 8690 | . 120 52 170 10 . 29 147 131 87 69 166 156 248 29 41 55 7 41 250 106 199 7 20 . 37 128 . 62 69 19 6 301 163 120 38 50 146 31 322 238 146 586 . 480 579 517 210 543 269 735 424 331 Impact 818 | . 120 52 170 10 . 29 147 131 87 69 3 . . . . . . . . . . . . . . . . . . . . . . . . . . . . . . . . . . . . . . . . . Slashing 5824 | . . . . . . . . . . . 163 156 248 29 41 55 7 41 250 106 199 7 20 . 37 128 . 62 69 19 6 301 163 120 38 50 142 25 244 181 117 511 . 255 326 294 112 306 134 420 247 195 Piercing . | . . . . . . . . . . . . . . . . . . . . . . . . . . . . . . . . . . . . . . . . . . . . . . . . . . . . . Entropic 2048 | . . . . . . . . . . . . . . . . . . . . . . . . . . . . . . . . . . . . . 4 6 78 57 29 75 . 225 253 223 98 237 135 315 177 136 Sneak Attacks 646 | . 13 10 16 6 . 13 29 9 2 2 11 25 16 3 7 7 . 8 27 22 2 2 5 . . 20 . 3 20 . . 24 13 8 2 10 11 2 30 34 10 17 . 33 21 21 14 34 9 45 16 14 Combat Hostiles 247 | . 1 . . . . . 6 6 . 2 4 5 5 1 2 . . . 4 8 1 1 5 . . 5 . . 2 . . 1 5 4 1 1 4 . 15 14 7 14 . 23 11 20 13 8 3 16 15 14 Follow-up Attacks 1494 | . . . . . . . . . . . . . . . . . . . . . . . . . . . . . . . . . . . . . 2 5 29 27 16 153 . 107 165 191 46 170 47 249 147 140 Damage Inflicted 828221 | . 2316 1865 7258 484 . 2207 14457 7046 9380 5394 26527 10383 27162 2593 2051 8333 3259 3780 25629 7758 22359 1080 1629 . 3358 14296 2478 22425 7411 5605 1947 15407 10975 34184 2940 6810 13219 4272 33374 18167 32188 42453 . 37902 50070 48283 16154 49168 22513 68693 43850 27129 Guns 92 | . 92 . . . . . . . . . . . . . . . . . . . . . . . . . . . . . . . . . . . . . . . . . . . . . . . . . . . Cannons . | . . . . . . . . . . . . . . . . . . . . . . . . . . . . . . . . . . . . . . . . . . . . . . . . . . . . . Explosions 223601 | . . 303 2963 56 . 651 8498 853 6498 2846 20109 257 19408 1223 . 5342 2832 1572 18019 . 16020 507 229 . 1018 7741 2478 19394 2680 4288 1075 2649 1923 26995 590 2373 2929 1780 13066 1256 23062 . . . . . . . . 118 . . Melee 604460 | . 2224 1562 4295 428 . 1556 5959 6193 2882 2548 6418 10126 7754 1370 2051 2991 427 2208 7610 7758 6339 573 1400 . 2340 6555 . 3031 4731 1317 872 12758 9052 7189 2350 4437 10290 2492 20308 16911 9126 42385 . 37902 50070 48283 16154 49168 22513 68575 43850 27129 Ramming 68 | . . . . . . . . . . . . . . . . . . . . . . . . . . . . . . . . . . . . . . . . . . 68 . . . . . . . . . . Kinetic 92 | . 92 . . . . . . . . . . . . . . . . . . . . . . . . . . . . . . . . . . . . . . . . . . . . . . . . . . . Thermal 5274 | . . . . 56 . . 76 . 143 . 1059 . 446 . . . 1730 . 695 . 458 . . . . 98 . 39 . . . . . 474 . . . . . . . . . . . . . . . . . . Explosive 217629 | . . 303 2963 . . 651 8371 853 6353 2846 19050 257 18935 1223 . 5342 1102 1572 17324 . 15562 507 229 . 1018 7643 2478 19330 2680 4288 1075 2056 1923 26521 590 2373 2929 1780 13066 1256 23062 . . . . . . . . 118 . . Electromagnetic 698 | . . . . . . . 51 . 2 . . . 27 . . . . . . . . . . . . . . 25 . . . 593 . . . . . . . . . . . . . . . . . . . . Impact 27718 | . 2224 1562 4295 428 . 1556 5959 6193 2882 2548 71 . . . . . . . . . . . . . . . . . . . . . . . . . . . . . . . . . . . . . . . . . Slashing 315201 | . . . . . . . . . . . 6347 10126 7754 1370 2051 2991 427 2208 7610 7758 6339 573 1400 . 2340 6555 . 3031 4731 1317 872 12758 9052 7189 2350 4437 10059 1825 16299 12977 7422 36715 . 10431 15072 17457 4767 14252 4768 22286 17566 11719 Piercing . | . . . . . . . . . . . . . . . . . . . . . . . . . . . . . . . . . . . . . . . . . . . . . . . . . . . . . Entropic 261541 | . . . . . . . . . . . . . . . . . . . . . . . . . . . . . . . . . . . . . 231 667 4009 3934 1704 5670 . 27471 34998 30826 11387 34916 17745 46289 26284 15410 Highest Corruption 11 | . 1 1 . . . . . 5 5 5 1 . 6 . . 1 1 1 2 . 5 . . . . . 7 11 1 . . 8 8 3 . . 5 4 5 . 3 6 . 4 1 2 2 . . . . . Average Corruption 3 | . 1 1 . . . . . 4 5 5 1 . 2 . . 1 1 1 1 . 4 . . . . . 7 7 1 . . 6 5 1 . . 3 4 2 . 1 3 . 2 1 1 2 . . . . . Corruption Purged 86 | . . . . . . . . . . . 1 . 8 . . . . . 2 . 5 . . . . . . 14 1 . . 2 8 11 . . 3 . 9 . . 17 . 5 . . . . . . . . Corruption Blocked 28 | . . . . . . . . . . . . . . . . . . . . . . . . . . . . . . . . . . . . . 6 . . . . . . . . . . . . . 22 . Effects 325 | . 1 1 . . . . . 10 22 16 6 . 38 . . 2 4 8 . . 8 . . . . . 1 52 . . . 5 5 9 . . 23 10 26 . 14 33 . 18 2 6 5 . . . . . Message Errors 98 | . 1 . . . . . . 1 7 6 2 . 17 . . . 1 4 . . 3 . . . . . . 13 . . . . 2 2 . . 8 3 5 . 4 7 . 8 . 3 1 . . . . . Matter Fused 63 | . . . . . . . . 4 6 4 . . 2 . . . . 1 . . 1 . . . . . . 13 . . . 2 1 3 . . 4 4 4 . 2 7 . 3 . . 2 . . . . . Heat Flow Errors 46 | . . . . . . . . . 2 2 . . 8 . . . . . . . 2 . . . . . . 10 . . . . 1 1 . . 1 1 7 . 3 6 . . 1 1 . . . . . . Energy Discharges 43 | . . 1 . . . . . 2 3 2 2 . 4 . . . 1 1 . . . . . . . . . 2 . . . 2 1 1 . . 2 1 6 . . 5 . 5 1 1 . . . . . . Parts Rejected 5 | . . . . . . . . . . . 1 . . . . . . . . . . . . . . . . 2 . . . . . 1 . . . . . . . . . . . . 1 . . . . . Parts Fused 5 | . . . . . . . . 1 1 . . . . . . 1 1 . . . . . . . . . . . . . . . . . . . . . . . . . . 1 . . . . . . . . Data Loss (minor) 28 | . . . . . . . . 1 1 1 1 . 3 . . 1 . 1 . . 1 . . . . . . 6 . . . 1 . 1 . . 2 . 2 . 1 3 . 1 . 1 . . . . . . Data Loss (major) 15 | . . . . . . . . 1 . . . . 2 . . . 1 1 . . . . . . . . 1 2 . . . . . . . . 1 . . . 1 4 . . . . 1 . . . . . Misfires 9 | . . . . . . . . . . . . . . . . . . . . . 1 . . . . . . 2 . . . . . . . . 3 1 1 . 1 . . . . . . . . . . . Alerts 8 | . . . . . . . . . 1 1 . . 1 . . . . . . . . . . . . . . 1 . . . . . . . . 1 . 1 . 1 1 . . . . . . . . . . Weapon Failures 5 | . . . . . . . . . 1 . . . 1 . . . . . . . . . . . . . . 1 . . . . . . . . 1 . . . 1 . . . . . . . . . . . Overload Shots . | . . . . . . . . . . . . . . . . . . . . . . . . . . . . . . . . . . . . . . . . . . . . . . . . . . . . . Overflow Damage 81706 | . 702 517 1225 235 . 722 2671 1622 929 902 1248 751 766 314 107 446 442 191 1313 622 644 211 120 . 223 853 . 282 1012 131 260 1924 627 631 199 263 990 284 2386 2387 943 4393 . 4884 6104 5032 2761 8127 3422 8666 6663 1559 Projectiles . | . . . . . . . . . . . . . . . . . . . . . . . . . . . . . . . . . . . . . . . . . . . . . . . . . . . . . Explosions 1816 | . . 15 32 . . 46 51 . 83 26 512 . 242 6 . 4 320 . 175 . 19 34 . . 5 5 . 70 . 41 . 9 6 28 . . . 37 27 . 23 . . . . . . . . . . . Melee 79890 | . 702 502 1193 235 . 676 2620 1622 846 876 736 751 524 308 107 442 122 191 1138 622 625 177 120 . 218 848 . 212 1012 90 260 1915 621 603 199 263 990 247 2359 2387 920 4393 . 4884 6104 5032 2761 8127 3422 8666 6663 1559 Knockbacks 70 | . 9 8 8 4 . 2 12 11 8 8 . . . . . . . . . . . . . . . . . . . . . . . . . . . . . . . . . . . . . . . . . . Impact 68 | . 8 8 8 4 . 2 12 10 8 8 . . . . . . . . . . . . . . . . . . . . . . . . . . . . . . . . . . . . . . . . . . Kinetic . | . . . . . . . . . . . . . . . . . . . . . . . . . . . . . . . . . . . . . . . . . . . . . . . . . . . . . Secondary 2 | . 1 . . . . . . 1 . . . . . . . . . . . . . . . . . . . . . . . . . . . . . . . . . . . . . . . . . . . . Self-Inflicted Damage 4267 | . . 24 42 23 . 41 62 94 145 94 212 39 271 . . 164 8 . 404 8 467 8 8 . 35 32 . 116 61 . 7 380 155 218 . 19 282 71 212 312 102 34 . . . . . . . 117 . . Shots 170 | . . 1 2 1 . 2 2 3 3 4 7 1 15 . . 10 1 . 18 1 16 1 1 . 2 2 . 7 3 . 1 5 8 11 . 1 15 3 4 13 5 . . . . . . . . 1 . . Rammed 1 | . . . . . . . . . . . . . . . . . . . . . . . . . . . . . . . . . . . . . . . . . . 1 . . . . . . . . . . Targets Rammed 1 | . . . . . . . . . . . . . . . . . . . . . . . . . . . . . . . . . . . . . . . . . . 1 . . . . . . . . . . Kicked . | . . . . . . . . . . . . . . . . . . . . . . . . . . . . . . . . . . . . . . . . . . . . . . . . . . . . . Crushed . | . . . . . . . . . . . . . . . . . . . . . . . . . . . . . . . . . . . . . . . . . . . . . . . . . . . . . Highest Temperature 502 | . . . . . . . 10 3 236 255 244 . 208 . . 20 10 . 26 . 150 2 . . 8 27 502 259 16 28 . 296 175 178 . 9 255 118 191 26 136 343 . 6 200 106 . 46 . 3 18 37 Average Temperature 54 | . . . . . . . 3 3 62 52 90 . 75 . . 10 5 . 8 . 23 2 . . 8 11 202 75 7 19 . 79 77 38 . 6 104 88 20 17 19 53 . 3 11 12 . 46 . 3 18 37 Received Heat Transfer 6700 | . 205 140 389 . . 106 584 234 485 168 338 183 530 42 . 53 48 72 228 71 265 7 12 . 60 121 . 106 42 101 12 135 110 106 26 40 125 41 125 129 134 237 . 44 61 185 28 155 76 241 70 30 Effects 2 | . . . . . . . . . . . . . . . . . . . . . . . . . . . . . . . . . . . . . 1 . . . . 1 . . . . . . . . . . Energy Bleed 1 | . . . . . . . . . . . . . . . . . . . . . . . . . . . . . . . . . . . . . . . . . . 1 . . . . . . . . . . Interference 1 | . . . . . . . . . . . . . . . . . . . . . . . . . . . . . . . . . . . . . 1 . . . . . . . . . . . . . . . Siege Activations . | . . . . . . . . . . . . . . . . . . . . . . . . . . . . . . . . . . . . . . . . . . . . . . . . . . . . . Robots Corrupted . | . . . . . . . . . . . . . . . . . . . . . . . . . . . . . . . . . . . . . . . . . . . . . . . . . . . . . Combat Hostiles . | . . . . . . . . . . . . . . . . . . . . . . . . . . . . . . . . . . . . . . . . . . . . . . . . . . . . . Parts Fried 221 | . 30 11 46 8 . 14 44 25 22 8 4 . . 1 . . . . . . . . . . . . . 1 . . . 2 . . . . 1 . . . . . . . . 3 . . . . 1 . Impact Corruptions 341 | . 36 25 58 11 . 22 75 52 31 30 1 . . . . . . . . . . . . . . . . . . . . . . . . . . . . . . . . . . . . . . . . . Robots Melted . | . . . . . . . . . . . . . . . . . . . . . . . . . . . . . . . . . . . . . . . . . . . . . . . . . . . . . Combat Hostiles . | . . . . . . . . . . . . . . . . . . . . . . . . . . . . . . . . . . . . . . . . . . . . . . . . . . . . . Parts Melted 3 | . . . . . . . . . 1 . . . 1 . . . . . . . . . . . . . . . . . . . . . . . . . . . . 1 . . . . . . . . . . Heat Transferred 2552 | . . . . 50 . . 50 . 150 . 750 . 300 . . . . . 450 . 302 . . . . 50 . 50 . . . . . 400 . . . . . . . . . . . . . . . . . . Parts Sabotaged 16 | . . . . . . . . . . . . . . . . . . . . . . . . . . . . . . . . . . 3 . . . . . . . 10 . . . . . . . 3 . . Parts Stolen 1 | . . . . . . . . . . . . . . . . . . . . . . 1 . . . . . . . . . . . . . . . . . . . . . . . . . . . . . . Parts Stripped . | . . . . . . . . . . . . . . . . . . . . . . . . . . . . . . . . . . . . . . . . . . . . . . . . . . . . . Power Chain Reactions 4 | . . . . . . . . . . . 2 . . . . . . . . . . . . . . . . . . . . 1 . 1 . . . . . . . . . . . . . . . . . . Alert | -11 -10 -10 -9 -9 -9 -8 -8 -8 -8 -8 -7 -7 -7 -7 -7 -7 -7 -6 -6 -6 -6 -6 -6 -6 -5 -5 -5 -5 -5 -5 -5 -5 -5 -4 -4 -4 -4 -3 -3 -3 -3 -3 -3 -2 -2 -2 -2 -1 -1 -1 -1 -1 ------- Run | Yrd Mat Min Mat Min Exi Min Mat Gar Mat Gar Fac Gar Fac Low Low Zio Dee Pro Fac Gar Fac Low Low Dat Pro Fac Was Fac Ext Cet Arc Hub Gar Fac Upp Upp War Pro Res Gar Res Arm Lab Res Tes Sec Gar Acc Gar Acc Com Ac0 Peak Influence 14451 | . 1319 891 2544 1204 . 543 4163 4469 5359 5282 10893 9637 14451 . . . . . 8096 7360 11204 . . . . 3919 1561 6136 3471 2916 1420 3645 5472 7521 . . . . 4011 5749 6921 11341 . 3271 5895 7716 7382 9713 10092 12527 8725 . Initial 8016 | . . 472 276 1100 . . 211 2705 2178 3483 2772 7625 5058 . . . . . 273 5667 3864 . . . . 267 1371 1092 3006 1898 1166 497 2551 2872 . . . . 279 3008 3233 3633 . . 1839 3315 5787 4428 7770 6055 8016 . Average 4609 | . 780 720 1218 1174 . 215 2087 3703 3274 4369 7246 8736 9913 . . . . . 3942 6544 7661 . . . . 1814 1469 4661 2868 2327 1303 1082 3977 5085 . . . . 1548 4276 4367 7267 . 1286 4020 5419 6475 7186 8952 9611 8350 . Maximum Alert Level 5 | . 4 3 5 4 . 2 5 5 5 5 5 5 5 . . . . . 5 5 5 . . . . 5 4 5 5 5 4 5 5 5 . . . . 5 5 5 5 . 5 5 5 5 5 5 5 5 . Low Security (%) 2 | 100 12 . . . . 49 . . . . . . . . . . . . . . . . . . . . . . . . . 8 . . . . . . 9 . . . . 9 . . . . . . . . Level 1 3 | . 5 . 13 . . 45 2 . . . . . . . . . . . 3 . . . . . . 5 . . . . . 3 . . . . . . 18 . . . . 4 . . . . . . . . Level 2 4 | . 19 43 21 . . 5 5 . . . . . . . . . . . 3 . . . . . . 14 . . . . . 19 . . . . . . 7 . . . . 18 . . . . . . . . Level 3 7 | . 41 56 13 . . . 9 . . . . . . . . . . . 13 . . . . . . 18 . 1 . . . 40 . . . . . . 5 . . . . 23 . . . . . . . . Level 4 4 | . 20 . 20 100 . . 7 . . . . . . . . . . . 4 . . . . . . 11 100 1 . . 100 7 . . . . . . 14 . . . . 9 . . . . . . . . Level 5 36 | . . . 13 . . . 55 100 49 100 22 100 39 . . . . . 35 100 33 . . . . 48 . 2 100 9 . 19 100 17 . . . . 19 100 31 16 . 4 . . 100 11 100 15 85 . High Security 36 | . . . 19 . . . 19 . 50 . 77 . 60 . . . . . 37 . 66 . . . . 1 . 94 . 90 . . . 82 . . . . 25 . 68 83 . 29 . . . 88 . 84 14 . Max Security 4 | . . . . . . . . . . . . . . . . . . . . . . . . . . . . . . . . . . . . . . . . . . . . . 99 99 . . . . . . Sterilizations 17 | . . . 1 . . . 1 . 1 . 1 . 1 . . . . . 1 . 1 . . . . . . 1 . . . . . 1 . . . . 1 . 1 1 . 1 1 1 . 1 . 1 . . Squads Dispatched 652 | . 8 2 14 . . . 21 . 14 . 41 . 56 . . . . 1 43 . 38 . . . . 12 . 41 2 4 . 25 . 38 . 1 . 1 41 . 38 58 . 23 30 30 . 34 . 29 7 . Investigation 92 | . 7 . 5 . . . 4 . 2 . 4 . 11 . . . . . 13 . 6 . . . . 3 . 4 . . . 2 . 3 . . . . 8 . 4 9 . 6 . . . 1 . . . . Extermination 10 | . . . . . . . . . . . . . . . . . . . 1 . 1 . . . . . . . . . . 2 . 1 . . . . 3 . . . . 2 . . . . . . . . Reinforcement 40 | . 1 . 3 . . . 3 . 2 . . . 1 . . . . . 2 . 3 . . . . . . 1 1 . . 7 . 1 . . . . 2 . 1 3 . 1 . . . 3 . 3 2 . Assault 474 | . . 2 6 . . . 12 . 10 . 36 . 41 . . . . 1 24 . 27 . . . . 9 . 33 1 4 . 5 . 33 . 1 . 1 20 . 33 46 . 14 30 30 . 24 . 26 5 . Garrison 36 | . . . . . . . 2 . . . 1 . 3 . . . . . 3 . 1 . . . . . . 3 . . . 9 . . . . . . 8 . . . . . . . . 6 . . . . Intercept . | . . . . . . . . . . . . . . . . . . . . . . . . . . . . . . . . . . . . . . . . . . . . . . . . . . . . . Searches Triggered . | . . . . . . . . . . . . . . . . . . . . . . . . . . . . . . . . . . . . . . . . . . . . . . . . . . . . . Construction Impeded 8 | . . . 2 . . . 1 . 1 . . . . . . . . . . . 3 . . . . . . . . . . 1 . . . . . . . . . . . . . . . . . . . . Haulers Reinforced 5 | . . . . . . . . . . . . . . . . . . . 1 . . . . . . . . . . . . 2 . . . . . . 2 . . . . . . . . . . . . . Active Scanning Responses . | . . . . . . . . . . . . . . . . . . . . . . . . . . . . . . . . . . . . . . . . . . . . . . . . . . . . . Cargo Convoy Interrupts 2 | . . . . . . . . . . . . . . . . . . . . . 1 . . . . . . . . . . . . . . . . . . . . . . 1 . . . . . . . . Stealth | -11 -10 -10 -9 -9 -9 -8 -8 -8 -8 -8 -7 -7 -7 -7 -7 -7 -7 -6 -6 -6 -6 -6 -6 -6 -5 -5 -5 -5 -5 -5 -5 -5 -5 -4 -4 -4 -4 -3 -3 -3 -3 -3 -3 -2 -2 -2 -2 -1 -1 -1 -1 -1 --------- Run | Yrd Mat Min Mat Min Exi Min Mat Gar Mat Gar Fac Gar Fac Low Low Zio Dee Pro Fac Gar Fac Low Low Dat Pro Fac Was Fac Ext Cet Arc Hub Gar Fac Upp Upp War Pro Res Gar Res Arm Lab Res Tes Sec Gar Acc Gar Acc Com Ac0 Distress Signals 71 | . 3 . 3 . . . 3 . 2 . 6 . 3 . . . . . 1 . 1 . . . . 1 . . 2 . . 3 . . . . 2 . 3 . 5 7 . 2 1 2 . 1 . 1 19 . Communications Jammed . | . . . . . . . . . . . . . . . . . . . . . . . . . . . . . . . . . . . . . . . . . . . . . . . . . . . . . Distress Signals . | . . . . . . . . . . . . . . . . . . . . . . . . . . . . . . . . . . . . . . . . . . . . . . . . . . . . . Times Spotted 5209 | . 45 24 84 . . 9 144 35 133 37 308 48 328 22 9 73 14 29 200 30 221 6 11 . 26 94 5 197 32 35 24 102 70 239 26 29 102 20 190 62 219 481 . 162 231 224 47 231 73 284 142 52 Peak Tracking Total 53 | . 8 4 8 . . 4 15 6 19 6 34 8 38 7 4 5 4 9 19 4 19 4 4 . 7 12 3 16 6 11 16 19 13 24 5 10 18 6 12 7 20 53 . 13 29 31 7 31 10 30 21 5 Tactical Retreats 296 | . 9 1 5 . . 1 17 3 8 . 18 2 21 1 2 4 1 1 12 3 12 . . . 1 6 . . . . . 12 10 9 3 1 5 1 8 6 10 55 . 4 10 9 2 11 3 7 2 . Traps | -11 -10 -10 -9 -9 -9 -8 -8 -8 -8 -8 -7 -7 -7 -7 -7 -7 -7 -6 -6 -6 -6 -6 -6 -6 -5 -5 -5 -5 -5 -5 -5 -5 -5 -4 -4 -4 -4 -3 -3 -3 -3 -3 -3 -2 -2 -2 -2 -1 -1 -1 -1 -1 ------- Run | Yrd Mat Min Mat Min Exi Min Mat Gar Mat Gar Fac Gar Fac Low Low Zio Dee Pro Fac Gar Fac Low Low Dat Pro Fac Was Fac Ext Cet Arc Hub Gar Fac Upp Upp War Pro Res Gar Res Arm Lab Res Tes Sec Gar Acc Gar Acc Com Ac0 Traps Triggered 81 | . 3 . 1 . . . 1 3 . 2 2 5 4 . . . . . 1 1 3 . . . . 1 . 1 1 . . 5 6 5 . . 3 . 3 11 1 1 . 2 . 1 2 3 7 2 . . Indirectly 6 | . 1 . . . . . . . . . . . . . . . . . . . . . . . . . . . . . . 5 . . . . . . . . . . . . . . . . . . . . Trap Hack Attempts . | . . . . . . . . . . . . . . . . . . . . . . . . . . . . . . . . . . . . . . . . . . . . . . . . . . . . . Triggered . | . . . . . . . . . . . . . . . . . . . . . . . . . . . . . . . . . . . . . . . . . . . . . . . . . . . . . Disarmed 6 | . . . . . . . . . . . . . . . . . . . . . . . . . . . . . 5 . . . . . . . . . 1 . . . . . . . . . . . . . Reprogrammed 16 | . . . . . . . . . . . . . 6 . . . . . . . . . . . . . . . . . . . . . . . . . 10 . . . . . . . . . . . . . Reused 2 | . . . . . . . . . . . . . 1 . . . . . . . . . . . . . . . . . . . . . . . . . 1 . . . . . . . . . . . . . Traps Extracted . | . . . . . . . . . . . . . . . . . . . . . . . . . . . . . . . . . . . . . . . . . . . . . . . . . . . . . Installed . | . . . . . . . . . . . . . . . . . . . . . . . . . . . . . . . . . . . . . . . . . . . . . . . . . . . . . Triggered 37 | . . . . . . . 1 . . . . . 1 . . . . 1 . . . . 1 . . . . . . . . . . . 1 . 27 . 1 . . . . 3 . . . . . . 1 . Machines | -11 -10 -10 -9 -9 -9 -8 -8 -8 -8 -8 -7 -7 -7 -7 -7 -7 -7 -6 -6 -6 -6 -6 -6 -6 -5 -5 -5 -5 -5 -5 -5 -5 -5 -4 -4 -4 -4 -3 -3 -3 -3 -3 -3 -2 -2 -2 -2 -1 -1 -1 -1 -1 ---------- Run | Yrd Mat Min Mat Min Exi Min Mat Gar Mat Gar Fac Gar Fac Low Low Zio Dee Pro Fac Gar Fac Low Low Dat Pro Fac Was Fac Ext Cet Arc Hub Gar Fac Upp Upp War Pro Res Gar Res Arm Lab Res Tes Sec Gar Acc Gar Acc Com Ac0 Machines Disabled 1234 | . 27 1 28 2 . 9 44 14 35 15 135 13 175 . 1 1 2 . 180 12 153 . . . 1 39 . 47 14 1 2 82 12 19 . 1 7 . 27 12 7 5 . 23 18 14 8 10 10 11 5 12 Max in Single Turn 9 | . 2 1 1 1 . 4 2 3 4 3 8 1 7 . 1 1 2 . 6 2 9 . . . 1 6 . 8 1 . 2 3 2 4 . 1 2 . 1 2 1 1 . 1 1 1 1 1 2 1 2 1 Garrison Access 26 | . . . . . . . . . . . 3 . 2 . . . . . 3 . 3 . . . . 2 . 1 . . . . . 1 . . . . 2 . . . . 2 . . . 2 . 5 . . Garrison Relay 44 | . . . . . . . . 8 . 7 . 4 . . . . . . . 5 . . . . . . . . . . . . 5 . . . . . . 7 . . . . . . 4 . 4 . . . Phase Generator 7 | . . . . . . . . . . 1 . 1 . . . . . . . 1 . . . . . . . . . . . . 1 . . . . . . 1 . . . . . . . . 1 . 1 . Network Hub 4 | . . . . . . . . . . . . . . . . . . . . . . . . . . . . . . . . 4 . . . . . . . . . . . . . . . . . . . . Machines Repaired . | . . . . . . . . . . . . . . . . . . . . . . . . . . . . . . . . . . . . . . . . . . . . . . . . . . . . . Machines Dismantled . | . . . . . . . . . . . . . . . . . . . . . . . . . . . . . . . . . . . . . . . . . . . . . . . . . . . . . Machines Sabotaged . | . . . . . . . . . . . . . . . . . . . . . . . . . . . . . . . . . . . . . . . . . . . . . . . . . . . . . Overloaded Fab Kills . | . . . . . . . . . . . . . . . . . . . . . . . . . . . . . . . . . . . . . . . . . . . . . . . . . . . . . Hacking | -11 -10 -10 -9 -9 -9 -8 -8 -8 -8 -8 -7 -7 -7 -7 -7 -7 -7 -6 -6 -6 -6 -6 -6 -6 -5 -5 -5 -5 -5 -5 -5 -5 -5 -4 -4 -4 -4 -3 -3 -3 -3 -3 -3 -2 -2 -2 -2 -1 -1 -1 -1 -1 --------- Run | Yrd Mat Min Mat Min Exi Min Mat Gar Mat Gar Fac Gar Fac Low Low Zio Dee Pro Fac Gar Fac Low Low Dat Pro Fac Was Fac Ext Cet Arc Hub Gar Fac Upp Upp War Pro Res Gar Res Arm Lab Res Tes Sec Gar Acc Gar Acc Com Ac0 Machines Accessed 247 | . 10 . 8 . . . 10 5 6 4 11 3 17 . . . . . 29 4 14 . . 4 1 7 . 7 6 3 . 12 3 5 . 1 4 . 19 1 9 11 . 15 . 1 3 4 2 . 7 1 Terminals 153 | . 7 . 6 . . . 7 5 2 4 5 3 9 . . . . . 16 4 9 . . . 1 3 . 2 6 3 . 11 3 2 . . . . 11 1 6 4 . 9 . . 3 2 2 . 7 . Fabricators 39 | . . . . . . . . . . . 2 . 5 . . . . . 6 . 3 . . . . 2 . 2 . . . . . 1 . . . . 4 . 3 7 . 3 . . . 1 . . . . Repair Stations 4 | . 1 . . . . . . . 1 . . . . . . . . . 1 . . . . . . . . 1 . . . . . . . . . . . . . . . . . . . . . . . . Recycling Units 26 | . 2 . 2 . . . 2 . 2 . 2 . 3 . . . . . 4 . 1 . . . . 1 . 2 . . . . . 1 . . . . 1 . . . . 3 . . . . . . . . Scanalyzers 6 | . . . . . . . . . . . 1 . . . . . . . 1 . 1 . . . . 1 . . . . . . . . . . . . 2 . . . . . . . . . . . . . Garrison Access 9 | . . . . . . . 1 . 1 . 1 . . . . . . . 1 . . . . . . . . . . . . 1 . 1 . . . . 1 . . . . . . 1 . 1 . . . . Total Hacks 1113 | . 46 . 29 . . . 25 21 22 28 51 6 52 . . . . . 119 16 70 . . 28 9 32 . 23 33 11 . 82 32 29 . 1 6 . 96 16 48 31 . 72 . 1 8 10 6 . 38 16 Successful 680 | . 36 . 17 . . . 17 8 22 10 32 2 31 . . . . . 69 5 34 . . 28 9 23 . 15 21 9 . 44 10 15 . 1 6 . 61 7 32 25 . 46 . 1 4 6 4 . 14 16 Failed 424 | . 9 . 11 . . . 7 13 . 18 19 4 21 . . . . . 50 11 36 . . . . 9 . 7 12 2 . 37 22 14 . . . . 34 9 16 6 . 25 . . 3 3 2 . 24 . Catastrophic 72 | . 3 . . . . . . 1 . 6 2 1 3 . . . . . 9 8 8 . . . . . . . 1 . . 7 4 1 . . . . 4 . 3 2 . 4 . . 1 . 1 . 3 . Database Lockouts 9 | . 1 . 1 . . . 1 . . . . . . . . . . . . . . . . . . . . 1 . . . 1 . . . . . . 1 . . . . 1 . . 1 1 . . . . Manual 428 | . 10 . 17 . 1 . 13 16 5 25 19 3 14 . . . . . 24 10 15 . . . 4 20 . 7 17 1 4 36 27 14 . . 6 . 22 15 16 6 . 32 . . 6 7 4 . 12 . Terminals 895 | . 40 . 27 . . . 22 21 3 28 39 6 36 . . . . . 92 16 60 . . . 9 23 . 14 33 11 . 81 32 25 . . . . 83 16 41 16 . 62 . . 8 7 6 . 38 . Fabricators 84 | . . . . . . . . . . . 4 . 11 . . . . . 13 . 6 . . . . 5 . 5 . . . . . 2 . . . . 8 . 7 15 . 6 . . . 2 . . . . Repair Stations 25 | . 4 . . . . . . . 16 . . . . . . . . . 3 . . . . . . . . 2 . . . . . . . . . . . . . . . . . . . . . . . . Recycling Units 29 | . 2 . 2 . . . 2 . 2 . 2 . 5 . . . . . 4 . 1 . . . . 1 . 2 . . . . . 1 . . . . 1 . . . . 4 . . . . . . . . Scanalyzers 20 | . . . . . . . . . . . 5 . . . . . . . 6 . 3 . . . . 3 . . . . . . . . . . . . 3 . . . . . . . . . . . . . Garrison Access 9 | . . . . . . . 1 . 1 . 1 . . . . . . . 1 . . . . . . . . . . . . 1 . 1 . . . . 1 . . . . . . 1 . 1 . . . . Terminal Hacks 525 | . 31 . 15 . . . 14 8 3 10 21 2 18 . . . . . 44 5 24 . . 28 9 16 . 7 21 9 . 43 10 11 . 1 6 . 48 7 26 10 . 37 . . 4 3 4 . 14 16 Record 69 | . 4 . 5 . . . 1 . . . . . . . . . . . . . . . . 11 9 . . . . 8 . . . . . . 5 . 3 . 2 3 . 1 . . . . . . 1 16 Part Schematic 58 | . . . . . . . . . . 1 7 . 3 . . . . . 4 1 4 . . 10 . 1 . . 2 . . 2 3 1 . . . . 8 3 . . . 4 . . 1 1 2 . . . Robot Schematic 6 | . . . . . . . . . . . . . . . . . . . . . . . . 4 . . . . . . . . . . . . . . . . . . . 2 . . . . . . . . Robot Analysis 55 | . 3 . 6 . . . 1 2 1 4 . . 2 . . . . . 4 . . . . . . 12 . 1 2 . . 2 3 1 . . . . 2 . 5 . . 3 . . . . . . 1 . Prototype ID Bank 46 | . 4 . 1 . . . 1 . . . 1 . 1 . . . . . 8 . 5 . . 3 . . . 1 1 . . 11 . 1 . . . . 2 . 2 1 . 1 . . . . . . 2 . Open Door 9 | . . . . . . . . 1 . 1 . 1 . . . . . . . 1 . . . . . . . . . 1 . . . . . 1 1 . 1 . 1 . . . . . . . . . . . Level Access Points 3 | . . . . . . . 1 . . . . . . . . . . . . . . . . . . . . . . . . . . . . . . . . . . . . 1 . . . . . . 1 . Branch Access Points 9 | . 1 . 1 . . . 1 . . . . . . . . . . . . . 1 . . . . . . 1 . . . . . 1 . . . . 1 . 1 . . 1 . . . . . . . . Emergency Access Points 17 | . . . . . . . 2 1 . 1 . 1 . . . . . . . 1 . . . . . . . . . . . 3 1 . . . . . 1 2 1 . . . . . 1 . 1 . 1 . Machine Index 12 | . . . . . . . . . . . 1 . 1 . . . . . . . 1 . . . . 1 . . 1 . . 1 . 1 . . . . 1 . 1 . . 1 . . . 1 . . 1 . Terminal Index 11 | . 1 . . . . . . 1 . 1 1 . . . . . . . 1 . 1 . . . . . . . 1 . . 1 1 . . . . . . 1 . 1 . . . . . . . . . . Fabricator Index 3 | . . . . . . . . . . . . . . . . . . . 1 . . . . . . . . . . . . . . . . . . . . . 1 . . . . . . . . . 1 . Recycling Unit Index 1 | . 1 . . . . . . . . . . . . . . . . . . . . . . . . . . . . . . . . . . . . . . . . . . . . . . . . . . . Scanalyzer Index 2 | . . . . . . . . . . . 1 . . . . . . . . . . . . . . . . . . . . . . . . . . . . . . . . . . . . . . . 1 . Garrison Index 6 | . . . . . . . . . . . . . 1 . . . . . 1 . . . . . . . . 1 . . . . . . . . . . . . . . . 1 . . . 1 . . 1 . Alert Level 10 | . 9 . . . . . . . . . . . . . . . . . . . . . . . . . . . . . . 1 . . . . . . . . . . . . . . . . . . . . Unreport Threat 45 | . . . . . . . . . . . . . . . . . . . 3 . . . . . . . . . 5 . . 7 . 5 . . . . 8 . 5 4 . 8 . . . . . . . . Locate Traps 44 | . 2 . . . . . 2 . . . 2 . 4 . . . . . 9 . 3 . . . . . . . 3 . . 5 . . . . . . 6 . 2 1 . 4 . . . . . . 1 . Disarm Traps 4 | . . . . . . . . . . . . . . . . . . . . . . . . . . . . . 2 . . . . . . . . . 2 . . . . . . . . . . . . . Reprogram Traps 3 | . . . . . . . . . . . . . 1 . . . . . . . . . . . . . . . . . . . . . . . . . 2 . . . . . . . . . . . . . Dispatch Records 1 | . . . . . . . . . . . 1 . . . . . . . . . . . . . . . . . . . . . . . . . . . . . . . . . . . . . . . . . Maintenance Status 2 | . 2 . . . . . . . . . . . . . . . . . . . . . . . . . . . . . . . . . . . . . . . . . . . . . . . . . . . Patrol Status 2 | . 1 . . . . . . . . . 1 . . . . . . . . . . . . . . . . . . . . . . . . . . . . . . . . . . . . . . . . . Recall Investigation 15 | . . . . . . . . . . . 3 . 2 . . . . . 3 . 3 . . . . . . . . . . 2 . . . . . . . . 1 . . 1 . . . . . . . . Recall Extermination 4 | . . . . . . . . . . . . . . . . . . . . . 1 . . . . . . . . . . . . . . . . . 2 . . . . 1 . . . . . . . . Recall Reinforcements 3 | . . . . . . . . . . . . . 1 . . . . . . . 1 . . . . . . . . . . 1 . . . . . . . . . . . . . . . . . . . . Recall Assault 10 | . . . . . . . . . . . . . . . . . . . 2 . . . . . . . . . . . . 1 . . . . . . 3 . . . . 4 . . . . . . . . Hauler Manifests 14 | . 1 . . . . . 1 . 1 . 1 . 1 . . . . . 1 . 1 . . . . . . 1 1 . . 2 . . . . . . 2 . 1 . . . . . . . . . . . Registered Components 5 | . 1 . . . . . . . . . 1 . . . . . . . 1 . . . . . . . . . 1 . . . . . . . . . 1 . . . . . . . . . . . . . Registered Prototypes 3 | . . . . . . . 1 . . . . . . . . . . . . . 1 . . . . . . . . . . 1 . . . . . . . . . . . . . . . . . . . . Zone Layout 39 | . 1 . 2 . . . 3 . 1 . 1 . 1 . . . . . 6 . 2 . . . . 2 . 2 2 . . 3 . 1 . . . . 3 1 3 . . 4 . . . . . . 1 . Garrison Registry 4 | . . . . . . . . 1 . 1 . . . . . . . . . 1 . . . . . . . . . . . . . . . . . . . . . . . . . . 1 . . . . . Patrol Navigation 4 | . . . . . . . . 1 . . . . . . . . . . . . . . . . . . . . . . . . 1 . . . . . . . . . . . . . 1 . 1 . . . Security Stations 4 | . . . . . . . . 1 . 1 . . . . . . . . . 1 . . . . . . . . . . . . 1 . . . . . . . . . . . . . . . . . . . Disengage Seal 2 | . . . . . . . . . . . . . . . . . . . . . . . . . . . . . . . . . . . . . . . . . . . . . . . . . . . 2 . Fabricator Hacks 79 | . . . . . . . . . . . 4 . 10 . . . . . 12 . 6 . . . . 4 . 4 . . . . . 2 . . . . 8 . 6 15 . 6 . . . 2 . . . . Load Schematic 39 | . . . . . . . . . . . 2 . 5 . . . . . 6 . 3 . . . . 2 . 2 . . . . . 1 . . . . 4 . 3 7 . 3 . . . 1 . . . . Build 40 | . . . . . . . . . . . 2 . 5 . . . . . 6 . 3 . . . . 2 . 2 . . . . . 1 . . . . 4 . 3 8 . 3 . . . 1 . . . . Repair Station Hacks 23 | . 3 . . . . . . . 16 . . . . . . . . . 2 . . . . . . . . 2 . . . . . . . . . . . . . . . . . . . . . . . . Scan Component 12 | . 2 . . . . . . . 8 . . . . . . . . . 1 . . . . . . . . 1 . . . . . . . . . . . . . . . . . . . . . . . . Repair 11 | . 1 . . . . . . . 8 . . . . . . . . . 1 . . . . . . . . 1 . . . . . . . . . . . . . . . . . . . . . . . . Recycling Unit Hacks . | . . . . . . . . . . . . . . . . . . . . . . . . . . . . . . . . . . . . . . . . . . . . . . . . . . . . . Scanalyzer 18 | . . . . . . . . . . . 4 . . . . . . . 6 . 3 . . . . 2 . . . . . . . . . . . . 3 . . . . . . . . . . . . . Insert Component 7 | . . . . . . . . . . . 2 . . . . . . . 1 . 1 . . . . 1 . . . . . . . . . . . . 2 . . . . . . . . . . . . . Analyze 11 | . . . . . . . . . . . 2 . . . . . . . 5 . 2 . . . . 1 . . . . . . . . . . . . 1 . . . . . . . . . . . . . Garrison Access Hacks 9 | . . . . . . . 1 . 1 . 1 . . . . . . . 1 . . . . . . . . . . . . 1 . 1 . . . . 1 . . . . . . 1 . 1 . . . . Unlock Access 9 | . . . . . . . 1 . 1 . 1 . . . . . . . 1 . . . . . . . . . . . . 1 . 1 . . . . 1 . . . . . . 1 . 1 . . . . Unauthorized Hacks 26 | . 2 . 2 . . . 2 . 2 . 2 . 3 . . . . . 4 . 1 . . . . 1 . 2 . . . . . 1 . . . . 1 . . . . 3 . . . . . . . . Terminals . | . . . . . . . . . . . . . . . . . . . . . . . . . . . . . . . . . . . . . . . . . . . . . . . . . . . . . Fabricators . | . . . . . . . . . . . . . . . . . . . . . . . . . . . . . . . . . . . . . . . . . . . . . . . . . . . . . Repair Stations . | . . . . . . . . . . . . . . . . . . . . . . . . . . . . . . . . . . . . . . . . . . . . . . . . . . . . . Recycling Units 26 | . 2 . 2 . . . 2 . 2 . 2 . 3 . . . . . 4 . 1 . . . . 1 . 2 . . . . . 1 . . . . 1 . . . . 3 . . . . . . . . Tunnel 26 | . 2 . 2 . . . 2 . 2 . 2 . 3 . . . . . 4 . 1 . . . . 1 . 2 . . . . . 1 . . . . 1 . . . . 3 . . . . . . . . Scanalyzers . | . . . . . . . . . . . . . . . . . . . . . . . . . . . . . . . . . . . . . . . . . . . . . . . . . . . . . Garrison Access . | . . . . . . . . . . . . . . . . . . . . . . . . . . . . . . . . . . . . . . . . . . . . . . . . . . . . . Data Cores Recovered 20 | . . . 2 . . . 1 . . . 1 . 2 . . . . . 2 . 2 . . . . 1 . . 1 . . 1 . 1 . . . . 2 . 1 . . 2 . . . 1 . . . . Used 11 | . . . 1 . . . 1 . . . 1 . 1 . . . . . 2 . 2 . . . . . . . 1 . . . . 1 . . . . . . . . . 1 . . . . . . . . Hacking Detections 170 | . 8 . 4 . . . 3 5 1 3 6 2 15 . . . . . 22 3 12 . . . . 6 . 4 5 2 . 12 3 3 . . . . 11 1 8 10 . 10 . . 1 3 1 . 6 . Full Trace Events 82 | . 8 . 3 . . . 2 3 . 3 2 2 8 . . . . . 9 2 5 . . . . 2 . 2 . . . 2 3 2 . . . . 5 1 4 9 . 3 . . 1 1 . . . . Feedback Events 4 | . 1 . . . . . . . . . . . 3 . . . . . . . . . . . . . . . . . . . . . . . . . . . . . . . . . . . . . . . Corruption 3 | . 1 . . . . . . . . . . . 2 . . . . . . . . . . . . . . . . . . . . . . . . . . . . . . . . . . . . . . . Hackware Fried 1 | . . . . . . . . . . . . . 1 . . . . . . . . . . . . . . . . . . . . . . . . . . . . . . . . . . . . . . . Feedback Blocked . | . . . . . . . . . . . . . . . . . . . . . . . . . . . . . . . . . . . . . . . . . . . . . . . . . . . . . Robot Schematics Acquired 9 | . . . . . . . . . . . . . . . . 3 . . . . . . . 4 . . . . . . . . . . . . . . . . . . . 2 . . . . . . . . Robots Built 6 | . . . . . . . . . . . . . . . . . . . . . . . . . . . . 6 . . . . . . . . . . . . . . . . . . . . . . . . Authchips . | . . . . . . . . . . . . . . . . . . . . . . . . . . . . . . . . . . . . . . . . . . . . . . . . . . . . . Time 268 | . . . . . . . . . . . . . . . . . . . . . . . . . . . . 268 . . . . . . . . . . . . . . . . . . . . . . . . Total Robot Build Rating 24 | . . . . . . . . . . . . . . . . . . . . . . . . . . . . 24 . . . . . . . . . . . . . . . . . . . . . . . . Part Schematics Acquired 78 | . . . . . . . . . . 1 9 . 3 . . 14 . . 3 1 5 . . 10 . 2 . . 2 . . 2 3 1 . . . . 9 3 . . . 4 2 . 1 1 2 . . . Parts Built 44 | . . . . . . . . . . . 3 . 8 . . . . . 6 . 3 . . . . 2 . . . . . . . 1 . . . . 4 . 3 9 . 4 . . . 1 . . . . Authchips . | . . . . . . . . . . . . . . . . . . . . . . . . . . . . . . . . . . . . . . . . . . . . . . . . . . . . . Time 2991 | . . . . . . . . . . . 115 . 267 . . . . . 493 . 364 . . . . 193 . . . . . . . 53 . . . . 385 . 340 501 . 206 . . . 74 . . . . Total Part Build Rating 285 | . . . . . . . . . . . 13 . 40 . . . . . 30 . 17 . . . . 12 . . . . . . . 6 . . . . 30 . 24 72 . 32 . . . 9 . . . . Parts Repaired 11 | . 1 . . . . . . . 8 . . . . . . . . . 1 . . . . . . . . 1 . . . . . . . . . . . . . . . . . . . . . . . . Time 418 | . 26 . . . . . . . 311 . . . . . . . . . 50 . . . . . . . . 31 . . . . . . . . . . . . . . . . . . . . . . . . Parts Recycled . | . . . . . . . . . . . . . . . . . . . . . . . . . . . . . . . . . . . . . . . . . . . . . . . . . . . . . Recycled Matter . | . . . . . . . . . . . . . . . . . . . . . . . . . . . . . . . . . . . . . . . . . . . . . . . . . . . . . Retrieved Matter . | . . . . . . . . . . . . . . . . . . . . . . . . . . . . . . . . . . . . . . . . . . . . . . . . . . . . . Retrieved Components . | . . . . . . . . . . . . . . . . . . . . . . . . . . . . . . . . . . . . . . . . . . . . . . . . . . . . . Parts Scanalyzed 6 | . . . . . . . . . . . 2 . . . . . . . 1 . 1 . . . . 1 . . . . . . . . . . . . 1 . . . . . . . . . . . . . Part Schematics Acquired 6 | . . . . . . . . . . . 2 . . . . . . . 1 . 1 . . . . 1 . . . . . . . . . . . . 1 . . . . . . . . . . . . . Parts Damaged 1 | . . . . . . . . . . . . . . . . . . . 1 . . . . . . . . . . . . . . . . . . . . . . . . . . . . . . . . . Bothacking | -11 -10 -10 -9 -9 -9 -8 -8 -8 -8 -8 -7 -7 -7 -7 -7 -7 -7 -6 -6 -6 -6 -6 -6 -6 -5 -5 -5 -5 -5 -5 -5 -5 -5 -4 -4 -4 -4 -3 -3 -3 -3 -3 -3 -2 -2 -2 -2 -1 -1 -1 -1 -1 ------------ Run | Yrd Mat Min Mat Min Exi Min Mat Gar Mat Gar Fac Gar Fac Low Low Zio Dee Pro Fac Gar Fac Low Low Dat Pro Fac Was Fac Ext Cet Arc Hub Gar Fac Upp Upp War Pro Res Gar Res Arm Lab Res Tes Sec Gar Acc Gar Acc Com Ac0 Used RIF Installer 10 | . . . . . . . . 2 . 1 . 1 . . . . . . . 1 . . . . . . . . . . . . 1 . . . . . . 2 . . . . . . 1 . 1 . . . Coupler Efficiency 1 | . . . . . . . . . . 1 . . . . . . . . . . . . . . . . . . . . . . . . . . . . . . . . . . . . . . . . . . Command Fork 2 | . . . . . . . . 1 . . . . . . . . . . . . . . . . . . . . . . . . . . . . . . . . . . . . . . . . 1 . . . Signal Jammer 1 | . . . . . . . . . . . . . . . . . . . . . . . . . . . . . . . . . . . . . . . . 1 . . . . . . . . . . . . Robot Detection 1 | . . . . . . . . . . . . . . . . . . . . 1 . . . . . . . . . . . . . . . . . . . . . . . . . . . . . . . . Structural Interface 1 | . . . . . . . . . . . . 1 . . . . . . . . . . . . . . . . . . . . . . . . . . . . . . . . . . . . . . . . Program Shield 1 | . . . . . . . . . . . . . . . . . . . . . . . . . . . . . . . . . . . . . . . . 1 . . . . . . . . . . . . Autooverride 1 | . . . . . . . . . . . . . . . . . . . . . . . . . . . . . . . . . 1 . . . . . . . . . . . . . . . . . . . Autoassimilate 1 | . . . . . . . . . . . . . . . . . . . . . . . . . . . . . . . . . . . . . . . . . . . . . . . 1 . . . . . Robots Hacked . | . . . . . . . . . . . . . . . . . . . . . . . . . . . . . . . . . . . . . . . . . . . . . . . . . . . . . Non-combat . | . . . . . . . . . . . . . . . . . . . . . . . . . . . . . . . . . . . . . . . . . . . . . . . . . . . . . Combat . | . . . . . . . . . . . . . . . . . . . . . . . . . . . . . . . . . . . . . . . . . . . . . . . . . . . . . Robot Hacks Applied . | . . . . . . . . . . . . . . . . . . . . . . . . . . . . . . . . . . . . . . . . . . . . . . . . . . . . . Relay Couplers Released 92 | . . . . . . . . 16 . 10 . 7 1 . . . . . 1 9 . . . . . 1 . 2 . . . . 8 1 . . . . 1 12 . . . 3 . . 8 . 8 4 . . Machine Destruction 89 | . . . . . . . . 16 . 10 . 7 1 . . . . . 1 9 . . . . . 1 . 2 . . . . 8 1 . . . . 1 12 . . . 1 . . 8 . 7 4 . . Programmers 3 | . . . . . . . . . . . . . . . . . . . . . . . . . . . . . . . . . . . . . . . . . . . . 2 . . . . 1 . . . Fabnet Peak Effective % . | . . . . . . . . . . . . . . . . . . . . . . . . . . . . . . . . . . . . . . . . . . . . . . . . . . . . . Robots Rewired . | . . . . . . . . . . . . . . . . . . . . . . . . . . . . . . . . . . . . . . . . . . . . . . . . . . . . . Allies Hacked . | . . . . . . . . . . . . . . . . . . . . . . . . . . . . . . . . . . . . . . . . . . . . . . . . . . . . . Hacks Repelled . | . . . . . . . . . . . . . . . . . . . . . . . . . . . . . . . . . . . . . . . . . . . . . . . . . . . . . Allies | -11 -10 -10 -9 -9 -9 -8 -8 -8 -8 -8 -7 -7 -7 -7 -7 -7 -7 -6 -6 -6 -6 -6 -6 -6 -5 -5 -5 -5 -5 -5 -5 -5 -5 -4 -4 -4 -4 -3 -3 -3 -3 -3 -3 -2 -2 -2 -2 -1 -1 -1 -1 -1 -------- Run | Yrd Mat Min Mat Min Exi Min Mat Gar Mat Gar Fac Gar Fac Low Low Zio Dee Pro Fac Gar Fac Low Low Dat Pro Fac Was Fac Ext Cet Arc Hub Gar Fac Upp Upp War Pro Res Gar Res Arm Lab Res Tes Sec Gar Acc Gar Acc Com Ac0 Total Allies 31 | . . 1 . . . . . 2 . . . . 3 . . . 1 . . 1 . . . . . . . 6 7 3 . . . . . . . . . 2 . 3 . . . . . . 2 . . . Largest Group 6 | . . 1 . . . . . 2 . . . . 3 . . . 1 . . 1 . . . . . . . 6 5 4 1 . . . . . . . . 2 . 3 . . . . . . 2 . . . Highest-Rated Group 447 | . . 31 . . . . . 45 . . . . 93 . . . 119 . . 46 . . . . . . . 180 190 447 150 . . . . . . . . 97 . 138 . . . . . . 75 . . . Highest-Rated Ally 159 | . . 31 . . . . . 25 . . . . 31 . . . 119 . . 46 . . . . . . . 30 159 159 150 . . . . . . . . 51 . 46 . . . . . . 46 . . . Total Orders . | . . . . . . . . . . . . . . . . . . . . . . . . . . . . . . . . . . . . . . . . . . . . . . . . . . . . . Ally Attacks 229 | . . 20 . . . . . 1 . . . . 46 . . . 10 . . 9 . . . . . . . 26 65 41 . . . . . . . . . . . 11 . . . . . . . . . . Total Damage 6547 | . . 319 . . . . . 40 . . . . 793 . . . 388 . . 257 . . . . . . . 812 1705 2010 . . . . . . . . . . . 223 . . . . . . . . . . Kills 33 | . . 5 . . . . . 1 . . . . 6 . . . . . . 3 . . . . . . . 4 7 7 . . . . . . . . . . . . . . . . . . . . . . Allies Corrupted 1 | . . . . . . . . . . . . . . . . . . . . . . . . . . . . . . . . . . . . . . . . . . 1 . . . . . . . . . . Allies Melted 3 | . . . . . . . . . . . . . . . . . . . . . . . . . . . . 1 1 . . . . . . . . . . . . . . 1 . . . . . . . . Intel | -11 -10 -10 -9 -9 -9 -8 -8 -8 -8 -8 -7 -7 -7 -7 -7 -7 -7 -6 -6 -6 -6 -6 -6 -6 -5 -5 -5 -5 -5 -5 -5 -5 -5 -4 -4 -4 -4 -3 -3 -3 -3 -3 -3 -2 -2 -2 -2 -1 -1 -1 -1 -1 ------- Run | Yrd Mat Min Mat Min Exi Min Mat Gar Mat Gar Fac Gar Fac Low Low Zio Dee Pro Fac Gar Fac Low Low Dat Pro Fac Was Fac Ext Cet Arc Hub Gar Fac Upp Upp War Pro Res Gar Res Arm Lab Res Tes Sec Gar Acc Gar Acc Com Ac0 Robot Analysis Total 52 | . 3 . 6 . . . 1 2 1 4 . . 2 . . . . . 4 . . . . . . 11 . . 2 . . 2 3 1 . . . . 2 . 4 . . 3 . . . . . . 1 . Derelict Logs Recovered 20 | . . 2 . 1 . . . . . . . . . 3 2 1 . 1 . . . 3 2 . 2 . . . . . . . . . 2 1 . . . . . . . . . . . . . . . . Drone Launches . | . . . . . . . . . . . . . . . . . . . . . . . . . . . . . . . . . . . . . . . . . . . . . . . . . . . . . Drone Recoveries . | . . . . . . . . . . . . . . . . . . . . . . . . . . . . . . . . . . . . . . . . . . . . . . . . . . . . . Exploration | -11 -10 -10 -9 -9 -9 -8 -8 -8 -8 -8 -7 -7 -7 -7 -7 -7 -7 -6 -6 -6 -6 -6 -6 -6 -5 -5 -5 -5 -5 -5 -5 -5 -5 -4 -4 -4 -4 -3 -3 -3 -3 -3 -3 -2 -2 -2 -2 -1 -1 -1 -1 -1 ------------- Run | Yrd Mat Min Mat Min Exi Min Mat Gar Mat Gar Fac Gar Fac Low Low Zio Dee Pro Fac Gar Fac Low Low Dat Pro Fac Was Fac Ext Cet Arc Hub Gar Fac Upp Upp War Pro Res Gar Res Arm Lab Res Tes Sec Gar Acc Gar Acc Com Ac0 Turns Passed 52977 | 18 1246 464 1338 215 915 308 2056 714 1121 673 2404 1197 2591 577 672 1265 688 692 2469 885 1542 326 299 19 407 1085 42 1778 451 211 72 2264 1333 1520 577 520 1034 387 3360 1125 1412 2178 4 1651 1046 873 464 1201 688 1282 701 617 Spaces Moved 96949 | 32 1380 625 1328 620 311 624 3015 853 1220 1137 5443 1618 4609 1000 1012 2266 955 982 5171 1262 3526 848 773 93 921 1565 126 2965 867 311 139 3185 2116 2749 926 1092 1422 814 5705 2304 2655 4696 11 3978 2499 2173 925 2697 1210 3477 2120 2598 Core 61 | 32 19 . . . . . . . . . 1 . . . . . . . . . . . . . . . . . . . . . . . . . . 9 . . . . . . . . . . . . . . Treads . | . . . . . . . . . . . . . . . . . . . . . . . . . . . . . . . . . . . . . . . . . . . . . . . . . . . . . Legs . | . . . . . . . . . . . . . . . . . . . . . . . . . . . . . . . . . . . . . . . . . . . . . . . . . . . . . Wheels . | . . . . . . . . . . . . . . . . . . . . . . . . . . . . . . . . . . . . . . . . . . . . . . . . . . . . . Hover . | . . . . . . . . . . . . . . . . . . . . . . . . . . . . . . . . . . . . . . . . . . . . . . . . . . . . . Flight 96888 | . 1361 625 1328 620 311 624 3015 853 1220 1137 5442 1618 4609 1000 1012 2266 955 982 5171 1262 3526 848 773 93 921 1565 126 2965 867 311 139 3185 2116 2749 926 1092 1422 805 5705 2304 2655 4696 11 3978 2499 2173 925 2697 1210 3477 2120 2598 Fastest Speed 5 | 50 34 34 31 28 28 28 26 26 24 24 23 26 26 26 22 22 22 22 20 20 20 20 20 20 20 20 5 20 20 6 20 5 11 11 20 20 6 17 7 7 7 7 17 17 6 6 16 6 6 5 5 6 Average Speed 20 | 50 37 34 31 28 28 28 26 26 24 24 24 26 26 26 25 22 22 22 20 20 20 20 20 20 20 20 15 20 20 19 20 19 19 19 20 20 18 18 16 15 15 15 17 17 16 15 16 15 16 14 14 12 Slowest Speed 150 | 50 50 34 34 31 28 28 31 26 26 24 101 26 26 26 26 22 22 100 97 20 20 20 20 20 20 20 20 20 20 20 20 99 20 20 20 20 20 150 20 16 19 20 17 17 86 16 16 16 83 86 72 14 Overloaded Moves 698 | . . . . . . . . . . . . . . . . . . . 157 . . . . . . . 40 . . 4 . 106 14 108 . . 118 . 4 7 32 63 . . 2 9 . 6 3 4 5 16 Propulsion Burnouts . | . . . . . . . . . . . . . . . . . . . . . . . . . . . . . . . . . . . . . . . . . . . . . . . . . . . . . Robots Hopped 61 | . . . . . . . . . 1 . 2 . 3 . . . . . 2 . 4 . 1 . . 3 . 1 1 . . 2 . 3 . . 10 . . . 4 23 . . 1 . . . . . . . Cave-ins Triggered . | . . . . . . . . . . . . . . . . . . . . . . . . . . . . . . . . . . . . . . . . . . . . . . . . . . . . . Teleports 3 | . . . . . . . . . . . . . . . . . . . . . . . . . . . . . . . . . . . . . . . . . . . . . . 1 . . . . 1 1 Exploration Rate (%) 78 | 3 99 93 82 95 62 93 96 89 66 94 92 99 88 91 96 83 75 93 79 96 72 91 87 77 93 19 80 56 84 81 84 99 98 35 95 95 84 91 69 99 40 89 6 50 77 88 93 33 95 77 64 91 Regions Visited 52 Branch Regions 27 Pre-discovered Areas 28 | . 2 . 2 . . . 2 . 2 . 2 . 3 1 . . . . 4 . 1 . . 1 . 1 . 2 . . . . . 1 . . . . 1 . . . . 3 . . . . . . . . Known Exits Taken 41 | . 1 1 1 1 1 1 1 . 1 . 1 . 1 1 1 1 1 1 1 . 1 1 1 1 1 . . 1 1 1 1 1 . 1 1 1 1 1 1 . 1 1 1 1 1 1 . 1 . 1 1 . Unknown Exits Taken 1 | 1 . . . . . . . . . . . . . . . . . . . . . . . . . . . . . . . . . . . . . . . . . . . . . . . . . . . . Scrap Searched 27 | . . . . 1 . . . . . . . . . 2 2 3 . 2 . . . 3 3 . 2 . . . . . . . . . 2 4 . 3 . . . . . . . . . . . . . . Spaces Dug 794 | . 6 1 7 4 . 2 60 15 16 5 94 8 82 26 9 4 2 8 108 12 23 . 3 . 2 65 . 6 1 . . 21 10 42 6 4 21 2 33 12 11 11 . 17 7 1 . 5 7 9 3 3 Terrain Destroyed 13583 | . 69 42 267 46 . 37 744 41 474 235 1268 142 1434 110 9 317 81 78 1440 82 946 49 35 . 88 529 138 579 223 343 70 817 372 731 41 164 300 130 449 163 315 11 . 17 7 1 . 5 55 11 75 3 Melee 436 | . 6 1 7 4 . 2 22 5 9 5 29 8 26 6 9 4 2 8 45 6 23 . 3 . 2 23 . 6 1 . . 21 10 8 6 4 7 2 33 9 11 11 . 17 7 1 . 5 7 9 3 3 Projectile 8 | . . . . . . . . . . . . . . . . . . . . . . . . . . . . . . . . 8 . . . . . . . . . . . . . . . . . . . . AOE 13139 | . 63 41 260 42 . 35 722 36 465 230 1239 134 1408 104 . 313 79 70 1395 76 923 49 32 . 86 506 138 573 222 343 70 788 362 723 35 160 293 128 416 154 304 . . . . . . . 48 2 72 . Terrain Rammed . | . . . . . . . . . . . . . . . . . . . . . . . . . . . . . . . . . . . . . . . . . . . . . . . . . . . . . Walls Destroyed . | . . . . . . . . . . . . . . . . . . . . . . . . . . . . . . . . . . . . . . . . . . . . . . . . . . . . . Machines Disabled . | . . . . . . . . . . . . . . . . . . . . . . . . . . . . . . . . . . . . . . . . . . . . . . . . . . . . . Actions | -11 -10 -10 -9 -9 -9 -8 -8 -8 -8 -8 -7 -7 -7 -7 -7 -7 -7 -6 -6 -6 -6 -6 -6 -6 -5 -5 -5 -5 -5 -5 -5 -5 -5 -4 -4 -4 -4 -3 -3 -3 -3 -3 -3 -2 -2 -2 -2 -1 -1 -1 -1 -1 --------- Run | Yrd Mat Min Mat Min Exi Min Mat Gar Mat Gar Fac Gar Fac Low Low Zio Dee Pro Fac Gar Fac Low Low Dat Pro Fac Was Fac Ext Cet Arc Hub Gar Fac Upp Upp War Pro Res Gar Res Arm Lab Res Tes Sec Gar Acc Gar Acc Com Ac0 Total 123764 | 32 1786 779 1921 639 1139 700 3970 1137 1848 1414 6151 2114 5541 1268 1373 2900 1419 1376 6115 1719 4010 989 882 92 1082 2156 143 4032 1032 431 175 4482 2841 3539 1272 1325 2013 1012 7960 2971 3513 5990 12 4911 3072 2659 1220 3411 1667 4197 2468 2864 Wait 14852 | . 110 59 318 2 820 27 596 89 366 93 208 254 435 217 281 447 405 309 420 274 132 129 74 . 98 391 5 867 35 79 9 801 366 439 276 134 330 150 1712 324 570 654 2 547 133 81 135 311 123 151 37 27 Move 96788 | 31 1379 624 1327 619 310 623 3014 852 1217 1136 5438 1617 4602 999 1011 2265 954 981 5166 1259 3518 847 770 92 920 1560 125 2962 864 310 138 3180 2114 2742 925 1091 1405 813 5704 2301 2646 4662 10 3977 2496 2172 924 2696 1208 3476 2119 2597 Hop 42 | . . . . . . . . . 1 . 2 . 3 . . . . . 2 . 3 . 1 . . 2 . 1 1 . . 2 . 3 . . 6 . . . 4 10 . . 1 . . . . . . . Pick Up 412 | . 9 3 6 . . 3 14 3 15 8 22 1 15 2 3 15 7 5 21 2 8 1 5 . 1 . 1 9 . 1 2 19 13 10 2 8 13 1 24 6 2 40 . 23 16 16 2 3 . 17 7 8 Fast Attach 271 | 1 8 4 4 . 3 . 7 1 10 6 13 4 9 1 3 4 4 1 17 4 2 1 . . . 1 . 5 . . . 6 6 5 . 2 5 1 19 5 3 21 . 9 19 19 1 10 2 16 6 3 Attach 71 | . 1 . . 1 1 . 1 1 . . 9 . 5 1 1 4 2 . 4 . 1 . . . . . . . . . . . 2 1 2 1 3 . 17 1 1 8 . . . 1 . . . . 1 1 Detach 89 | . . 1 2 . 4 . 2 1 2 . 10 1 5 1 1 6 3 . 10 . 1 . . . . . . . . . . 2 2 . 1 1 1 . 15 1 . 11 . 1 . 1 . 1 . . 1 1 Swap 136 | . 2 . 4 . . 1 7 . 2 . 9 4 4 . 2 6 5 3 9 9 8 2 2 . 2 4 . 6 4 . . 13 . 10 . . . . 3 . 1 10 . 2 1 . . 1 . . . . Drop 599 | . 9 4 9 1 1 3 23 4 16 13 38 4 21 2 4 18 12 4 36 7 9 . 4 . 1 2 1 10 . 1 2 26 16 11 2 9 18 1 39 10 5 46 . 32 35 28 2 9 2 27 13 9 Fire 1210 | . 116 6 25 4 . 6 88 15 67 41 142 3 69 4 . 61 7 5 81 1 62 2 2 . 5 30 11 55 16 19 5 27 20 77 2 12 14 5 36 7 53 . . . . . . . 1 . 8 . Melee 5977 | . 120 52 170 10 . 29 147 131 87 69 166 156 248 29 41 55 7 41 250 106 199 7 20 . 37 128 . 62 69 19 6 301 163 120 38 50 142 25 244 181 108 321 . 227 264 223 98 238 135 320 182 136 Ram 1 | . . . . . . . . . . . . . . . . . . . . . . . . . . . . . . . . . . . . . . . . . . 1 . . . . . . . . . . Kick . | . . . . . . . . . . . . . . . . . . . . . . . . . . . . . . . . . . . . . . . . . . . . . . . . . . . . . Crush . | . . . . . . . . . . . . . . . . . . . . . . . . . . . . . . . . . . . . . . . . . . . . . . . . . . . . . Escape Stasis 661 | . . . . . . . . . . 10 8 24 25 . . . . . 18 29 . . . . . . . . 18 . . . 85 45 . . . . 47 62 51 13 . . 15 . 18 32 136 25 . . Rewire . | . . . . . . . . . . . . . . . . . . . . . . . . . . . . . . . . . . . . . . . . . . . . . . . . . . . . . Trap . | . . . . . . . . . . . . . . . . . . . . . . . . . . . . . . . . . . . . . . . . . . . . . . . . . . . . . Miscellaneous 2655 | . 32 26 56 2 . 8 71 40 65 38 86 46 100 12 26 19 13 27 81 28 67 . 4 . 18 38 . 55 25 2 13 105 54 76 24 17 76 16 100 73 69 193 . 93 92 118 40 110 60 165 94 82 Route ------- -11/Scrapyard -10/Materials (discovered 5 exits: *Mat x3 / *Min / [*Sub]) -10/Mines (discovered 2 exits: *Mat x2) -9/Materials (discovered 4 exits: *Mat x3 / *Min) -9/Mines (discovered 3 exits: *Mat x2 / *Exi) -9/Exiles (discovered 2 exits: *Min x2) -8/Mines (discovered 2 exits: *Mat x2) -8/Materials (discovered 4 exits: *Fac x3 / Gar) -8/Garrison (discovered 3 exits: *Mat x3) -8/Materials (discovered 3 exits: *Fac x2 / Gar) -8/Garrison (discovered 3 exits: *Fac x3) -7/Factory (discovered 9 exits: *Fac x4 / *Sto x2 / *Low x2 / Gar) -7/Garrison (discovered 3 exits: *Fac x3) -7/Factory (discovered 6 exits: *Fac x4 / *Sto / *Low) -7/Lower Caves -7/Lower Caves (discovered 2 exits: *Fac / *Zio) -7/Zion (discovered 2 exits: *Dee / [Pro]) -7/Deep Caves -6/Proximity Caves -6/Factory (discovered 7 exits: *Fac x4 / *Low x2 / Gar) -6/Garrison (discovered 3 exits: *Fac x3) -6/Factory (discovered 6 exits: *Fac x4 / *Low x2) -6/Lower Caves -6/Lower Caves (discovered 2 exits: *Fac / *Dat) -6/Data Miner -5/Proximity Caves -5/Factory -5/Waste -5/Factory (discovered 6 exits: *Fac x2 / *Upp x2 / *Ext x2) -5/Extension (discovered 3 exits: *Fac x2 / *Cet) -5/Cetus (discovered 2 exits: *Fac / *Arc) -5/Archives (discovered 3 exits: *Fac / *Hub x2) -5/Hub_04(d) (discovered 5 exits: *Fac x4 / Gar) -5/Garrison (discovered 3 exits: *Fac x3) -4/Factory (discovered 5 exits: *Res x3 / *Upp x2) -4/Upper Caves -4/Upper Caves (discovered 2 exits: *Res / *War) -4/Warlord -3/Proximity Caves -3/Research (discovered 7 exits: *Res x3 / Arm / *Qua x2 / Gar) -3/Garrison (discovered 3 exits: *Res x3) -3/Research (discovered 5 exits: *Res x2 / *Arm / *Qua x2) -3/Armory -3/Lab -2/Research (discovered 5 exits: *Acc x3 / *Tes x2) -2/Testing (discovered 2 exits: *Acc / *Sec) -2/Section 7 (discovered 2 exits: *Acc / Gar) -2/Garrison (discovered 3 exits: *Acc x3) -1/Access -1/Garrison (discovered 3 exits: *Acc x3) -1/Access -1/Command (discovered 3 exits: *Sur x2 / *Ac0) -1/Access_0 Near Former Tau Ceti IV History --------- Turn | Location | Event 1 | -11/Scrapyard | Upgraded with Propulsion slot (x1) 1 | -11/Scrapyard | Upgraded with Utility slot (x1) 1 | -11/Scrapyard | Upgraded with Weapon slot (x1) 4 | -11/Scrapyard | Discovered new exit (range 17) 19 | -11/Scrapyard | Entered Materials 57 | -10/Materials | Discovered new exit (range 12) 62 | -10/Materials | Identified exit to Mines 164 | -10/Materials | Repaired Hammer 306 | -10/Materials | Build established: Mutant 363 | -10/Materials | Reached level 2 366 | -10/Materials | Upgraded with Utility slot (x1) 379 | -10/Materials | Discovered new exit (range 17) 452 | -10/Materials | Central database locked down 491 | -10/Materials | Discovered new exit (range 6) 547 | -10/Materials | Reached level 3 554 | -10/Materials | Upgraded with Propulsion slot (x1) 674 | -10/Materials | Discovered new exit (range 16) 721 | -10/Materials | Identified exit to Materials 856 | -10/Materials | Reached level 4 856 | -10/Materials | Upgraded with Utility slot (x1) 1104 | -10/Materials | Discovered new exit (range 9) 1265 | -10/Materials | Entered Mines 1266 | -10/Mines | Met a Derelict testing a Signal Generator 1267 | -10/Mines | Reached level 5 1281 | -10/Mines | Learned 2 Materials zone layouts 1318 | -10/Mines | Discovered exit to Materials (range 16) 1456 | -10/Mines | Discovered exit to Materials (range 11) 1520 | -10/Mines | Assembled infested the area 1525 | -10/Mines | Received a Rocket Launcher from a helpful Derelict 1526 | -10/Mines | Assisted by a Guerilla fighting off Assembled 1625 | -10/Mines | A weapon hastily lodged in a ceiling crevice suddenly fell to the ground 1669 | -10/Mines | Learned Materials trap positions 1729 | -10/Mines | Entered Materials 1730 | -9/Materials | Identified exit to Mines 1731 | -9/Materials | Loaded intel: 18 trap records 1731 | -9/Materials | Reached level 6 1732 | -9/Materials | Upgraded with Propulsion slot (x1) 1736 | -9/Materials | Reached level 7 1851 | -9/Materials | Build established: Scavenger-Mutant 2060 | -9/Materials | Discovered new exit (range 17) 2129 | -9/Materials | First assault squad dispatched 2135 | -9/Materials | Reached level 8 2226 | -9/Materials | Destroyed 8 combat bots 2305 | -9/Materials | Discovered new exit (range 11) 2339 | -9/Materials | Reached level 9 2341 | -9/Materials | Upgraded with Utility slot (x1) 2438 | -9/Materials | Destroyed 7 combat bots 2481 | -9/Materials | Build established: Scavenger-Sprinter 2566 | -9/Materials | Discovered new exit (range 13) 2569 | -9/Materials | Central database locked down 2641 | -9/Materials | Reached level 10 2666 | -9/Materials | Destroyed 7 combat bots 2810 | -9/Materials | High security lockdown imminent 2890 | -9/Materials | High security lockdown engaged 2992 | -9/Materials | Sterilization system engaged 2992 | -9/Materials | Non-combat units ordered to evacuate 3018 | -9/Materials | Destroyed 18 combat bots 3036 | -9/Materials | Build established: Hacker-Sprinter 3067 | -9/Materials | Entered Mines 3076 | -9/Mines | Reached level 11 3078 | -9/Mines | Upgraded with Propulsion slot (x1) 3097 | -9/Mines | Found a hidden stash of uninstalled traps 3098 | -9/Mines | Discovered new exit (range 6) 3099 | -9/Mines | Identified exit to Materials 3125 | -9/Mines | Discovered exit to Materials (range 14) 3139 | -9/Mines | Deemed a non-threat by the Exiles lab entrance 3139 | -9/Mines | Discovered new exit (range 5) 3140 | -9/Mines | Identified exit to Exiles 3149 | -9/Mines | Learned Materials garrison access intel 3282 | -9/Mines | Entered Exiles 3286 | -9/Exiles | Discovered new exit (range 15) 3289 | -9/Exiles | Met 8R-AWN 3294 | -9/Exiles | Met EX-HEX 3304 | -9/Exiles | Met EX-BIN 3347 | -9/Exiles | Build established: Scavenger-Sprinter 3866 | -9/Exiles | Aligned with FarCom system 3867 | -9/Exiles | Given EX-Vault access code 3873 | -9/Exiles | Opened EX-Vault 3875 | -9/Exiles | Found Prototype Processor 3875 | -9/Exiles | Identified Modified TNC 3877 | -9/Exiles | Found Prototype Device 3877 | -9/Exiles | Identified Skeleton Box 3880 | -9/Exiles | Found Prototype Device 3880 | -9/Exiles | Identified Chronowheel 3880 | -9/Exiles | Activated Chronowheel 3890 | -9/Exiles | Warned to stay clear of 0b10 Research branches 4083 | -9/Exiles | Met EX-DEC 4097 | -9/Exiles | Discovered new exit (range 12) 4100 | -9/Exiles | Identified exit to Mines 4197 | -9/Exiles | Entered Mines 4435 | -8/Mines | Discovered exit to Materials (range 11) 4489 | -8/Mines | Reached level 12 4491 | -8/Mines | Discovered exit to Materials (range 11) 4502 | -8/Mines | Upgraded with Utility slot (x1) 4503 | -8/Mines | Build established: Scavenger-Scout 4505 | -8/Mines | Entered Materials 4506 | -8/Materials | Loaded intel: 1 garrison access location 4566 | -8/Materials | Central database locked down 4598 | -8/Materials | Reached level 13 4704 | -8/Materials | Identified exit to Factory 4913 | -8/Materials | Identified exit to Garrison 4932 | -8/Materials | Build established: Hacker-Scout 5046 | -8/Materials | Reached level 14 5050 | -8/Materials | Upgraded with Utility slot (x1) 5305 | -8/Materials | First assault squad dispatched 5454 | -8/Materials | Garrison activated, responded to threat 5761 | -8/Materials | Build established: Hacker-Sprinter 6156 | -8/Materials | High security lockdown imminent 6176 | -8/Materials | Garrison activated, responded to threat 6219 | -8/Materials | Destroyed 10 combat bots 6236 | -8/Materials | High security lockdown engaged 6356 | -8/Materials | Sterilization system engaged 6356 | -8/Materials | Non-combat units ordered to evacuate 6384 | -8/Materials | Reached level 15 6446 | -8/Materials | Destroyed 34 combat bots 6456 | -8/Materials | Combat units ordered to evacuate 6516 | -8/Materials | Destroyed 14 combat bots 6561 | -8/Materials | Entered Garrison 6667 | -8/Garrison | Rescued a captive Derelict 6668 | -8/Garrison | Rescued a captive Derelict 6677 | -8/Garrison | Garrison Relay disabled 6704 | -8/Garrison | Triggered checkpoint 6793 | -8/Garrison | Triggered checkpoint 6807 | -8/Garrison | Triggered checkpoint 6824 | -8/Garrison | Discovered new exit (range 35) 6824 | -8/Garrison | Discovered new exit (range 19) 6824 | -8/Garrison | Discovered new exit (range 44) 6836 | -8/Garrison | Learned Materials security intel 6841 | -8/Garrison | Triggered checkpoint 6869 | -8/Garrison | Garrison Relay disabled 6963 | -8/Garrison | Garrison Relay disabled 6963 | -8/Garrison | Reached level 16 6965 | -8/Garrison | Upgraded with Utility slot (x1) 6974 | -8/Garrison | Garrison Relay disabled 7001 | -8/Garrison | Garrison Relay disabled 7022 | -8/Garrison | Installed Relay Interface Framework 7081 | -8/Garrison | Garrison Relay disabled 7103 | -8/Garrison | Triggered checkpoint 7105 | -8/Garrison | Spotted B-75 Beast 7138 | -8/Garrison | Core integrity fell below 50% 7162 | -8/Garrison | Destroyed B-75 Beast 7169 | -8/Garrison | Identified exit to Materials 7245 | -8/Garrison | Expanded RIF knowledge: Command Fork 7275 | -8/Garrison | Entered Materials 7325 | -8/Materials | Repaired Reaction Control System 7359 | -8/Materials | Repaired Shield Generator 7398 | -8/Materials | Repaired Cesium-ion Thruster 7432 | -8/Materials | Repaired Rocket Launcher 7471 | -8/Materials | Repaired Cesium-ion Thruster 7517 | -8/Materials | Repaired Imp. Deuterium Engine 7569 | -8/Materials | Repaired Imp. Flight Unit 7609 | -8/Materials | Repaired Hvy. Flail 7675 | -8/Materials | First assault squad dispatched 7828 | -8/Materials | High security lockdown imminent 7835 | -8/Materials | Discovered exit to Factory (range 17) 7849 | -8/Materials | Identified exit to Garrison 7852 | -8/Materials | Discovered exit to Factory (range 17) 7908 | -8/Materials | High security lockdown engaged 7938 | -8/Materials | Destroyed 9 combat bots 8041 | -8/Materials | Destroyed 24 combat bots 8156 | -8/Materials | Sterilization system engaged 8156 | -8/Materials | Non-combat units ordered to evacuate 8216 | -8/Materials | Destroyed 19 combat bots 8256 | -8/Materials | Combat units ordered to evacuate 8336 | -8/Materials | Destroyed 7 combat bots 8349 | -8/Materials | Reached level 17 8370 | -8/Materials | Upgraded with Weapon slot (x1) 8396 | -8/Materials | Entered Garrison 8426 | -8/Garrison | Garrison Relay disabled 8440 | -8/Garrison | Garrison Relay disabled 8462 | -8/Garrison | Triggered checkpoint 8490 | -8/Garrison | Garrison Relay disabled 8540 | -8/Garrison | Triggered checkpoint 8578 | -8/Garrison | Destroyed 10 combat bots 8588 | -8/Garrison | Discovered exit to Factory (range 12) 8604 | -8/Garrison | Triggered checkpoint 8637 | -8/Garrison | Garrison Relay disabled 8759 | -8/Garrison | Discovered exit to Factory (range 19) 8759 | -8/Garrison | Discovered exit to Factory (range 58) 8759 | -8/Garrison | Discovered exit to Factory (range 32) 8818 | -8/Garrison | Triggered checkpoint 8822 | -8/Garrison | Garrison Relay disabled 8838 | -8/Garrison | Triggered checkpoint 8845 | -8/Garrison | Expanded RIF knowledge: Coupler Efficiency 8849 | -8/Garrison | Triggered checkpoint 8884 | -8/Garrison | Triggered checkpoint 8884 | -8/Garrison | Destroyed 7 combat bots 8916 | -8/Garrison | Learned Factory security intel 8929 | -8/Garrison | Phase Generator disabled 8932 | -8/Garrison | Spotted B-75 Beast 8932 | -8/Garrison | Spotted B-75 Beast 8937 | -8/Garrison | Found Launcher Loader 8960 | -8/Garrison | Destroyed B-75 Beast 8974 | -8/Garrison | Destroyed B-75 Beast 9056 | -8/Garrison | Garrison Relay disabled 9069 | -8/Garrison | Entered Factory 9173 | -7/Factory | Fabricated Greatsword (x2) 9293 | -7/Factory | Identified exit to Garrison 9404 | -7/Factory | Discovered new exit (range 4) 9405 | -7/Factory | Identified exit to Storage 9469 | -7/Factory | First assault squad dispatched 9512 | -7/Factory | Reached level 18 9565 | -7/Factory | Fabricated Imp. Hacking Suite (x1) 9621 | -7/Factory | High security lockdown imminent 9701 | -7/Factory | High security lockdown engaged 9813 | -7/Factory | Destroyed 8 combat bots 9881 | -7/Factory | Discovered new exit (range 18) 9883 | -7/Factory | Destroyed 22 combat bots 9904 | -7/Factory | Garrison activated, responded to threat 9949 | -7/Factory | Reached level 19 10120 | -7/Factory | Destroyed 11 combat bots 10216 | -7/Factory | Destroyed 11 combat bots 10239 | -7/Factory | Discovered new exit (range 16) 10271 | -7/Factory | Destroyed 7 combat bots 10329 | -7/Factory | Core integrity fell below 50% 10355 | -7/Factory | Destroyed 20 combat bots 10548 | -7/Factory | Destroyed 7 combat bots 10605 | -7/Factory | Reached level 20 10645 | -7/Factory | Sterilization system engaged 10645 | -7/Factory | Non-combat units ordered to evacuate 10732 | -7/Factory | Destroyed 25 combat bots 10745 | -7/Factory | Combat units ordered to evacuate 10812 | -7/Factory | Destroyed 21 combat bots 10815 | -7/Factory | Discovered new exit (range 12) 10818 | -7/Factory | Identified exit to Factory 10894 | -7/Factory | Discovered exit to Factory (range 10) 10945 | -7/Factory | Ambient heat levels rising (+10) 11026 | -7/Factory | Discovered exit to Factory (range 15) 11040 | -7/Factory | Discovered exit to Storage (range 12) 11095 | -7/Factory | Ambient heat levels rising (+10) 11099 | -7/Factory | Discovered new exit (range 17) 11245 | -7/Factory | Ambient heat levels rising (+10) 11395 | -7/Factory | Ambient heat levels rising (+10) 11473 | -7/Factory | Entered Garrison 11554 | -7/Garrison | H-XX Assembler disabled 11593 | -7/Garrison | Triggered checkpoint 11608 | -7/Garrison | Found Prototype Device 11608 | -7/Garrison | Identified Active Sensor Suite 11681 | -7/Garrison | Triggered checkpoint 11761 | -7/Garrison | Phase Generator disabled 11881 | -7/Garrison | Destroyed 8 combat bots 11887 | -7/Garrison | Triggered checkpoint 11900 | -7/Garrison | Discovered new exit (range 16) 11904 | -7/Garrison | Identified exit to Factory 12042 | -7/Garrison | Destroyed 7 combat bots 12043 | -7/Garrison | Triggered checkpoint 12068 | -7/Garrison | Expanded RIF knowledge: Structural Interface 12115 | -7/Garrison | Triggered checkpoint 12118 | -7/Garrison | Garrison Relay disabled 12126 | -7/Garrison | Discovered exit to Factory (range 16) 12185 | -7/Garrison | Discovered exit to Factory (range 5) 12197 | -7/Garrison | Triggered checkpoint 12202 | -7/Garrison | Garrison Relay disabled 12225 | -7/Garrison | Build established: Hacker-Scout 12283 | -7/Garrison | Garrison Relay disabled 12297 | -7/Garrison | Triggered checkpoint 12311 | -7/Garrison | Triggered checkpoint 12355 | -7/Garrison | Triggered checkpoint 12534 | -7/Garrison | Destroyed 11 combat bots 12636 | -7/Garrison | Garrison Relay disabled 12670 | -7/Garrison | Entered Factory 12912 | -7/Factory | Found Prototype Launcher 12912 | -7/Factory | Identified Rocket Array 12976 | -7/Factory | Allied Derelicts emerged from ambush trap array 13003 | -7/Factory | Discovered new exit (range 13) 13012 | -7/Factory | System Shield fried by hacking feedback 13070 | -7/Factory | First assault squad dispatched 13087 | -7/Factory | Discovered exit to Factory (range 14) 13105 | -7/Factory | Fabricated Hyb. Fission Core (x2) 13168 | -7/Factory | Destroyed 7 combat bots 13202 | -7/Factory | Reached level 21 13208 | -7/Factory | Upgraded with Utility slot (x1) 13258 | -7/Factory | Discovered exit to Factory (range 17) 13392 | -7/Factory | Fabricated Imp. Hacking Suite? 13422 | -7/Factory | Fabricated Imp. System Shield? 13452 | -7/Factory | Fabricated Adv. Signal Interpreter? 13471 | -7/Factory | Discovered exit to Factory (range 15) 13554 | -7/Factory | Fabricated Launcher Loader? 13691 | -7/Factory | High security lockdown imminent 13771 | -7/Factory | High security lockdown engaged 13966 | -7/Factory | Destroyed 8 combat bots 14096 | -7/Factory | Build established: Hacker-Sprinter 14280 | -7/Factory | Destroyed 27 combat bots 14451 | -7/Factory | Garrison activated, responded to threat 14492 | -7/Factory | Destroyed 43 combat bots 14566 | -7/Factory | Sterilization system engaged 14566 | -7/Factory | Non-combat units ordered to evacuate 14629 | -7/Factory | Destroyed 48 combat bots 14656 | -7/Factory | Discovered exit to Storage (range 9) 14666 | -7/Factory | Combat units ordered to evacuate 14707 | -7/Factory | Discovered exit to Factory (range 11) 14796 | -7/Factory | Destroyed 8 combat bots 14866 | -7/Factory | Ambient heat levels rising (+10) 14886 | -7/Factory | Destroyed 8 combat bots 15016 | -7/Factory | Ambient heat levels rising (+10) 15072 | -7/Factory | Identified exit to Lower Caves 15166 | -7/Factory | Ambient heat levels rising (+10) 15228 | -7/Factory | Build established: Hacker-Scout 15261 | -7/Factory | Entered Lower Caves 15486 | -7/Lower Caves | Attracted the attention of an 0b10 checkpoint 15558 | -7/Lower Caves | Learned Factory stockpile data 15655 | -7/Lower Caves | Attracted the attention of an 0b10 outpost 15687 | -7/Lower Caves | Destroyed 9 combat bots 15694 | -7/Lower Caves | Discovered new exit (range 16) 15741 | -7/Lower Caves | Identified exit to Lower Caves 15805 | -7/Lower Caves | Found Alien Artifact 15805 | -7/Lower Caves | Identified Core Expander 15805 | -7/Lower Caves | Installed Core Expander, added new Propulsion slot 15838 | -7/Lower Caves | Entered another Lower Caves area 15922 | -7/Lower Caves | Discovered exit to Factory (range 10) 16062 | -7/Lower Caves | Attacked by a delusional Derelict stockpiling Unaware 16276 | -7/Lower Caves | Learned Factory stockpile data 16284 | -7/Lower Caves | Learned location of 1 exit from Factory 16394 | -7/Lower Caves | Discovered new exit (range 13) 16397 | -7/Lower Caves | Identified exit to Zion 16510 | -7/Lower Caves | Entered Zion 16519 | -7/Zion | Acquired unknown access codes intercepted by a Zionite 16536 | -7/Zion | Found Prototype Device 16539 | -7/Zion | Identified Mobile Refinery Mk. CCLXVII 16577 | -7/Zion | Discovered new exit (range 15) 16637 | -7/Zion | RIF detected upon attempting to enter Zion 16637 | -7/Zion | Attacked by Zionites 16637 | -7/Zion | Spotted Q3-VCG(B) 16637 | -7/Zion | Spotted V7-A7P(B) 16702 | -7/Zion | Destroyed V7-A7P(B) 16705 | -7/Zion | Destroyed Q3-VCG(B) 16708 | -7/Zion | 7V-RTL came to Zion's defense 16736 | -7/Zion | Destroyed Imprinter 16818 | -7/Zion | Destroyed 7V-RTL 16839 | -7/Zion | Found Adv. Powered Armor 17139 | -7/Zion | Build established: Hacker-Sprinter 17313 | -7/Zion | Learned location of 1 exit from Factory 17772 | -7/Zion | Discovered new exit (range 6) 17774 | -7/Zion | Saw the warning signs outside the Deep Caves entrance 17774 | -7/Zion | Identified exit to Deep Caves 17775 | -7/Zion | Entered Deep Caves 17777 | -7/Deep Caves | Met 5H-AD0 17794 | -7/Deep Caves | Z-Facility disabled 17901 | -7/Deep Caves | Found Prototype Protection 17901 | -7/Deep Caves | Identified Zio. Weapon Casing 17934 | -7/Deep Caves | Build established: Hacker-Scout 18068 | -7/Deep Caves | Discovered new exit (range 6) 18069 | -7/Deep Caves | Identified exit to Proximity Caves 18082 | -7/Deep Caves | Spotted AG-04792 18245 | -7/Deep Caves | Found Surveybot 24 Scanner 18447 | -7/Deep Caves | Triggered Deep Caves wall 18447 | -7/Deep Caves | Spotted AS-12420 18463 | -7/Deep Caves | Entered Proximity Caves 18465 | -6/Proximity Caves | Reached level 22 18601 | -6/Proximity Caves | Attracted the attention of an 0b10 outpost 18647 | -6/Proximity Caves | Destroyed 11 combat bots 18812 | -6/Proximity Caves | Discovered exit to Factory (range 18) 18955 | -6/Proximity Caves | Learned 4 Factory zone layouts 19113 | -6/Proximity Caves | Attracted the attention of an 0b10 checkpoint 19155 | -6/Proximity Caves | Entered Factory 19156 | -6/Factory | Identified exit to Lower Caves 19157 | -6/Factory | Identified exit to Factory 19474 | -6/Factory | Identified exit to Garrison 19505 | -6/Factory | First assault squad dispatched 19538 | -6/Factory | Discovered exit to Lower Caves (range 24) 19576 | -6/Factory | Fabricated Adv. Melee Analysis Suite? 19705 | -6/Factory | Found Launcher Loader 19913 | -6/Factory | Fabricated Adv. Melee Analysis Suite? 19976 | -6/Factory | Reached level 23 19977 | -6/Factory | Upgraded with Utility slot (x1) 20105 | -6/Factory | Fabricated Imp. Reaction Control System? 20284 | -6/Factory | Repaired Broken Cld. Cesium-ion Thruster? 20525 | -6/Factory | Fabricated Cld. Cesium-ion Thruster? 20552 | -6/Factory | Discovered exit to Factory (range 11) 20622 | -6/Factory | Destroyed 21 combat bots 20669 | -6/Factory | Discovered exit to Factory (range 20) 20690 | -6/Factory | Fabricated Cld. Cesium-ion Thruster? 20692 | -6/Factory | High security lockdown imminent 20719 | -6/Factory | Fabricated Cld. Cesium-ion Thruster? 20725 | -6/Factory | Destroyed 14 combat bots 20772 | -6/Factory | High security lockdown engaged 20963 | -6/Factory | Destroyed 20 combat bots 21118 | -6/Factory | Destroyed 19 combat bots 21170 | -6/Factory | Core integrity fell below 50% 21188 | -6/Factory | Sterilization system engaged 21188 | -6/Factory | Non-combat units ordered to evacuate 21191 | -6/Factory | Destroyed 25 combat bots 21288 | -6/Factory | Combat units ordered to evacuate 21411 | -6/Factory | Reached level 24 21422 | -6/Factory | Upgraded with Power slot (x1) 21478 | -6/Factory | Destroyed 11 combat bots 21488 | -6/Factory | Ambient heat levels rising (+10) 21624 | -6/Factory | Entered Garrison 21654 | -6/Garrison | Rescued a captive Derelict 21712 | -6/Garrison | Phase Generator disabled 21766 | -6/Garrison | Triggered checkpoint 21795 | -6/Garrison | Garrison Relay disabled 21896 | -6/Garrison | Triggered checkpoint 21906 | -6/Garrison | Triggered checkpoint 22056 | -6/Garrison | Discovered new exit (range 69) 22056 | -6/Garrison | Discovered new exit (range 49) 22056 | -6/Garrison | Discovered new exit (range 12) 22086 | -6/Garrison | Triggered checkpoint 22087 | -6/Garrison | Garrison Relay disabled 22091 | -6/Garrison | Learned Factory security intel 22122 | -6/Garrison | Triggered checkpoint 22153 | -6/Garrison | Garrison Relay disabled 22158 | -6/Garrison | Triggered checkpoint 22162 | -6/Garrison | Identified exit to Factory 22290 | -6/Garrison | Destroyed 10 combat bots 22363 | -6/Garrison | Expanded RIF knowledge: Robot Detection 22366 | -6/Garrison | Triggered checkpoint 22366 | -6/Garrison | Garrison Relay disabled 22374 | -6/Garrison | Garrison Relay disabled 22447 | -6/Garrison | Build established: Wizard-Scout 22509 | -6/Garrison | Entered Factory 22665 | -6/Factory | Discovered exit to Factory (range 20) 22727 | -6/Factory | Discovered exit to Factory (range 20) 22842 | -6/Factory | Discovered exit to Factory (range 5) 22859 | -6/Factory | First assault squad dispatched 22884 | -6/Factory | Fabricated Cld. Cesium-ion Thruster? 22949 | -6/Factory | Discovered exit to Factory (range 17) 22972 | -6/Factory | Fabricated Adv. Hacking Suite? 23022 | -6/Factory | High security lockdown imminent 23051 | -6/Factory | Destroyed 8 combat bots 23102 | -6/Factory | High security lockdown engaged 23118 | -6/Factory | Fabricated Adv. System Shield? 23239 | -6/Factory | Destroyed 18 combat bots 23424 | -6/Factory | Destroyed 18 combat bots 23482 | -6/Factory | Destroyed 23 combat bots 23619 | -6/Factory | Destroyed 11 combat bots 23702 | -6/Factory | Destroyed 11 combat bots 23737 | -6/Factory | Garrison activated, responded to threat 23763 | -6/Factory | Destroyed 15 combat bots 23764 | -6/Factory | Sterilization system engaged 23764 | -6/Factory | Non-combat units ordered to evacuate 23799 | -6/Factory | Build established: Wizard-Sprinter 23864 | -6/Factory | Combat units ordered to evacuate 23866 | -6/Factory | Cargo convoy interrupted 24051 | -6/Factory | Entered Lower Caves 24083 | -6/Lower Caves | Reached level 25 24165 | -6/Lower Caves | Learned Factory interactive machine intel 24165 | -6/Lower Caves | Discovered new exit (range 11) 24167 | -6/Lower Caves | Identified exit to Lower Caves 24172 | -6/Lower Caves | Learned location of 1 exit from Proximity Caves 24173 | -6/Lower Caves | Learned Factory security intel 24233 | -6/Lower Caves | Attracted the attention of an 0b10 checkpoint 24283 | -6/Lower Caves | Encountered a Warlord checkpoint 24320 | -6/Lower Caves | Build established: Wizard-Scout 24377 | -6/Lower Caves | Entered another Lower Caves area 24402 | -6/Lower Caves | Discovered exit to Factory (range 18) 24439 | -6/Lower Caves | Learned 4 Factory zone layouts 24451 | -6/Lower Caves | Encountered a Warlord checkpoint 24570 | -6/Lower Caves | Discovered new exit (range 20) 24594 | -6/Lower Caves | Learned Factory emergency access door positions 24600 | -6/Lower Caves | Identified exit to Data Miner 24676 | -6/Lower Caves | Entered Data Miner 24676 | -6/Data Miner | Discovered new exit (range 6) 24680 | -6/Data Miner | Met Data Miner 24684 | -6/Data Miner | Learned location of Section 7 (-2) 24684 | -6/Data Miner | Acquired the access code to Warlord's prototype stash 24688 | -6/Data Miner | Received God Mode back door access code from Data Miner 24695 | -6/Data Miner | Identified exit to Proximity Caves 24695 | -6/Data Miner | Entered Proximity Caves 24784 | -5/Proximity Caves | Attracted the attention of an 0b10 base 24816 | -5/Proximity Caves | Learned location of 2 exits from Upper Caves 24816 | -5/Proximity Caves | Learned location of 1 exit from Proximity Caves 24816 | -5/Proximity Caves | Learned location of 1 exit from Research 24816 | -5/Proximity Caves | Learned Armory trap positions 24816 | -5/Proximity Caves | Learned Factory emergency access door positions 24816 | -5/Proximity Caves | Learned Armory stockpile data 24830 | -5/Proximity Caves | Destroyed 13 combat bots 24979 | -5/Proximity Caves | Learned Factory emergency access door positions 25025 | -5/Proximity Caves | Spotted B-75 Beast 25027 | -5/Proximity Caves | Destroyed B-75 Beast 25040 | -5/Proximity Caves | Attracted the attention of an 0b10 checkpoint 25061 | -5/Proximity Caves | Destroyed 8 combat bots 25102 | -5/Proximity Caves | Entered Factory 25103 | -5/Factory | Identified exit to Upper Caves 25106 | -5/Factory | Loaded intel: 53 interactive machine locations 25402 | -5/Factory | First assault squad dispatched 25485 | -5/Factory | Fabricated Adv. Reaction Control System? 25572 | -5/Factory | Fabricated Cld. Cesium-ion Thruster? 25837 | -5/Factory | Reached level 26 25855 | -5/Factory | Build established: Wizard-Sprinter 25860 | -5/Factory | Destroyed 13 combat bots 26082 | -5/Factory | Destroyed 22 combat bots 26175 | -5/Factory | High security lockdown imminent 26187 | -5/Factory | Manually triggered Chute Trap 26187 | -5/Factory | Sucked down chute 26187 | -5/Factory | Entered Waste 26190 | -5/Waste | Spotted C-40 Crusher 26191 | -5/Waste | Spotted C-40 Crusher 26192 | -5/Waste | Spotted C-40 Crusher 26192 | -5/Waste | Spotted C-40 Crusher 26193 | -5/Waste | Spotted C-40 Crusher 26200 | -5/Waste | Discovered new exit (range 12) 26202 | -5/Waste | EMP discharged 26202 | -5/Waste | Identified exit to Factory 26204 | -5/Waste | Destroyed C-40 Crusher 26213 | -5/Waste | Destroyed C-40 Crusher 26217 | -5/Waste | Destroyed C-40 Crusher 26221 | -5/Waste | Destroyed C-40 Crusher 26223 | -5/Waste | Destroyed C-40 Crusher 26229 | -5/Waste | Entered Factory 26317 | -5/Factory | Discovered exit to Upper Caves (range 18) 26330 | -5/Factory | High security lockdown imminent 26342 | -5/Factory | Identified exit to Extension 26342 | -5/Factory | Central database locked down 26377 | -5/Factory | Repaired Hyb. Antimatter Reactor? 26410 | -5/Factory | High security lockdown engaged 26471 | -5/Factory | Fabricated L-41 Fighter (x3) 26475 | -5/Factory | Fabricated L-41 Fighter (x3) 26554 | -5/Factory | Destroyed 8 combat bots 26649 | -5/Factory | Destroyed 18 combat bots 26852 | -5/Factory | Destroyed 14 combat bots 26862 | -5/Factory | Garrison activated, responded to threat 26950 | -5/Factory | Destroyed 13 combat bots 27040 | -5/Factory | Destroyed 10 combat bots 27070 | -5/Factory | Reached level 27 27071 | -5/Factory | Upgraded with Utility slot (x1) 27095 | -5/Factory | Destroyed 13 combat bots 27158 | -5/Factory | System corruption reached 10% 27200 | -5/Factory | Destroyed 12 combat bots 27277 | -5/Factory | Sterilization system engaged 27277 | -5/Factory | Non-combat units ordered to evacuate 27303 | -5/Factory | Destroyed 24 combat bots 27377 | -5/Factory | Combat units ordered to evacuate 27577 | -5/Factory | Ambient heat levels rising (+10) 27727 | -5/Factory | Ambient heat levels rising (+10) 27843 | -5/Factory | Discovered new exit (range 8) 27877 | -5/Factory | Ambient heat levels rising (+10) 27914 | -5/Factory | Discovered new exit (range 17) 28007 | -5/Factory | Entered Extension 28102 | -5/Extension | Rescued a captive Derelict 28103 | -5/Extension | Rescued a captive Derelict 28107 | -5/Extension | Disrupted transfer network 28113 | -5/Extension | Rescued a captive Derelict 28119 | -5/Extension | Rescued a captive Derelict 28120 | -5/Extension | Rescued a captive Derelict 28127 | -5/Extension | Spotted B-75 Beast 28183 | -5/Extension | Destroyed B-75 Beast 28230 | -5/Extension | Spotted B-75 Beast 28266 | -5/Extension | Discovered new exit (range 16) 28271 | -5/Extension | Destroyed B-75 Beast 28302 | -5/Extension | Rescued A7 28307 | -5/Extension | First assault squad dispatched 28371 | -5/Extension | Rescued a captive Derelict 28436 | -5/Extension | Destroyed 9 combat bots 28447 | -5/Extension | Discovered new exit (range 10) 28447 | -5/Extension | Discovered new exit (range 6) 28448 | -5/Extension | Identified exit to Cetus 28449 | -5/Extension | Identified exit to Factory 28458 | -5/Extension | Entered Cetus 28458 | -5/Cetus | Accompanied by 1 ally (A7) 28461 | -5/Cetus | Spotted Cetus Guard 28461 | -5/Cetus | Spotted Cetus Guard 28461 | -5/Cetus | Spotted Cetus Guard 28461 | -5/Cetus | Spotted Cetus Guard 28463 | -5/Cetus | Acquired a Cetus Manufacturing Module code from A7 28466 | -5/Cetus | Destroyed Cetus Guard 28477 | -5/Cetus | High security lockdown imminent 28477 | -5/Cetus | Allies destroyed Cetus Guard 28477 | -5/Cetus | Destroyed Cetus Guard 28487 | -5/Cetus | Discovered new exit (range 17) 28491 | -5/Cetus | Spotted Cetus Guard 28491 | -5/Cetus | Spotted Cetus Guard 28491 | -5/Cetus | Spotted Cetus Guard 28491 | -5/Cetus | Spotted Cetus Guard 28499 | -5/Cetus | Destroyed Cetus Guard 28500 | -5/Cetus | Destroyed Cetus Guard 28501 | -5/Cetus | Discovered exit to Factory (range 20) 28502 | -5/Cetus | Destroyed Cetus Guard 28502 | -5/Cetus | Destroyed Cetus Guard 28506 | -5/Cetus | Met Revision 17 28524 | -5/Cetus | Started Cetus Manufacturing Module 28528 | -5/Cetus | Build established: Wizard-Scout 28549 | -5/Cetus | Manufactured an Enhanced Grunt 28557 | -5/Cetus | High security lockdown engaged 28574 | -5/Cetus | Manufactured an Enhanced Grunt 28599 | -5/Cetus | Manufactured an Enhanced Grunt 28622 | -5/Cetus | Cetus Manufacturing Module disabled 28628 | -5/Cetus | Core integrity fell below 50% 28658 | -5/Cetus | Lost 4 allies 28669 | -5/Cetus | Identified exit to Archives 28669 | -5/Cetus | Entered Archives 28669 | -5/Archives | Accompanied by 1 ally (A7) 28684 | -5/Archives | Met Zhirov 28688 | -5/Archives | Destroyed 15 combat bots 28688 | -5/Archives | Discovered new exit (range 18) 28690 | -5/Archives | Reinforcements dispatched to Archives 28691 | -5/Archives | Unable to access archive contents 28716 | -5/Archives | Discovered exit to Factory (range 16) 28724 | -5/Archives | Destroyed 7 combat bots 28732 | -5/Archives | Discovered new exit (range 14) 28735 | -5/Archives | Reinforcements dispatched to Archives 28737 | -5/Archives | Zhirov warped through subspace 28741 | -5/Archives | Identified exit to Hub_04(d) 28741 | -5/Archives | Entered Hub_04(d) 28762 | -5/Hub_04(d) | Discovered exit to Factory (range 16) 28766 | -5/Hub_04(d) | Discovered exit to Factory (range 19) 28828 | -5/Hub_04(d) | Garrison activated, responded to threat 29041 | -5/Hub_04(d) | First assault squad dispatched 29153 | -5/Hub_04(d) | Discovered exit to Factory (range 16) 29342 | -5/Hub_04(d) | Identified exit to Garrison 29399 | -5/Hub_04(d) | Discovered exit to Factory (range 18) 29600 | -5/Hub_04(d) | Garrison activated, responded to threat 29605 | -5/Hub_04(d) | Disrupted transfer network 29707 | -5/Hub_04(d) | Found Prototype Processor 29707 | -5/Hub_04(d) | Identified Exp. Targeting Computer 30198 | -5/Hub_04(d) | Garrison activated, responded to threat 30322 | -5/Hub_04(d) | Garrison activated, responded to threat 30413 | -5/Hub_04(d) | Destroyed 7 combat bots 30705 | -5/Hub_04(d) | Central database locked down 30736 | -5/Hub_04(d) | Network Hub disabled 30746 | -5/Hub_04(d) | Network Hub disabled 30761 | -5/Hub_04(d) | Spotted Lightning 30762 | -5/Hub_04(d) | Spotted Lightning 30762 | -5/Hub_04(d) | Spotted Lightning 30762 | -5/Hub_04(d) | Garrison activated, responded to threat 30778 | -5/Hub_04(d) | Spotted Lightning 30778 | -5/Hub_04(d) | Spotted Lightning 30804 | -5/Hub_04(d) | Spotted Lightning 30809 | -5/Hub_04(d) | Spotted Lightning 30810 | -5/Hub_04(d) | Spotted Lightning 30814 | -5/Hub_04(d) | Spotted Lightning 30836 | -5/Hub_04(d) | Network Hub disabled 30995 | -5/Hub_04(d) | Network Hub disabled 30995 | -5/Hub_04(d) | High security lockdown imminent 31005 | -5/Hub_04(d) | Entered Garrison 31119 | -5/Garrison | Build established: Wizard-Sprinter 31219 | -5/Garrison | Triggered checkpoint 31247 | -5/Garrison | Garrison Relay disabled 31331 | -5/Garrison | Triggered checkpoint 31378 | -5/Garrison | Reached level 28 31417 | -5/Garrison | Triggered checkpoint 31429 | -5/Garrison | Triggered checkpoint 31429 | -5/Garrison | Triggered checkpoint 31438 | -5/Garrison | Build established: Wizard-Scout 31465 | -5/Garrison | Destroyed 12 combat bots 31486 | -5/Garrison | Garrison Relay disabled 31495 | -5/Garrison | Triggered checkpoint 31510 | -5/Garrison | Learned Factory security intel 31517 | -5/Garrison | Discovered exit to Factory (range 3) 31523 | -5/Garrison | Expanded RIF knowledge: Autooverride 31606 | -5/Garrison | Garrison Relay disabled 31615 | -5/Garrison | Triggered checkpoint 31623 | -5/Garrison | Discovered exit to Factory (range 11) 31848 | -5/Garrison | Discovered exit to Factory (range 11) 31887 | -5/Garrison | Triggered checkpoint 31915 | -5/Garrison | Spotted B-75 Beast 31929 | -5/Garrison | Garrison Relay disabled 31963 | -5/Garrison | Phase Generator disabled 32138 | -5/Garrison | Build established: Hacker-Scout 32259 | -5/Garrison | Garrison Relay disabled 32267 | -5/Garrison | Destroyed B-75 Beast 32338 | -5/Garrison | Entered Factory 32367 | -4/Factory | Identified exit to Upper Caves 32372 | -4/Factory | Identified exit to Garrison 32559 | -4/Factory | Fabricated Adv. Hacking Suite? 32599 | -4/Factory | High security lockdown imminent 32627 | -4/Factory | Destroyed 7 combat bots 32636 | -4/Factory | Discovered new exit (range 12) 32679 | -4/Factory | High security lockdown engaged 32758 | -4/Factory | Destroyed 8 combat bots 32920 | -4/Factory | Destroyed 23 combat bots 32977 | -4/Factory | Reached level 29 32979 | -4/Factory | Upgraded with Weapon slot (x1) 33000 | -4/Factory | Destroyed 8 combat bots 33108 | -4/Factory | Destroyed 10 combat bots 33146 | -4/Factory | Destroyed 7 combat bots 33196 | -4/Factory | Destroyed 10 combat bots 33394 | -4/Factory | Destroyed 16 combat bots 33424 | -4/Factory | Sterilization system engaged 33424 | -4/Factory | Non-combat units ordered to evacuate 33440 | -4/Factory | Destroyed 14 combat bots 33524 | -4/Factory | Combat units ordered to evacuate 33583 | -4/Factory | Destroyed 13 combat bots 33589 | -4/Factory | Core integrity fell below 50% 33609 | -4/Factory | Destroyed 8 combat bots 33671 | -4/Factory | Destroyed 11 combat bots 33724 | -4/Factory | Ambient heat levels rising (+10) 33753 | -4/Factory | Discovered new exit (range 17) 33757 | -4/Factory | Identified exit to Research 33849 | -4/Factory | Discovered exit to Research (range 8) 33858 | -4/Factory | Entered Upper Caves 33859 | -4/Upper Caves | Identified exit to Upper Caves 34136 | -4/Upper Caves | Attracted the attention of an 0b10 checkpoint 34318 | -4/Upper Caves | Destroyed 8 combat bots 34435 | -4/Upper Caves | Entered another Upper Caves area 34523 | -4/Upper Caves | Encountered a Warlord checkpoint 34529 | -4/Upper Caves | Destroyed 7 combat bots 34558 | -4/Upper Caves | Attracted the attention of an 0b10 outpost 34613 | -4/Upper Caves | Destroyed 15 combat bots 34720 | -4/Upper Caves | Spotted B-86 Titan 34730 | -4/Upper Caves | Discovered new exit (range 11) 34751 | -4/Upper Caves | Destroyed B-86 Titan 34776 | -4/Upper Caves | Attracted the attention of an 0b10 checkpoint 34818 | -4/Upper Caves | Identified exit to Warlord 34849 | -4/Upper Caves | Learned Research emergency access door positions 34955 | -4/Upper Caves | Entered Warlord 34960 | -4/Warlord | Discovered new exit (range 14) 34973 | -4/Warlord | Opened side exit 34976 | -4/Warlord | RIF detected upon attempting to enter Warlord's base 34976 | -4/Warlord | Attacked by Warlord forces 34988 | -4/Warlord | Learned Quarantine stockpile data 34989 | -4/Warlord | Learned Armory recycling unit intel 34989 | -4/Warlord | Learned Research terminal intel 34992 | -4/Warlord | Spotted HI-QED(B) 35164 | -4/Warlord | Warlord's base attacked by MAIN.C 35234 | -4/Warlord | Destroyed 13 combat bots 35285 | -4/Warlord | Spotted PQ-CP8(g) 35302 | -4/Warlord | Destroyed PQ-CP8(g) 35328 | -4/Warlord | Spotted II-M6A(g) 35360 | -4/Warlord | Destroyed II-M6A(g) 35427 | -4/Warlord | Destroyed 7 combat bots 35514 | -4/Warlord | Warlord forces counterattacked 35641 | -4/Warlord | Destroyed 13 combat bots 35650 | -4/Warlord | Found Prototype Piercing Weapon 35650 | -4/Warlord | Identified Vortex Lance 35714 | -4/Warlord | Spotted EY-EB8(K) 35714 | -4/Warlord | Spotted O9-BXL(K) 35721 | -4/Warlord | Spotted Executioner 35766 | -4/Warlord | Spotted Executioner 35781 | -4/Warlord | Destroyed Executioner 35781 | -4/Warlord | Reached level 30 35783 | -4/Warlord | Destroyed Executioner 35784 | -4/Warlord | Upgraded with Propulsion slot (x1) 35808 | -4/Warlord | Destroyed 8 combat bots 35810 | -4/Warlord | Spotted B-86 Titan 35836 | -4/Warlord | Spotted Executioner 35839 | -4/Warlord | Warlord base infiltrated, sounded retreat 35860 | -4/Warlord | Spotted Executioner 35869 | -4/Warlord | Spotted Executioner 35875 | -4/Warlord | Opened Warlord's prototype stash 35982 | -4/Warlord | Spotted Executioner 35984 | -4/Warlord | Spotted Striker 35984 | -4/Warlord | Spotted Executioner 35989 | -4/Warlord | Identified exit to Proximity Caves 35989 | -4/Warlord | Entered Proximity Caves 36071 | -3/Proximity Caves | Attracted the attention of an 0b10 outpost 36217 | -3/Proximity Caves | Destroyed 13 combat bots 36217 | -3/Proximity Caves | Spotted B-86 Titan 36376 | -3/Proximity Caves | Entered Research 36377 | -3/Research | Identified exit to Armory 36378 | -3/Research | Identified exit to Quarantine 36380 | -3/Research | Loaded intel: 22 terminal locations 36542 | -3/Research | Discovered new exit (range 11) 36598 | -3/Research | Build established: Wizard-Scout 36778 | -3/Research | Fabricated Exp. Hacking Suite? 36905 | -3/Research | Garrison activated, responded to threat 37006 | -3/Research | Fabricated Femtoactuators? 37016 | -3/Research | Identified exit to Garrison 37092 | -3/Research | Fabricated Exp. Hacking Suite (x1) 37106 | -3/Research | Central database locked down 37125 | -3/Research | Discovered new exit (range 18) 37128 | -3/Research | Identified exit to Research 37181 | -3/Research | Spotted B-86 Titan 37224 | -3/Research | Reached level 31 37225 | -3/Research | Upgraded with Weapon slot (x1) 37232 | -3/Research | Garrison activated, responded to threat 37299 | -3/Research | Discovered exit to Research (range 22) 37388 | -3/Research | Spotted B-86 Titan 37452 | -3/Research | Fabricated Exp. Melee Analysis Suite? 37626 | -3/Research | First assault squad dispatched 37630 | -3/Research | Found Prototype Launcher 37630 | -3/Research | Identified Tactical Quantum Warhead 38465 | -3/Research | Garrison activated, responded to threat 38829 | -3/Research | Build established: Wizard-Sprinter 38894 | -3/Research | High security lockdown imminent 38974 | -3/Research | High security lockdown engaged 39077 | -3/Research | Spotted Executioner 39077 | -3/Research | Spotted Striker 39078 | -3/Research | Garrison activated, responded to threat 39081 | -3/Research | Destroyed Striker 39087 | -3/Research | Destroyed Executioner 39170 | -3/Research | Destroyed 18 combat bots 39177 | -3/Research | Spotted Investigator 39177 | -3/Research | Destroyed Investigator 39179 | -3/Research | Reached level 32 39285 | -3/Research | Destroyed 8 combat bots 39295 | -3/Research | Spotted Executioner 39298 | -3/Research | Destroyed Executioner 39318 | -3/Research | Sterilization system engaged 39318 | -3/Research | Non-combat units ordered to evacuate 39322 | -3/Research | Destroyed 8 combat bots 39418 | -3/Research | Combat units ordered to evacuate 39491 | -3/Research | Destroyed 8 combat bots 39618 | -3/Research | Ambient heat levels rising (+10) 39736 | -3/Research | Entered Garrison 39758 | -3/Garrison | Expanded RIF knowledge: Signal Jamming 39812 | -3/Garrison | Triggered checkpoint 39910 | -3/Garrison | Triggered checkpoint 39993 | -3/Garrison | Garrison Relay disabled 40014 | -3/Garrison | Triggered checkpoint 40037 | -3/Garrison | Garrison Relay disabled 40040 | -3/Garrison | Expanded RIF knowledge: Program Shield 40049 | -3/Garrison | Spotted B-86 Titan 40049 | -3/Garrison | Triggered checkpoint 40120 | -3/Garrison | Destroyed B-86 Titan 40294 | -3/Garrison | Triggered checkpoint 40298 | -3/Garrison | Destroyed 14 combat bots 40306 | -3/Garrison | Triggered checkpoint 40364 | -3/Garrison | Triggered checkpoint 40412 | -3/Garrison | Triggered checkpoint 40428 | -3/Garrison | Garrison Relay disabled 40443 | -3/Garrison | Garrison Relay disabled 40447 | -3/Garrison | Garrison Relay disabled 40469 | -3/Garrison | Discovered new exit (range 9) 40470 | -3/Garrison | Identified exit to Research 40526 | -3/Garrison | Discovered exit to Research (range 17) 40548 | -3/Garrison | Triggered checkpoint 40571 | -3/Garrison | Garrison Relay disabled 40631 | -3/Garrison | Phase Generator disabled 40634 | -3/Garrison | Discovered exit to Research (range 3) 40682 | -3/Garrison | Triggered checkpoint 40732 | -3/Garrison | Garrison Relay disabled 40750 | -3/Garrison | Triggered checkpoint 40754 | -3/Garrison | Triggered checkpoint 40758 | -3/Garrison | Triggered checkpoint 40818 | -3/Garrison | Rescued a captive Derelict 40820 | -3/Garrison | Rescued a captive Derelict 40837 | -3/Garrison | Destroyed 8 combat bots 40861 | -3/Garrison | Entered Research 41023 | -3/Research | Spotted B-86 Titan 41054 | -3/Research | Discovered exit to Research (range 10) 41070 | -3/Research | Discovered exit to Research (range 13) 41111 | -3/Research | First assault squad dispatched 41183 | -3/Research | Fabricated Nanosword? 41275 | -3/Research | Spotted B-86 Titan 41282 | -3/Research | Fabricated Nanosword? 41299 | -3/Research | High security lockdown imminent 41347 | -3/Research | Reached level 33 41350 | -3/Research | Upgraded with Weapon slot (x1) 41379 | -3/Research | High security lockdown engaged 41379 | -3/Research | Destroyed 12 combat bots 41469 | -3/Research | Fabricated Nanosword? 41572 | -3/Research | Destroyed 14 combat bots 41605 | -3/Research | Destroyed 9 combat bots 41666 | -3/Research | Spotted Executioner 41667 | -3/Research | Destroyed Executioner 41751 | -3/Research | Scanned by Researcher 41752 | -3/Research | Spotted Investigator 41752 | -3/Research | Destroyed Investigator 41777 | -3/Research | Destroyed 18 combat bots 41915 | -3/Research | Spotted Striker 41916 | -3/Research | Spotted Executioner 41919 | -3/Research | Destroyed Executioner 41919 | -3/Research | Destroyed Striker 41921 | -3/Research | Spotted Striker 41929 | -3/Research | Destroyed Striker 41973 | -3/Research | Destroyed 30 combat bots 42113 | -3/Research | Spotted Executioner 42117 | -3/Research | Destroyed Executioner 42123 | -3/Research | Sterilization system engaged 42123 | -3/Research | Non-combat units ordered to evacuate 42151 | -3/Research | Destroyed 18 combat bots 42167 | -3/Research | Spotted Investigator 42167 | -3/Research | Destroyed Investigator 42188 | -3/Research | Spotted Executioner 42192 | -3/Research | Destroyed Executioner 42223 | -3/Research | Combat units ordered to evacuate 42238 | -3/Research | Destroyed 29 combat bots 42273 | -3/Research | Entered Armory 42274 | -3/Armory | Loaded intel: 47 trap records 42276 | -3/Armory | Loaded intel: 2 recycling unit locations 42412 | -3/Armory | Fabricated Adv. Force Booster? 42485 | -3/Armory | Fabricated Nanosword (x1) 42523 | -3/Armory | First assault squad dispatched 42626 | -3/Armory | High security lockdown imminent 42627 | -3/Armory | Fabricated Nanosword? 42652 | -3/Armory | Spotted B-86 Titan 42677 | -3/Armory | Fabricated Imp. Fusion Compressor? 42681 | -3/Armory | Discovered new exit (range 3) 42681 | -3/Armory | Identified exit to Lab 42706 | -3/Armory | High security lockdown engaged 42713 | -3/Armory | Fabricated Cld. Impulse Thruster? 42724 | -3/Armory | Fabricated Cld. Impulse Thruster? 42725 | -3/Armory | Fabricated Cld. Impulse Thruster? 42794 | -3/Armory | Destroyed 11 combat bots 42873 | -3/Armory | Found Adv. Force Booster 42969 | -3/Armory | Spotted Investigator 42983 | -3/Armory | Destroyed Investigator 43127 | -3/Armory | Spotted Executioner 43129 | -3/Armory | Spotted Executioner 43155 | -3/Armory | Spotted Executioner 43170 | -3/Armory | Destroyed 34 combat bots 43217 | -3/Armory | Destroyed Executioner 43239 | -3/Armory | Destroyed Executioner 43294 | -3/Armory | Spotted Striker 43302 | -3/Armory | Spotted Executioner 43322 | -3/Armory | Destroyed Executioner 43347 | -3/Armory | Destroyed 11 combat bots 43394 | -3/Armory | Spotted Executioner 43401 | -3/Armory | Destroyed Striker 43404 | -3/Armory | Found Prototype Processor 43404 | -3/Armory | Identified Exp. Core Analyzer 43409 | -3/Armory | Found Prototype Device 43409 | -3/Armory | Identified Adv. Kinecellerator 43435 | -3/Armory | Destroyed Executioner 43460 | -3/Armory | Destroyed 10 combat bots 43509 | -3/Armory | Destroyed Executioner 43511 | -3/Armory | Spotted Striker 43543 | -3/Armory | Destroyed Striker 43552 | -3/Armory | Spotted Executioner 43596 | -3/Armory | Spotted Striker 43666 | -3/Armory | Destroyed Striker 43691 | -3/Armory | Destroyed 7 combat bots 43779 | -3/Armory | Spotted Investigator 43793 | -3/Armory | Destroyed Investigator 43818 | -3/Armory | Destroyed 21 combat bots 43833 | -3/Armory | Sterilization system engaged 43833 | -3/Armory | Non-combat units ordered to evacuate 43933 | -3/Armory | Combat units ordered to evacuate 43933 | -3/Armory | Allied Derelicts emerged from ambush trap array 43940 | -3/Armory | Reached level 34 43961 | -3/Armory | Destroyed 11 combat bots 44025 | -3/Armory | Spotted Striker 44108 | -3/Armory | Spotted Striker 44115 | -3/Armory | Destroyed Striker 44133 | -3/Armory | Ambient heat levels rising (+10) 44146 | -3/Armory | Destroyed Striker 44167 | -3/Armory | Destroyed 18 combat bots 44283 | -3/Armory | Ambient heat levels rising (+10) 44400 | -3/Armory | Destroyed B-86 Titan 44433 | -3/Armory | Ambient heat levels rising (+10) 44451 | -3/Armory | Entered Lab 44453 | -3/Lab | Discovered exit to Research (range 9) 44455 | -3/Lab | Entered Research 44456 | -2/Research | Identified exit to Testing 44544 | -2/Research | Fabricated Exp. Actuator Array (x1) 44631 | -2/Research | Identified exit to Access 44705 | -2/Research | First assault squad dispatched 44748 | -2/Research | Fabricated Imp. Fusion Compressor (x2) 44806 | -2/Research | Central database locked down 44836 | -2/Research | Build established: Machinist-Sprinter 44859 | -2/Research | Destroyed 10 combat bots 44911 | -2/Research | Destroyed 7 combat bots 44963 | -2/Research | Fabricated Exp. Reaction Control System? 45052 | -2/Research | Cargo convoy interrupted 45094 | -2/Research | Destroyed 14 combat bots 45223 | -2/Research | Destroyed 10 combat bots 45346 | -2/Research | Reached level 35 45417 | -2/Research | Destroyed 9 combat bots 45613 | -2/Research | High security lockdown imminent 45616 | -2/Research | Spotted B-90 Cyclops 45623 | -2/Research | Destroyed B-90 Cyclops 45693 | -2/Research | High security lockdown engaged 45694 | -2/Research | Destroyed 9 combat bots 45921 | -2/Research | Spotted Investigator 45921 | -2/Research | Destroyed Investigator 45946 | -2/Research | Sterilization system engaged 45946 | -2/Research | Non-combat units ordered to evacuate 45947 | -2/Research | Destroyed 27 combat bots 45959 | -2/Research | Spotted Executioner 45969 | -2/Research | Destroyed Executioner 46003 | -2/Research | Destroyed 9 combat bots 46046 | -2/Research | Combat units ordered to evacuate 46106 | -2/Research | Entered Testing 46107 | -2/Testing | Maximum security lockdown engaged 46356 | -2/Testing | Spotted Striker 46357 | -2/Testing | Destroyed Striker 46379 | -2/Testing | Spotted Investigator 46383 | -2/Testing | Spotted Executioner 46397 | -2/Testing | Destroyed 34 combat bots 46425 | -2/Testing | Destroyed Executioner 46429 | -2/Testing | Destroyed Investigator 46460 | -2/Testing | Reached level 36 46514 | -2/Testing | Spotted Striker 46527 | -2/Testing | Destroyed Striker 46548 | -2/Testing | Spotted Executioner 46555 | -2/Testing | Destroyed Executioner 46559 | -2/Testing | Spotted Striker 46562 | -2/Testing | Destroyed Striker 46564 | -2/Testing | Spotted Striker 46578 | -2/Testing | Destroyed Striker 46598 | -2/Testing | Spotted Investigator 46598 | -2/Testing | Destroyed Investigator 46642 | -2/Testing | Found Prototype Launcher 46642 | -2/Testing | Identified Containment Facilitator 46648 | -2/Testing | Destroyed 54 combat bots 46658 | -2/Testing | Found Prototype Device 46658 | -2/Testing | Identified 2N-1CE's Frost Array 46744 | -2/Testing | Spotted Striker 46744 | -2/Testing | Spotted Executioner 46744 | -2/Testing | Spotted Executioner 46772 | -2/Testing | Destroyed Striker 46786 | -2/Testing | Spotted Executioner 46805 | -2/Testing | Destroyed 8 combat bots 46807 | -2/Testing | Destroyed Executioner 46856 | -2/Testing | Destroyed Executioner 46881 | -2/Testing | Sterilization system engaged 46881 | -2/Testing | Non-combat units ordered to evacuate 46895 | -2/Testing | Destroyed Executioner 46916 | -2/Testing | Destroyed 23 combat bots 46978 | -2/Testing | Discovered exit to Access (range 4) 46981 | -2/Testing | Combat units ordered to evacuate 47009 | -2/Testing | Spotted Striker 47009 | -2/Testing | Spotted Striker 47011 | -2/Testing | Destroyed Striker 47014 | -2/Testing | Destroyed Striker 47035 | -2/Testing | Destroyed 18 combat bots 47039 | -2/Testing | Spotted Alpha 7 47050 | -2/Testing | Destroyed Alpha 7 47054 | -2/Testing | Found Prototype Device 47054 | -2/Testing | Identified Exp. ECM Suite 47117 | -2/Testing | Spotted Fortress 47134 | -2/Testing | Destroyed Fortress 47137 | -2/Testing | Found Prototype Device 47137 | -2/Testing | Identified Thermal Barrier 47151 | -2/Testing | Discovered new exit (range 6) 47152 | -2/Testing | Identified exit to Section 7 47152 | -2/Testing | Entered Section 7 47153 | -2/Section 7 | Maximum security lockdown engaged 47153 | -2/Section 7 | Identified exit to Garrison 47221 | -2/Section 7 | Spotted S7 Guard 47236 | -2/Section 7 | Destroyed S7 Guard 47249 | -2/Section 7 | Found Alien Artifact 47249 | -2/Section 7 | Identified Core Membrane 47249 | -2/Section 7 | Installed Core Membrane, gained immunity to corruption 47255 | -2/Section 7 | Spotted S7 Guard 47255 | -2/Section 7 | Destroyed S7 Guard 47259 | -2/Section 7 | Found Alien Artifact 47324 | -2/Section 7 | Discovered exit to Access (range 17) 47331 | -2/Section 7 | Destroyed 32 combat bots 47332 | -2/Section 7 | Found Alien Artifact 47332 | -2/Section 7 | Identified Integrated Mediator 47332 | -2/Section 7 | Installed Integrated Mediator, increased core attachment efficiency 47429 | -2/Section 7 | Spotted B-90 Cyclops 47430 | -2/Section 7 | Destroyed 21 combat bots 47432 | -2/Section 7 | Destroyed B-90 Cyclops 47448 | -2/Section 7 | Spotted Alpha 7 47448 | -2/Section 7 | Spotted Alpha 7 47451 | -2/Section 7 | Destroyed Alpha 7 47456 | -2/Section 7 | Destroyed Alpha 7 47485 | -2/Section 7 | Found Alien Artifact 47485 | -2/Section 7 | Identified Terrabomb 47485 | -2/Section 7 | Used Terrabomb 47491 | -2/Section 7 | Found Alien Artifact 47491 | -2/Section 7 | Identified Transdimensional Reconstructor 47491 | -2/Section 7 | Warped through subspace 47501 | -2/Section 7 | Identified Core Regenerator 47501 | -2/Section 7 | Used Core Regenerator, restored core integrity (+95) 47504 | -2/Section 7 | Found Alien Artifact 47515 | -2/Section 7 | Found Alien Reactor 47515 | -2/Section 7 | Identified Matter Drive 47524 | -2/Section 7 | Spotted Striker 47524 | -2/Section 7 | Spotted Striker 47528 | -2/Section 7 | Destroyed Striker 47533 | -2/Section 7 | Destroyed Striker 47537 | -2/Section 7 | Spotted Executioner 47537 | -2/Section 7 | Spotted Executioner 47539 | -2/Section 7 | Destroyed Executioner 47541 | -2/Section 7 | Destroyed Executioner 47572 | -2/Section 7 | Spotted B-99 Colossus 47572 | -2/Section 7 | Spotted Executioner 47572 | -2/Section 7 | Spotted Executioner 47572 | -2/Section 7 | Spotted Striker 47572 | -2/Section 7 | Spotted Striker 47577 | -2/Section 7 | Destroyed 9 combat bots 47611 | -2/Section 7 | Destroyed Striker 47611 | -2/Section 7 | Destroyed Striker 47636 | -2/Section 7 | Destroyed 7 combat bots 47637 | -2/Section 7 | Spotted Executioner 47687 | -2/Section 7 | Found Alien Artifact 47687 | -2/Section 7 | Identified LRC Matter Compressor 47687 | -2/Section 7 | Installed LRC Matter Compressor, increased matter storage capacity (+125) 47689 | -2/Section 7 | Found Alien Artifact 47689 | -2/Section 7 | Identified LRC Insulator 47689 | -2/Section 7 | Installed LRC Insulator, gained EM resistance (25) 47705 | -2/Section 7 | Destroyed Executioner 47706 | -2/Section 7 | Destroyed Executioner 47707 | -2/Section 7 | Destroyed Executioner 47772 | -2/Section 7 | Destroyed B-99 Colossus 47793 | -2/Section 7 | Destroyed 24 combat bots 47793 | -2/Section 7 | Spotted Executioner 47815 | -2/Section 7 | Spotted Striker 47816 | -2/Section 7 | Destroyed Executioner 47840 | -2/Section 7 | Destroyed Striker 47871 | -2/Section 7 | Sterilization system engaged 47871 | -2/Section 7 | Non-combat units ordered to evacuate 47882 | -2/Section 7 | Destroyed 26 combat bots 47958 | -2/Section 7 | Spotted Striker 47966 | -2/Section 7 | Destroyed Striker 47971 | -2/Section 7 | Combat units ordered to evacuate 47983 | -2/Section 7 | Spotted Striker 47988 | -2/Section 7 | Destroyed Striker 48025 | -2/Section 7 | Entered Garrison 48029 | -2/Garrison | Destroyed 35 combat bots 48048 | -2/Garrison | Reached level 37 48107 | -2/Garrison | Triggered checkpoint 48116 | -2/Garrison | Spotted B-90 Cyclops 48134 | -2/Garrison | Garrison Relay disabled 48136 | -2/Garrison | Discovered exit to Access (range 78) 48136 | -2/Garrison | Discovered exit to Access (range 53) 48136 | -2/Garrison | Discovered exit to Access (range 59) 48136 | -2/Garrison | Central database locked down 48151 | -2/Garrison | Triggered checkpoint 48220 | -2/Garrison | Triggered checkpoint 48263 | -2/Garrison | Destroyed B-90 Cyclops 48313 | -2/Garrison | Triggered checkpoint 48327 | -2/Garrison | Garrison Relay disabled 48342 | -2/Garrison | Destroyed 14 combat bots 48357 | -2/Garrison | Triggered checkpoint 48361 | -2/Garrison | Build established: Machinist-Scout 48410 | -2/Garrison | Garrison Relay disabled 48412 | -2/Garrison | Destroyed 8 combat bots 48413 | -2/Garrison | Triggered checkpoint 48439 | -2/Garrison | Triggered checkpoint 48463 | -2/Garrison | Triggered checkpoint 48477 | -2/Garrison | Garrison Relay disabled 48482 | -2/Garrison | Expanded RIF knowledge: Autoassimilate 48489 | -2/Garrison | Entered Access 48501 | -1/Access | Destroyed 8 combat bots 48501 | -1/Access | Central database locked down 48622 | -1/Access | Destroyed 9 combat bots 48623 | -1/Access | High security lockdown imminent 48627 | -1/Access | Identified exit to Garrison 48703 | -1/Access | High security lockdown engaged 48708 | -1/Access | Fabricated Exp. Phase Shifter? 48728 | -1/Access | Spotted Striker 48741 | -1/Access | Destroyed Striker 48777 | -1/Access | Destroyed 13 combat bots 48863 | -1/Access | Destroyed 7 combat bots 48865 | -1/Access | Spotted Executioner 48865 | -1/Access | Spotted Striker 48872 | -1/Access | Destroyed Executioner 48875 | -1/Access | Destroyed Striker 48896 | -1/Access | Destroyed 8 combat bots 48975 | -1/Access | Garrison activated, responded to threat 49007 | -1/Access | Spotted Striker 49008 | -1/Access | Spotted Striker 49009 | -1/Access | Destroyed Striker 49011 | -1/Access | Destroyed Striker 49017 | -1/Access | Spotted Investigator 49046 | -1/Access | Destroyed 7 combat bots 49070 | -1/Access | Destroyed Investigator 49079 | -1/Access | Spotted Executioner 49079 | -1/Access | Spotted Executioner 49087 | -1/Access | Reached level 38 49108 | -1/Access | Destroyed 9 combat bots 49111 | -1/Access | Spotted Executioner 49111 | -1/Access | Spotted Executioner 49120 | -1/Access | Destroyed Executioner 49133 | -1/Access | Garrison activated, responded to threat 49155 | -1/Access | Destroyed Executioner 49156 | -1/Access | Destroyed Executioner 49186 | -1/Access | Spotted Striker 49186 | -1/Access | Spotted Striker 49193 | -1/Access | Destroyed Striker 49198 | -1/Access | Destroyed Striker 49249 | -1/Access | Destroyed 42 combat bots 49329 | -1/Access | Spotted Striker 49330 | -1/Access | Destroyed Striker 49347 | -1/Access | Spotted Investigator 49356 | -1/Access | Destroyed Investigator 49363 | -1/Access | Spotted Executioner 49366 | -1/Access | Destroyed Executioner 49376 | -1/Access | Sterilization system engaged 49399 | -1/Access | Destroyed 29 combat bots 49461 | -1/Access | Destroyed 10 combat bots 49676 | -1/Access | Ambient heat levels rising (+10) 49690 | -1/Access | Entered Garrison 49712 | -1/Garrison | Triggered checkpoint 49813 | -1/Garrison | Spotted B-99 Colossus 49831 | -1/Garrison | Destroyed 11 combat bots 49871 | -1/Garrison | Destroyed B-99 Colossus 49892 | -1/Garrison | Destroyed 9 combat bots 49920 | -1/Garrison | Triggered checkpoint 49974 | -1/Garrison | Triggered checkpoint 49987 | -1/Garrison | Destroyed 16 combat bots 50085 | -1/Garrison | Triggered checkpoint 50089 | -1/Garrison | Garrison Relay disabled 50098 | -1/Garrison | Discovered new exit (range 3) 50099 | -1/Garrison | Identified exit to Access 50128 | -1/Garrison | Phase Generator disabled 50165 | -1/Garrison | Reached level 39 50169 | -1/Garrison | Rescued a captive Derelict 50171 | -1/Garrison | Rescued a captive Derelict 50186 | -1/Garrison | Destroyed 7 combat bots 50225 | -1/Garrison | Garrison Relay disabled 50227 | -1/Garrison | Discovered exit to Access (range 10) 50230 | -1/Garrison | Triggered checkpoint 50243 | -1/Garrison | Garrison Relay disabled 50248 | -1/Garrison | Spotted B-86 Titan 50249 | -1/Garrison | Spotted B-90 Cyclops 50255 | -1/Garrison | Destroyed B-90 Cyclops 50262 | -1/Garrison | Destroyed B-86 Titan 50265 | -1/Garrison | Destroyed B-86 Titan 50273 | -1/Garrison | Destroyed B-90 Cyclops 50296 | -1/Garrison | Expanded RIF knowledge: Command Fork 50309 | -1/Garrison | Discovered exit to Access (range 11) 50332 | -1/Garrison | Triggered checkpoint 50341 | -1/Garrison | Garrison Relay disabled 50347 | -1/Garrison | Spotted B-99 Colossus 50368 | -1/Garrison | Destroyed B-99 Colossus 50378 | -1/Garrison | Entered Access 50486 | -1/Access | Spotted B-99 Colossus 50488 | -1/Access | Destroyed B-99 Colossus 50545 | -1/Access | Destroyed 21 combat bots 50571 | -1/Access | High security lockdown imminent 50580 | -1/Access | Spotted B-99 Colossus 50580 | -1/Access | Spotted B-99 Colossus 50613 | -1/Access | Destroyed B-99 Colossus 50617 | -1/Access | Destroyed B-99 Colossus 50651 | -1/Access | High security lockdown engaged 50770 | -1/Access | Destroyed 26 combat bots 50796 | -1/Access | Spotted Executioner 50796 | -1/Access | Spotted Striker 50796 | -1/Access | Spotted Striker 50797 | -1/Access | Destroyed Executioner 50798 | -1/Access | Destroyed Striker 50800 | -1/Access | Spotted Executioner 50818 | -1/Access | Destroyed Executioner 50822 | -1/Access | Destroyed Striker 50846 | -1/Access | Destroyed 12 combat bots 50847 | -1/Access | Spotted Striker 50848 | -1/Access | Spotted Investigator 50849 | -1/Access | Destroyed Investigator 50869 | -1/Access | Spotted Striker 50877 | -1/Access | Destroyed Striker 50882 | -1/Access | Destroyed Striker 50912 | -1/Access | Destroyed 19 combat bots 50946 | -1/Access | Spotted Striker 50946 | -1/Access | Spotted Executioner 50946 | -1/Access | Spotted Striker 50946 | -1/Access | Spotted Executioner 50947 | -1/Access | Spotted Executioner 50963 | -1/Access | Destroyed Striker 51026 | -1/Access | Destroyed Executioner 51034 | -1/Access | Destroyed Striker 51038 | -1/Access | Destroyed Executioner 51066 | -1/Access | Destroyed Executioner 51087 | -1/Access | Destroyed 25 combat bots 51135 | -1/Access | Spotted Investigator 51142 | -1/Access | Spotted Striker 51142 | -1/Access | Spotted Striker 51146 | -1/Access | Spotted Executioner 51149 | -1/Access | Destroyed Striker 51171 | -1/Access | Destroyed 8 combat bots 51174 | -1/Access | Destroyed Investigator 51188 | -1/Access | Destroyed Striker 51196 | -1/Access | Sterilization system engaged 51198 | -1/Access | Destroyed Executioner 51231 | -1/Access | Destroyed 10 combat bots 51273 | -1/Access | Destroyed 10 combat bots 51326 | -1/Access | Spotted B-99 Colossus 51332 | -1/Access | Destroyed B-99 Colossus 51441 | -1/Access | Destroyed 36 combat bots 51496 | -1/Access | Ambient heat levels rising (+10) 51512 | -1/Access | Spotted B-99 Colossus 51529 | -1/Access | Destroyed 7 combat bots 51529 | -1/Access | Destroyed B-99 Colossus 51579 | -1/Access | Spotted B-99 Colossus 51610 | -1/Access | Spotted B-99 Colossus 51613 | -1/Access | Destroyed B-99 Colossus 51618 | -1/Access | Destroyed B-99 Colossus 51646 | -1/Access | Ambient heat levels rising (+10) 51658 | -1/Access | Discovered new exit (range 7) 51660 | -1/Access | Identified exit to Command 51660 | -1/Access | Entered Command 51662 | -1/Command | Reached level 40 51663 | -1/Command | Destroyed 8 combat bots 51668 | -1/Command | Identified exit to Surface 51679 | -1/Command | Disengaged cave seal 51746 | -1/Command | Disengaged cave seal 51800 | -1/Command | High security lockdown imminent 51833 | -1/Command | Spotted M Guard 51833 | -1/Command | Spotted M Guard 51837 | -1/Command | Spotted Combat Programmer 51839 | -1/Command | Destroyed Combat Programmer 51839 | -1/Command | Spotted Combat Programmer 51842 | -1/Command | Destroyed Combat Programmer 51852 | -1/Command | Destroyed M Guard 51854 | -1/Command | Destroyed M Guard 51854 | -1/Command | All MAIN.C guards destroyed 51880 | -1/Command | High security lockdown engaged 51886 | -1/Command | Met MAIN.C 51903 | -1/Command | Destroyed MAIN.C Shell 51904 | -1/Command | MAIN.C activated Command garrisons 51906 | -1/Command | 0b10 Conduit disabled 51908 | -1/Command | Destroyed MAIN.C 51911 | -1/Command | Found Prototype Device 51911 | -1/Command | Identified Exp. Shock Absorption System 51915 | -1/Command | Identified Hpw. Transdimensional Reconstructor 51915 | -1/Command | Discovered exit to Surface (range 40) 51915 | -1/Command | Discovered exit to Surface (range 103) 51915 | -1/Command | Extracted map data and part IDs from MAIN.C's data core 51939 | -1/Command | Spotted B-99 Colossus 51944 | -1/Command | Destroyed B-99 Colossus 51990 | -1/Command | Destroyed 13 combat bots 51997 | -1/Command | Spotted Striker 52000 | -1/Command | Destroyed Striker 52050 | -1/Command | Destroyed 21 combat bots 52143 | -1/Command | Destroyed 43 combat bots 52225 | -1/Command | Phase Generator disabled 52231 | -1/Command | Destroyed 18 combat bots 52231 | -1/Command | Spotted Alpha 7 52232 | -1/Command | Destroyed Alpha 7 52278 | -1/Command | Spotted B-99 Colossus 52304 | -1/Command | Destroyed B-99 Colossus 52325 | -1/Command | Destroyed 14 combat bots 52360 | -1/Command | Warped through subspace to slip node 52360 | -1/Command | Discovered new exit (range 5) 52361 | -1/Command | Identified exit to Access_0 52361 | -1/Command | Entered Access_0 52362 | -1/Access_0 | Met Architect 52372 | -1/Access_0 | Destroyed A8 52375 | -1/Access_0 | Architect warped through subspace 52420 | -1/Access_0 | Architect warped through subspace 52447 | -1/Access_0 | A6 warped into view 52453 | -1/Access_0 | Destroyed A6 52457 | -1/Access_0 | Architect warped through subspace 52487 | -1/Access_0 | Architect warped through subspace 52489 | -1/Access_0 | Subspace Access Node disabled 52498 | -1/Access_0 | Destroyed 11 combat bots 52516 | -1/Access_0 | Found Hpw. Transdimensional Reconstructor 52566 | -1/Access_0 | A5 warped into view 52567 | -1/Access_0 | Destroyed A5 52568 | -1/Access_0 | Found Exp. System Shield 52588 | -1/Access_0 | Destroyed 8 combat bots 52626 | -1/Access_0 | A4 warped into view 52633 | -1/Access_0 | Destroyed A4 52655 | -1/Access_0 | Subspace Access Node disabled 52661 | -1/Access_0 | Destroyed 10 combat bots 52674 | -1/Access_0 | Subspace Access Node disabled 52713 | -1/Access_0 | Subspace Access Node disabled 52796 | -1/Access_0 | A3 warped into view 52813 | -1/Access_0 | Destroyed A3 52834 | -1/Access_0 | Destroyed 8 combat bots 52938 | -1/Access_0 | Destroyed A2 52939 | -1/Access_0 | Extracted Singularity Gate Test 138-C access codes from A2's data core 52973 | -1/Access_0 | Destroyed Architect 52974 | -1/Access_0 | Architect triggered a singularity event 52975 | -1/Access_0 | Extracted unknown sensor trigger ID from Architect's data core 52975 | -1/Access_0 | Found Prototype Hackware 52975 | -1/Access_0 | Identified Architect God Chip A 52977 | -1/Access_0 | Warped through subspace to slip node 52977 | -1/Access_0 | Discovered exit to Surface (range 8) 52978 | *** | Escaped singularity! Last Messages --------------- 52973_ Quantum Shear penetrates Wall. 52973_ Nanosword follow-up attack on Architect. 52973_ Architect: "If I can't win, no one wins!" [Achievement: The Bigger They Are] 52973_ Architect destroyed. 52974_ A0_COM: Initiating irreversible singularity event. Goodbye. 52974_ Acquired 49 matter. 52975_ A0_COM: 10. 52975_ Acquired 1 matter. 52975_ Acquired data core, extracted unknown sensor trigger ID. 52975_ Acquired Prototype Hackware. 52975_ Identified Architect God Chip A. 52976_ A0_COM: 9. 52976_ Dropped Graphene Brace. 52977_ A0_COM: 8. 52977_ Warped through subspace, drawn to slip node. 52977_ EXIT=FOUND: SURFACE 52978_ A0_COM: 7. [Achievement: Planet Killer] [Achievement: True Flier] Map ----- +----------------------------------------------------+ | | | | | | | | | | | | | | | | | | | | | | | | | | | | | | | | | ?????????????????????????????????????????????????? | | ?????????????????????????????????????????????????? | | ?????????????????????????????????????????????????? | | ?????????????????????????????????????????????????? | | ?????????????????????????????????????????????????? | | ?????????????????????????????????????????????????? | | ????????????????????????###??????????????????????? | | ???????????????????????## ##?????????????????????? | | ???????????????????????# #?????????????????????? | | ???????????????????????# @ #?????????????????????? | | ??????????????????????## #?????????????????????? | | ??????????????????????# #?????????????????????? | | ??????????????????????# ##?????????????????????? | | ??????????????????????## #?????????????????????? | | ??????????????????????# #?????????????????????? | | ??????????????????????# ##?????????????????????? | | ??????????????????????# ! #?????????????????????? | | ??????????????????????# ##?????????????????????? | | ??????????????????????## #??????????????????????? | | ???????????????????????####??????????????????????? | | ?????????????????????????????????????????????????? | | ?????????????????????????????????????????????????? | | ?????????????????????????????????????????????????? | | ?????????????????????????????????????????????????? | | ?????????????????????????????????????????????????? | | ?????????????????????????????????????????????????? | | ?????????????????????????????????????????????????? | | ?????????????????????????????????????????????????? | | ?????????????????????????????????????????????????? | | ?????????????????????????????????????????????????? | | ?????????????????????????????????????????????????? | | ?????????????????????????????????????????????????? | | ?????????????????????????????????????????????????? | | ?????????????????????????????????????????????????? | +----------------------------------------------------+ Best States ------------- Heat Dissipation 103 Energy Generation 71 Energy Capacity 1600 Matter Stores 425 Matter Capacity 425 Sight Range 22 Robot Scan Range 28 Terrain Scan Range 24 Terrain Scan Density 510 Armor Coverage 400 Resistance: KI 10 Resistance: TH 10 Resistance: EX 10 Resistance: EM 25 Melee Speed Boost 50 Phase Shifting 20 Evasion (%) 101 Melee Accuracy 12 Launcher Accuracy 20 Core Analysis 8 Kinecelleration 50 Force Boost 40 Offensive Hacking 76 Defensive Hacking 31 Item Schematics ----------------- Greatsword | -8/Garrison | Hacked Phase Shifter | -7/Factory | Hacked Adv. Shield Generator | -7/Factory | Hacked Neutrino Core | -7/Factory | Hacked Launcher Loader | -7/Factory | Scanalyzed Microactuators | -7/Factory | Scanalyzed Adv. Signal Interpreter | -7/Factory | Hacked Hyb. Deuterium Engine | -7/Factory | Hacked Imp. Hacking Suite | -7/Factory | Hacked Imp. System Shield | -7/Factory | Hacked Hyb. Fission Core | -7/Factory | Hacked Imp. Reaction Control System | -7/Factory | Hacked KE Penetrator | -7/Factory | Hacked Imp. Cooling System | -7/Zion | Archive Lgt. Angular Momentum Engine | -7/Zion | Archive Mak. Spear | -7/Zion | Archive Mak. Cloaking Device | -7/Zion | Archive Kinecellerator | -7/Zion | Archive Imp. Arc Projector | -7/Zion | Archive Enh. Optical Array | -7/Zion | Archive Imp. Deuterium Engine | -7/Zion | Archive Hvy. Beamcaster | -7/Zion | Archive Power Maul | -7/Zion | Archive Adv. Terrain Scanner | -7/Zion | Archive Imp. Field Recycling Unit | -7/Zion | Archive Mak. Terrain Scan Processor | -7/Zion | Archive Energy Well | -7/Zion | Archive Adv. Melee Analysis Suite | -6/Factory | Hacked Scatter Rocket Array | -6/Factory | Hacked Cld. Cesium-ion Thruster | -6/Factory | Scanalyzed Fusion Compressor | -6/Garrison | Hacked Lrn. Proton Cannon | -6/Factory | Hacked Nanoactuators | -6/Factory | Scanalyzed Adv. Hacking Suite | -6/Factory | Hacked Gyrokinetic Inverter | -6/Factory | Hacked Adv. System Shield | -6/Factory | Hacked Combat Drone Bay | -6/Data Miner | Free Lgt. Regenerative Plating | -6/Data Miner | Free Cld. Gravmag System | -6/Data Miner | Free Prc. Energy Filter | -6/Data Miner | Free Cld. Plasma Rifle | -6/Data Miner | Free Adv. Medium Treads | -6/Data Miner | Free Adv. Thermal Generator | -6/Data Miner | Free Adv. Datajack | -6/Data Miner | Free Imp. Transmission Jammer | -6/Data Miner | Free Com. HERF Cannon | -6/Data Miner | Free Mak. Sword | -5/Factory | Scanalyzed Adv. Reaction Control System | -5/Factory | Hacked Adv. Launcher Guidance Computer | -5/Extension | Hacked Imp. Phase Shifter | -5/Extension | Hacked Imp. Armor Integrity Analyzer | -5/Hub_04(d) | Hacked Imp. Weapon Cycler | -5/Hub_04(d) | Hacked Imp. Fusion Compressor | -5/Garrison | Hacked Lrn. Terrain Scanner | -5/Garrison | Hacked Impulse Thruster | -5/Garrison | Hacked Exp. Hacking Suite | -4/Factory | Hacked Femtoactuators | -3/Research | Hacked Nanosword | -3/Research | Hacked Exp. Melee Analysis Suite | -3/Research | Hacked Cld. Impulse Thruster | -3/Research | Hacked Adv. Component Analysis Suite | -3/Research | Hacked Imp. Remote Force Field | -3/Research | Hacked Graphene Brace | -3/Research | Scanalyzed Exp. Q-thruster | -3/Research | Hacked Exp. Power Amplifier | -3/Research | Hacked Adv. System Restoration Module | -3/Garrison | Hacked Adv. Force Booster | -3/Garrison | Hacked Adv. Phase Shifter | -3/Garrison | Hacked Exp. Actuator Array | -2/Research | Hacked Exp. Reaction Control System | -2/Research | Hacked Lgt. Quantum Reactor | -2/Research | Hacked Biometal Heavy Treads | -2/Research | Hacked Imp. Thermal Defense Suite | -2/Testing | Archive Adv. Matter Compressor | -2/Testing | Archive Exp. Phase Shifter | -2/Garrison | Hacked Hyb. Antimatter Reactor | -1/Access | Hacked Stasis Canceller | -1/Garrison | Hacked Exp. Force Field | -1/Garrison | Hacked Robot Schematics ------------------ A-02 Transporter | -7/Zion | Archive L-41 Fighter | -7/Zion | Archive G-47 Trooper | -7/Zion | Archive S-27 Virus | -6/Data Miner | Free R-10 Processor | -6/Data Miner | Free Y-54 Guardian | -6/Data Miner | Free G-50 Soldier | -6/Data Miner | Free C-65 Expert | -2/Research | Hacked K-01 Serf | -2/Research | Hacked Fabricated ------------ Greatsword | x2 | -7/Factory Imp. Hacking Suite | x1 | -7/Factory Hyb. Fission Core | x2 | -7/Factory Imp. Hacking Suite | x1 | -7/Factory Imp. System Shield | x1 | -7/Factory Adv. Signal Interpreter | x2 | -7/Factory Launcher Loader | x2 | -7/Factory Adv. Melee Analysis Suite | x1 | -6/Factory Adv. Melee Analysis Suite | x1 | -6/Factory Imp. Reaction Control System | x1 | -6/Factory Cld. Cesium-ion Thruster | x1 | -6/Factory Cld. Cesium-ion Thruster | x1 | -6/Factory Cld. Cesium-ion Thruster | x1 | -6/Factory Cld. Cesium-ion Thruster | x1 | -6/Factory Adv. Hacking Suite | x1 | -6/Factory Adv. System Shield | x1 | -6/Factory Adv. Reaction Control System | x1 | -5/Factory Cld. Cesium-ion Thruster | x1 | -5/Factory L-41 Fighter | x3 | -5/Factory L-41 Fighter | x3 | -5/Factory Adv. Hacking Suite | x1 | -4/Factory Exp. Hacking Suite | x1 | -3/Research Femtoactuators | x1 | -3/Research Exp. Hacking Suite | x1 | -3/Research Exp. Melee Analysis Suite | x1 | -3/Research Nanosword | x1 | -3/Research Nanosword | x1 | -3/Research Nanosword | x1 | -3/Research Adv. Force Booster | x2 | -3/Armory Nanosword | x1 | -3/Armory Nanosword | x1 | -3/Armory Imp. Fusion Compressor | x2 | -3/Armory Cld. Impulse Thruster | x1 | -3/Armory Cld. Impulse Thruster | x1 | -3/Armory Cld. Impulse Thruster | x1 | -3/Armory Exp. Actuator Array | x1 | -2/Research Imp. Fusion Compressor | x2 | -2/Research Exp. Reaction Control System | x1 | -2/Research Exp. Phase Shifter | x1 | -1/Access Alien Tech Used ----------------- Core Expander Core Membrane Integrated Mediator Terrabomb Transdimensional Reconstructor Core Regenerator Matter Drive LRC Matter Compressor LRC Insulator High-powered Transdimensional Reconstructor Achievements -------------- 404 Behind The Curtain Planet Killer The Bigger They Are True Flier Challenges ------------ None RPGLIKE | -11 -10 -10 -9 -9 -9 -8 -8 -8 -8 -8 -7 -7 -7 -7 -7 -7 -7 -6 -6 -6 -6 -6 -6 -6 -5 -5 -5 -5 -5 -5 -5 -5 -5 -4 -4 -4 -4 -3 -3 -3 -3 -3 -3 -2 -2 -2 -2 -1 -1 -1 -1 -1 --------- Run | Yrd Mat Min Mat Min Exi Min Mat Gar Mat Gar Fac Gar Fac Low Low Zio Dee Pro Fac Gar Fac Low Low Dat Pro Fac Was Fac Ext Cet Arc Hub Gar Fac Upp Upp War Pro Res Gar Res Arm Lab Res Tes Sec Gar Acc Gar Acc Com Ac0 Levels Raised 39 | . 3 1 5 1 . 1 3 1 1 . 3 . 1 . . . . 1 2 . . 1 . . . 1 . 1 . . . . 1 1 . . 1 . 2 . 1 1 . 1 1 . 1 1 1 . 1 . XP Earned 62764 | 3000 5791 1701 7337 212 80 1721 4725 1234 1237 531 4295 674 1525 131 61 27 68 495 2713 345 1061 44 40 22 427 1412 15 1318 249 247 66 586 288 2239 213 284 166 476 2741 875 997 920 120 2143 1141 971 199 2301 681 1200 841 578 XP Spent 61465 | 2990 4480 1520 7370 1400 . 1700 3600 2300 1350 . 3590 . 2600 . . . . 195 4400 . . 1280 . . . . . 3200 . . . . 1495 1100 . . 1925 . 2755 . 1700 1545 . 1500 1300 . 630 2570 900 . 1550 520 Upgrades 102 | 12 10 5 15 1 . 1 3 1 2 . 7 . 1 . . . . 2 3 . . 3 . . . . . 1 . . . . 3 1 . . 4 . 4 . 1 5 . 1 1 . 3 5 3 . 1 3 Power Slot 1 | . . . . . . . . . . . . . . . . . . . 1 . . . . . . . . . . . . . . . . . . . . . . . . . . . . . . . . . Propulsion Slot 5 | 1 1 . 1 1 . . . . . . . . . . . . . . . . . . . . . . . . . . . . . . . . 1 . . . . . . . . . . . . . . . Utility Slot 10 | 1 2 . 1 . . 1 1 1 . . . . 1 . . . . . 1 . . . . . . . . 1 . . . . . . . . . . . . . . . . . . . . . . . . Weapon Slot 5 | 1 . . . . . . . . 1 . . . . . . . . . . . . . . . . . . . . . . . . 1 . . . . 1 . 1 . . . . . . . . . . . Core Integrity 13 | . . . . . . . . . . . . . . . . . . 1 . . . 2 . . . . . . . . . . 1 . . . 3 . 1 . . 2 . . . . . 2 . . . 1 Heat Dissipation 13 | . . 2 1 . . . . . . . 3 . . . . . . 1 . . . . . . . . . . . . . . 1 . . . . . 1 . . . . . . . 2 2 . . . . Energy Generation 6 | . . . 1 . . . . . 1 . 1 . . . . . . . . . . . . . . . . . . . . . . . . . . . 1 . . . . . 1 . . . . . 1 . Energy Storage 2 | . . . . . . . . . . . . . . . . . . . . . . . . . . . . . . . . . . . . . . . . . . 2 . . . . . . . . . . Mass Support 3 | 1 . . 1 . . . . . . . 1 . . . . . . . . . . . . . . . . . . . . . . . . . . . . . . . . . . . . . . . . . Inventory Capacity 7 | 1 1 1 . . . . . . . . 1 . . . . . . . . . . . . . . . . . . . . . 1 . . . . . . . . . . 1 . . . 1 . . . . Sight Range 2 | 1 . . . . . . . . . . 1 . . . . . . . . . . . . . . . . . . . . . . . . . . . . . . . . . . . . . . . . . Sensor Range 7 | . 1 . 3 . . . . . . . . . . . . . . . . . . . . . . . . . . . . . . . . . . . . . . . . . . . 1 . . . . 2 Terrain Scan Density 5 | 2 1 . 2 . . . . . . . . . . . . . . . . . . . . . . . . . . . . . . . . . . . . . . . . . . . . . . . . . Melee Accuracy 8 | 2 1 1 2 . . . 1 . . . . . . . . . . . . . . . . . . . . . . . . . . . . . . . . . . 1 . . . . . . . . . . Hack Attack % 6 | 1 1 . 2 . . . . . . . . . . . . . . . 1 . . 1 . . . . . . . . . . . . . . . . . . . . . . . . . . . . . . Hack Defense % 3 | 1 . . 1 . . . 1 . . . . . . . . . . . . . . . . . . . . . . . . . . . . . . . . . . . . . . . . . . . . . KI Resistance % 2 | . 1 . . . . . . . . . . . . . . . . . . . . . . . . . . . . . . . . . . . . . . . . . . . . . . . 1 . . . TH Resistance % 2 | . 1 . . . . . . . . . . . . . . . . . . . . . . . . . . . . . . . . . . . . . . . . . . . . . . . 1 . . . EX Resistance % 2 | . . 1 . . . . . . . . . . . . . . . . . . . . . . . . . . . . . . . . . . . . . . . . . . . . . . 1 . . . Protomatter Created 48804 | . 413 94 616 . . 52 781 456 514 455 1461 817 1505 114 289 . 91 330 1364 625 1070 . 117 . 249 884 175 848 284 20 63 1093 473 1240 218 288 828 238 1806 1520 1305 3399 . 3019 2542 3511 1323 3487 1207 3876 2351 1393 Integrity Restored 46478 | . 545 430 1042 21 . 129 1369 715 1271 662 1733 878 1910 228 464 321 288 453 1475 412 1183 . 62 . 282 581 . 757 386 48 306 1789 758 1485 475 219 1493 360 1587 1082 1140 3752 . 1294 1504 2136 500 2035 900 3028 1558 1432 Core 33394 | . 431 338 844 13 . 107 1124 632 1075 526 1492 631 1542 228 259 261 288 320 1008 323 929 . 38 . 234 441 . 531 293 48 306 1321 572 1275 139 182 1184 300 1155 817 962 2641 . 666 801 1360 244 1232 482 1855 945 999 Parts 13084 | . 114 92 198 8 . 22 245 83 196 136 241 247 368 . 205 60 . 133 467 89 254 . 24 . 48 140 . 226 93 . . 468 186 210 336 37 309 60 432 265 178 1111 . 628 703 776 256 803 418 1173 613 433 Protomatter Decayed 22082 | . 94 . 59 1 . . 34 246 22 77 116 206 241 47 8 . . 24 56 375 142 . 20 . 88 170 . 42 302 . . 358 91 166 . 24 1024 32 499 865 333 482 . 2085 580 1356 885 2043 432 1378 6340 739 Game ------ Seed PoweredPowerKatana Manual? 1 Play Time 17:58:21 Cumulative 118.6 hours Start 2024.05.06 @ 20:37:30 End 2024.05.09 @ 02:23:48 Sessions 21 Manual Loads 0 Difficulty Rogue Special Mode Winter2019/RPGLIKE Game No. 82 Rogue 81 Adventurer 0 Explorer 1 Win Type 6 Total 3 Types 1/0/1/0/0/0/1/0/0 Lore% 62 Gallery% 58 Achievement% 63 Wizard Run 0 Options --------- Layout 0 ASCII 0 Keyboard 1 Movement Numpad Keybinds 0 Fullscreen 2 Font 18/Terminus Map View 76x50 Zoom Use 0% Tactical HUD 1 Map Filters NONE Filters NONE Steam 1 RUN: a3d2a0d8-f9a0-471f-978f-e9e9ceb9d1e9